{"text_format":"1","workbook":"xlsx","n_sheets":4,"sheets":["Труба","Д","Лист3","Расчеты"],"not_rendered":{"charts":0,"images":0,"macros":1,"external_links":0,"defined_names":1,"comments":1,"pivot_tables":0},"unopened":[],"bounds":{"document_bytes":16777216,"sheet_cells":100000,"rows_first":2000,"rows_last":500,"rows_between":2000,"halvings":0,"cell_chars":16384,"cell_head_chars":4096},"cells_cut":0,"cells_raw":0,"read":"whole","date_system":"1900"}

{"sheet":"Труба","index":0,"n_rows":201,"n_cols":44,"rows_kept":201,"cut":false,"hidden":false,"merged":[[87,12,87,13],[87,15,87,16],[87,18,87,19],[87,21,87,22],[37,11,38,11],[37,12,37,13],[37,15,37,16],[37,21,37,22],[37,18,37,19],[37,2,38,2],[37,1,38,1],[37,14,38,14],[37,9,38,9],[37,8,38,8],[37,7,38,7],[37,6,38,6],[3,2,3,8],[87,27,88,27],[87,28,88,28],[87,29,88,29],[87,24,88,24],[87,25,88,25],[87,8,88,8],[87,9,88,9],[87,26,88,26],[37,17,38,17],[87,14,88,14],[87,17,88,17],[87,20,88,20],[87,23,88,23],[37,4,38,4],[37,3,38,3]]}
["z",null,null,null,null,null,null,null,null,null,"z","z",null,null,null,null,null,null,null,null,null,null,null,null,null,null,null,null,null,null,null,null,"z","z",null,"z",null,"z","z","z","z","z","z","z"]
[null,null,null,null,null,"            Приложение № 2 к ЛЗК ___"]
[null,null,null,null,null,null,null,null,null,null,{"$f":"IF(K9:K14=0,\"тревога\",\"всё ок\")","v":{"$error":"#VALUE!"}}]
[]
[]
[null,null,null,null,null,null,null,null,null,null,"Коэфициент ","Маса "]
[null,"См. Косые резы и выполнять согласно чертежа",null,null,null,null,null,"План / шт",10,null,null,{"$f":"#REF!-#REF!","v":{"$error":"#REF!"}}]
[null,"№ п/п","длина ","ширина условная расчет программы","кол-во на изделие","материал профиль трубы","тол-на","План","кол-во на план",null,{"$f":"SUM(I9:I36)","v":0},{"$f":"SUM(L9:L36)","v":0}]
[{"$f":"IF(I9=0,\"z\",\"\")","v":"z"},1,null,500,null,null,null,{"$f":"$I$7","v":10},{"$f":"E9*H9","v":0},null,{"$f":"IFERROR(VLOOKUP(F9,$AL$128:$AM$193,3,0),0)","v":0},{"$f":"C9*D9*I9*K9/1000000-M9","v":0}]
[{"$f":"IF(I10=0,\"z\",\"\")","v":"z"},2,null,500,null,null,{"$f":"IFERROR(VLOOKUP(F10,$AL$128:$AM$193,2,0),\"\")","v":""},{"$f":"$I$7","v":10},0,null,0,{"$f":"C10*D10*I10*K10/1000000","v":0}]
["z",3,null,500,null,null,"",10,0,null,0,0]
["z",4,null,500,null,null,"",10,0,null,0,0]
["z",5,null,500,null,null,"",10,0,null,0,0]
["z",6,null,500,null,null,"",10,0,null,0,0]
["z",7,null,500,null,null,"",10,0,null,0,0]
["z",8,null,500,null,null,"",10,0,null,0,0]
["z",9,null,500,null,null,"",10,0,null,0,0]
["z",10,null,500,null,null,"",10,0,null,0,0]
["z",11,null,500,null,null,"",10,0,null,0,0]
["z",12,null,500,null,null,"",10,0,null,0,0]
["z",13,null,500,null,null,"",10,0,null,0,0]
["z",14,null,500,null,null,"",10,0,null,0,0]
["z",15,null,500,null,null,"",10,0,null,0,0]
["z",16,null,500,null,null,"",10,0,null,0,0]
["z",17,null,500,null,null,"",10,0,null,0,0]
["z",18,null,500,null,null,"",10,0,null,0,0]
["z",19,null,500,null,null,"",10,0,null,0,0]
["z",20,null,500,null,null,"",10,0,null,0,0]
["z",21,null,500,null,null,"",10,0,null,0,0]
["z",22,null,500,null,null,"",10,0,null,0,0]
["z",23,null,500,null,null,"",10,0,null,0,0]
["z",24,null,500,null,null,"",10,0,null,0,0]
["z",25,null,500,null,null,"",10,0,null,0,0]
["z",26,null,500,null,null,"",10,0,null,0,0]
["z",27,null,500,null,null,"",10,0,null,0,0]
["z",28,null,500,null,null,"",10,0,null,0,0]
[]
[null,"Карта рас-кроя №","Длина, мм","Ширина, мм","Толщина, мм","Марка материала","Кол-во","Площадь остатков всего, кв.м","Площадь деталей всего, кв.м","Количество деталей",null,"Коэфициент ","Трубы/остатка со склада масса (кг)",null,"Получил","Деловой остаток на склад (кг)",null,"Получил кла-довщик","ЛОМ общий (кг)",null,"Получил кладовщик","Масса деталей (кг)",null,"Количество деталей","Получил","Расход (кг)","ЛОМ (кг)"]
[null,null,null,null,null,null,null,null,null,null,null,null,"теория","факт",null,"теория","факт",null,"теория","факт",null,"теория","факт"]
[{"$f":"IF(G40=0,\"z\",\"\")","v":"z"},null,null,null,null,null,null,null,null,null,null,{"$f":"IFERROR(VLOOKUP(#REF!,$AL$128:$AM$193,3,0),0)","v":0},{"$f":"C40*D40*G40*L40/1000000","v":0},null,null,{"$f":"H40*L40","v":0},null,null,{"$f":"Z40-V40","v":0},null,null,{"$f":"I40*L40","v":0},null,null,null,{"$f":"M40-P40","v":0},{"$f":"Z40-V40","v":0}]
[{"$f":"IF(G41=0,\"z\",\"\")","v":"z"},null,null,null,null,null,null,null,null,null,null,{"$f":"IFERROR(VLOOKUP(F41,$AL$128:$AM$193,3,0),0)","v":0},0,null,null,0,null,null,{"$f":"Z41-V41","v":0},null,null,{"$f":"I41*L41","v":0},null,null,null,{"$f":"M41-P41","v":0},{"$f":"Z41-V41","v":0}]
["z",null,null,null,null,null,null,null,null,null,null,0,0,null,null,0,null,null,null,null,null,0,null,null,null,0,0]
["z",null,null,null,null,null,null,null,null,null,null,0,0,null,null,0,null,null,null,null,null,0,null,null,null,0,0]
["z",null,null,null,null,null,null,null,null,null,null,0,0,null,null,0,null,null,null,null,null,0,null,null,null,0,0]
["z",null,null,null,null,null,null,null,null,null,null,0,0,null,null,0,null,null,null,null,null,0,null,null,null,0,0]
["z",null,null,null,null,null,null,null,null,null,null,0,0,null,null,0,null,null,null,null,null,0,null,null,null,0,0]
["z",null,null,null,null,null,null,null,null,null,null,0,0,null,null,0,null,null,null,null,null,0,null,null,null,0,0]
["z",null,null,null,null,null,null,null,null,null,null,0,0,null,null,0,null,null,null,null,null,0,null,null,null,0,0]
["z",null,null,null,null,null,null,null,null,null,null,0,0,null,null,{"$f":"H49*L49","v":0},null,null,null,null,null,{"$f":"I49*L49","v":0},null,null,null,{"$f":"M49-P49","v":0},{"$f":"Z49-V49","v":0}]
["z",null,null,null,null,null,null,null,null,null,null,0,0,null,null,0,null,null,null,null,null,0,null,null,null,0,0]
["z",null,null,null,null,null,null,null,null,null,null,0,0,null,null,0,null,null,null,null,null,0,null,null,null,0,0]
["z",null,null,null,null,null,null,null,null,null,null,0,0,null,null,0,null,null,null,null,null,0,null,null,null,0,0]
["z",null,null,null,null,null,null,null,null,null,null,0,0,null,null,0,null,null,null,null,null,0,null,null,null,0,0]
["z",null,null,null,null,null,null,null,null,null,null,0,0,null,null,0,null,null,null,null,null,0,null,null,null,0,0]
["z",null,null,null,null,null,null,null,null,null,null,0,0,null,null,0,null,null,null,null,null,0,null,null,null,0,0]
["z",null,null,null,null,null,null,null,null,null,null,0,0,null,null,0,null,null,null,null,null,0,null,null,null,0,0]
["z",null,null,null,null,null,null,null,null,null,null,0,0,null,null,0,null,null,null,null,null,0,null,null,null,0,0]
["z",null,null,null,null,null,null,null,null,null,null,0,0,null,null,0,null,null,null,null,null,0,null,null,null,0,0]
["z",null,null,null,null,null,null,null,null,null,null,0,0,null,null,0,null,null,null,null,null,0,null,null,null,0,0]
["z",null,null,null,null,null,null,null,null,null,null,0,0,null,null,0,null,null,null,null,null,0,null,null,null,0,0]
["z",null,null,null,null,null,null,null,null,null,null,0,0,null,null,0,null,null,null,null,null,0,null,null,null,0,0]
["z",null,null,null,null,null,null,null,null,null,null,0,0,null,null,0,null,null,null,null,null,0,null,null,null,0,0]
["z",null,null,null,null,null,null,null,null,null,null,0,0,null,null,0,null,null,null,null,null,0,null,null,null,0,0]
["z",null,null,null,null,null,null,null,null,null,null,0,0,null,null,0,null,null,null,null,null,0,null,null,null,0,0]
["z",null,null,null,null,null,null,null,null,null,null,0,0,null,null,0,null,null,null,null,null,0,null,null,null,0,0]
["z",null,null,null,null,null,null,null,null,null,null,0,0,null,null,0,null,null,null,null,null,0,null,null,null,0,0]
["z",null,null,null,null,null,null,null,null,null,null,0,0,null,null,0,null,null,null,null,null,0,null,null,null,0,0]
["z",null,null,null,null,null,null,null,null,null,null,0,0,null,null,0,null,null,null,null,null,0,null,null,null,0,0]
["z",null,null,null,null,null,null,null,null,null,null,0,0,null,null,0,null,null,null,null,null,0,null,null,null,0,0]
["z",null,null,null,null,null,null,null,null,null,null,0,0,null,null,0,null,null,null,null,null,0,null,null,null,0,0]
["z",null,null,null,null,null,null,null,null,null,null,0,0,null,null,0,null,null,null,null,null,0,null,null,null,0,0]
["z",null,null,null,null,null,null,null,null,null,null,0,0,null,null,0,null,null,null,null,null,0,null,null,null,0,0]
["z",null,null,null,null,null,null,null,null,null,null,0,0,null,null,0,null,null,null,null,null,0,null,null,null,{"$f":"M73-P73","v":0},0]
["z",null,null,null,null,null,null,null,null,null,null,0,0,null,null,0,null,null,null,null,null,0,null,null,null,{"$f":"M74-P74","v":0},0]
["z",null,null,null,null,null,null,null,null,null,null,0,0,null,null,0,null,null,null,null,null,0,null,null,null,0,0]
["z",null,null,null,null,null,null,null,null,null,null,0,0,null,null,0,null,null,null,null,null,0,null,null,null,0,0]
["z",null,null,null,null,null,null,null,null,null,null,0,0,null,null,0,null,null,null,null,null,0,null,null,null,0,0]
["z",null,null,null,null,null,null,null,null,null,null,0,0,null,null,0,null,null,null,null,null,0,null,null,null,0,0]
["z",null,null,null,null,null,null,null,null,null,null,0,0,null,null,0,null,null,null,null,null,0,null,null,null,0,0]
["z",null,null,null,null,null,null,null,null,null,null,0,0,null,null,0,null,null,null,null,null,0,null,null,null,0,0]
["z",null,null,null,null,null,null,null,null,null,null,0,0,null,null,0,null,null,null,null,null,0,null,null,null,0,0]
["z",null,null,null,null,null,null,null,null,null,null,0,0,null,null,0,null,null,null,null,null,0,null,null,null,0,0]
["z",null,null,null,null,null,null,null,null,null,null,0,0,null,null,0,null,null,null,null,null,0,null,null,null,0,0]
["z",null,null,null,null,null,null,null,null,null,null,0,0,null,null,0,null,null,null,null,null,0,null,null,null,0,0]
["z",null,null,null,null,null,null,null,null,null,null,0,0,null,null,0,null,null,null,null,null,0,null,null,null,0,0]
[null,null,null,null,null,null,null,null,null,null,null,null,{"$f":"SUM(M40:M85)","v":0},null,null,{"$f":"SUM(P40:P85)","v":0},null,null,null,null,null,{"$f":"SUM(V40:V85)","v":0},null,null,null,{"$f":"SUM(Z40:Z85)","v":0},{"$f":"SUM(AA40:AA85)","v":0}]
[]
[null,null,null,null,null,null,null,null,"Кол-во труб чм ","Трубы по толщине",null,null,"Трубы/остатка со склада масса (кг)",null,"Получил","Деловой остаток на склад (кг)",null,"Получил кладовщик","ЛОМ (кг)",null,"Получил кладовщик","масса деталей (кг)",null,"Количество","Получил","Расход (кг)",null,"ЛОМ (кг) дубль","отход на порезку","лом чистый"]
[null,null,null,null,null,null,null,null,null,null,null,null,"теория","факт",null,"теория","факт",null,"теория","факт",null,"теория","факт"]
[]
[]
[null,"Кол-во труб ","толщина\nтрубы","длина трубы",null,"Название"]
[]
[]
[]
[]
[]
[]
[]
[]
[]
[]
[]
[]
[]
[]
[{"$f":"IF(V109=0,\"z\",\"\")","v":"z"},null,null,null,null,null,null,"",null,0,null,{"$f":"Расчеты!J21","v":1.8720000000000001},0,null,null,null,null,null,null,null,null,null,null,null,null,null,null,{"$f":"AD107+AD108-AC107","v":0},{"$f":"Расчеты!D21*Расчеты!M21/1000/2*Расчеты!J21","v":0},{"$f":"SUMIFS($AA$40:$AA$85,$C$40:$C$85,Расчеты!K21,$D$40:$D$85,\"=500\",$E$40:$E$85,Расчеты!I21,$F$40:$F$85,Расчеты!H21)","v":0}]
[{"$f":"IF(V109=0,\"z\",\"\")","v":"z"},null,null,null,null,null,null,"Остатки",null,null,null,null,0,null,null,null,null,null,null,null,null,null,null,null,null,{"$f":"SUMIFS($Z$40:$Z$85,$C$40:$C$85,Расчеты!L21,$D$40:$D$85,\"=500\",$E$40:$E$85,Расчеты!I21,$F$40:$F$85,Расчеты!H21)","v":0},null,null,null,{"$f":"SUMIFS($AA$40:$AA$85,$C$40:$C$85,Расчеты!L21,$D$40:$D$85,\"=500\",$E$40:$E$85,Расчеты!I21,$F$40:$F$85,Расчеты!H21)","v":0}]
[{"$f":"IF(V109=0,\"z\",\"\")","v":"z"},null,null,null,null,null,null,"общая",null,null,null,null,{"$f":"M107+M108","v":0},null,null,{"$f":"P107+P108","v":0},null,null,{"$f":"S107","v":0},null,null,{"$f":"V107+V108+AC107","v":0},null,null,null,{"$f":"Z107+Z108","v":0}]
[null,null,null,null,null,null,null,"",null,0,null,{"$f":"Расчеты!J24","v":1.548},0,null,null,null,null,null,null,null,null,null,null,null,null,null,null,{"$f":"AD110+AD111-AC110","v":0},{"$f":"Расчеты!D24*Расчеты!M24/1000/2*Расчеты!J24","v":0},{"$f":"SUMIFS($AA$40:$AA$85,$C$40:$C$85,Расчеты!K24,$D$40:$D$85,\"=500\",$E$40:$E$85,Расчеты!I24,$F$40:$F$85,Расчеты!H24)","v":0}]
[null,null,null,null,null,null,null,"Остатки",null,null,null,null,0,null,null,null,null,null,null,null,null,null,null,null,null,{"$f":"SUMIFS($Z$40:$Z$85,$C$40:$C$85,Расчеты!L24,$D$40:$D$85,\"=500\",$E$40:$E$85,Расчеты!I24,$F$40:$F$85,Расчеты!H24)","v":0},null,null,null,{"$f":"SUMIFS($AA$40:$AA$85,$C$40:$C$85,Расчеты!L24,$D$40:$D$85,\"=500\",$E$40:$E$85,Расчеты!I24,$F$40:$F$85,Расчеты!H24)","v":0}]
[null,null,null,null,null,null,null,"общая",null,null,null,null,{"$f":"M110+M111","v":0},null,null,{"$f":"P110+P111","v":0},null,null,{"$f":"S110","v":0},null,null,{"$f":"V110+V111+AC110","v":0},null,null,null,{"$f":"Z110+Z111","v":0}]
[null,null,null,null,null,null,null,"",null,0,null,{"$f":"Расчеты!J27","v":3.0960000000000001},0,null,null,null,null,null,null,null,null,null,null,null,null,null,null,{"$f":"AD113+AD114-AC113","v":0},{"$f":"Расчеты!D27*Расчеты!M27/1000/2*Расчеты!J27","v":0},{"$f":"SUMIFS($AA$40:$AA$85,$C$40:$C$85,Расчеты!K27,$D$40:$D$85,\"=500\",$E$40:$E$85,Расчеты!I27,$F$40:$F$85,Расчеты!H27)","v":0}]
[null,null,null,null,null,null,null,"Остатки",null,null,null,null,0,null,null,null,null,null,null,null,null,null,null,null,null,{"$f":"SUMIFS($Z$40:$Z$85,$C$40:$C$85,Расчеты!L27,$D$40:$D$85,\"=500\",$E$40:$E$85,Расчеты!I27,$F$40:$F$85,Расчеты!H27)","v":0},null,null,null,{"$f":"SUMIFS($AA$40:$AA$85,$C$40:$C$85,Расчеты!L27,$D$40:$D$85,\"=500\",$E$40:$E$85,Расчеты!I27,$F$40:$F$85,Расчеты!H27)","v":0}]
[null,null,null,null,null,null,null,"общая",null,null,null,null,{"$f":"M113+M114","v":0},null,null,{"$f":"P113+P114","v":0},null,null,{"$f":"S113","v":0},null,null,{"$f":"V113+V114+AC113","v":0},null,null,null,{"$f":"Z113+Z114","v":0}]
[null,null,null,null,null,null,null,"",null,0,null,{"$f":"Расчеты!J30","v":2.7},0,null,null,null,null,null,null,null,null,null,null,null,null,null,null,{"$f":"AD116+AD117-AC116","v":0},{"$f":"Расчеты!D30*Расчеты!M30/1000/2*Расчеты!J30","v":0},{"$f":"SUMIFS($AA$40:$AA$85,$C$40:$C$85,Расчеты!K30,$D$40:$D$85,\"=500\",$E$40:$E$85,Расчеты!I30,$F$40:$F$85,Расчеты!H30)","v":0}]
[null,null,null,null,null,null,null,"Остатки",null,null,null,null,0,null,null,null,null,null,null,null,null,null,null,null,null,{"$f":"SUMIFS($Z$40:$Z$85,$C$40:$C$85,Расчеты!L30,$D$40:$D$85,\"=500\",$E$40:$E$85,Расчеты!I30,$F$40:$F$85,Расчеты!H30)","v":0},null,null,null,{"$f":"SUMIFS($AA$40:$AA$85,$C$40:$C$85,Расчеты!L30,$D$40:$D$85,\"=500\",$E$40:$E$85,Расчеты!I30,$F$40:$F$85,Расчеты!H30)","v":0}]
[null,null,null,null,null,null,null,"общая",null,null,null,null,{"$f":"M116+M117","v":0},null,null,{"$f":"P116+P117","v":0},null,null,{"$f":"S116","v":0},null,null,{"$f":"V116+V117+AC116","v":0},null,null,null,{"$f":"Z116+Z117","v":0}]
[null,null,null,null,null,null,null,"",null,0,null,{"$f":"Расчеты!J33","v":4.8899999999999997},0,null,null,null,null,null,null,null,null,null,null,null,null,null,null,{"$f":"AD119+AD120-AC119","v":0},{"$f":"Расчеты!D33*Расчеты!M33/1000/2*Расчеты!J33","v":0},{"$f":"SUMIFS($AA$40:$AA$85,$C$40:$C$85,Расчеты!K33,$D$40:$D$85,\"=500\",$E$40:$E$85,Расчеты!I33,$F$40:$F$85,Расчеты!H33)","v":0}]
[null,null,null,null,null,null,null,"Остатки",null,null,null,null,0,null,null,null,null,null,null,null,null,null,null,null,null,{"$f":"SUMIFS($Z$40:$Z$85,$C$40:$C$85,Расчеты!L33,$D$40:$D$85,\"=500\",$E$40:$E$85,Расчеты!I33,$F$40:$F$85,Расчеты!H33)","v":0},null,null,null,{"$f":"SUMIFS($AA$40:$AA$85,$C$40:$C$85,Расчеты!L33,$D$40:$D$85,\"=500\",$E$40:$E$85,Расчеты!I33,$F$40:$F$85,Расчеты!H33)","v":0}]
[null,null,null,null,null,null,null,"общая",null,null,null,null,{"$f":"M119+M120","v":0},null,null,{"$f":"P119+P120","v":0},null,null,{"$f":"S119","v":0},null,null,{"$f":"V119+V120+AC119","v":0},null,null,null,{"$f":"Z119+Z120","v":0}]
[null,null,null,null,null,null,null,"",null,0,null,{"$f":"Расчеты!#REF!","v":{"$error":"#REF!"}},0,null,null,null,null,null,null,null,null,null,null,null,null,null,null,{"$f":"AD122+AD123-AC122","v":{"$error":"#REF!"}},{"$f":"Расчеты!#REF!*Расчеты!#REF!/1000/2*Расчеты!#REF!","v":{"$error":"#REF!"}},{"$f":"SUMIFS($AA$40:$AA$85,$C$40:$C$85,Расчеты!#REF!,$D$40:$D$85,\"=500\",$E$40:$E$85,Расчеты!#REF!,$F$40:$F$85,Расчеты!#REF!)","v":0}]
[null,null,null,null,null,null,null,"Остатки",null,null,null,null,0,null,null,null,null,null,null,null,null,null,null,null,null,{"$f":"SUMIFS($Z$40:$Z$85,$C$40:$C$85,Расчеты!#REF!,$D$40:$D$85,\"=500\",$E$40:$E$85,Расчеты!#REF!,$F$40:$F$85,Расчеты!#REF!)","v":0},null,null,null,{"$f":"SUMIFS($AA$40:$AA$85,$C$40:$C$85,Расчеты!#REF!,$D$40:$D$85,\"=500\",$E$40:$E$85,Расчеты!#REF!,$F$40:$F$85,Расчеты!#REF!)","v":0}]
[null,null,null,null,null,null,null,"общая",null,null,null,null,{"$f":"M122+M123","v":0},null,null,{"$f":"P122+P123","v":0},null,null,{"$f":"S122","v":0},null,null,{"$f":"V122+V123+AC122","v":{"$error":"#REF!"}},null,null,null,{"$f":"Z122+Z123","v":0}]
[null,null,null,null,null,null,null,"",null,0,null,{"$f":"Расчеты!#REF!","v":{"$error":"#REF!"}},0,null,null,null,null,null,null,null,null,null,null,null,null,null,null,{"$f":"AD125+AD126-AC125","v":{"$error":"#REF!"}},{"$f":"Расчеты!#REF!*Расчеты!#REF!/1000/2*Расчеты!#REF!","v":{"$error":"#REF!"}},{"$f":"SUMIFS($AA$40:$AA$85,$C$40:$C$85,Расчеты!#REF!,$D$40:$D$85,\"=500\",$E$40:$E$85,Расчеты!#REF!,$F$40:$F$85,Расчеты!#REF!)","v":0}]
[null,null,null,null,null,null,null,"Остатки",null,null,null,null,0,null,null,null,null,null,null,null,null,null,null,null,null,{"$f":"SUMIFS($Z$40:$Z$85,$C$40:$C$85,Расчеты!#REF!,$D$40:$D$85,\"=500\",$E$40:$E$85,Расчеты!#REF!,$F$40:$F$85,Расчеты!#REF!)","v":0},null,null,null,{"$f":"SUMIFS($AA$40:$AA$85,$C$40:$C$85,Расчеты!#REF!,$D$40:$D$85,\"=500\",$E$40:$E$85,Расчеты!#REF!,$F$40:$F$85,Расчеты!#REF!)","v":0}]
[null,null,null,null,null,null,null,"общая",null,null,null,null,{"$f":"M125+M126","v":0},null,null,{"$f":"P125+P126","v":0},null,null,{"$f":"S125","v":0},null,null,{"$f":"V125+V126+AC125","v":{"$error":"#REF!"}},null,null,null,{"$f":"Z125+Z126","v":0}]
[null,null,null,null,null,null,null,"",null,0,null,{"$f":"Расчеты!#REF!","v":{"$error":"#REF!"}},0,null,null,null,null,null,null,null,null,null,null,null,null,null,null,{"$f":"AD128+AD129-AC128","v":{"$error":"#REF!"}},{"$f":"Расчеты!#REF!*Расчеты!#REF!/1000/2*Расчеты!#REF!","v":{"$error":"#REF!"}},{"$f":"SUMIFS($AA$40:$AA$85,$C$40:$C$85,Расчеты!#REF!,$D$40:$D$85,\"=500\",$E$40:$E$85,Расчеты!#REF!,$F$40:$F$85,Расчеты!#REF!)","v":0}]
[null,null,null,null,null,null,null,"Остатки",null,null,null,null,0,null,null,null,null,null,null,null,null,null,null,null,null,{"$f":"SUMIFS($Z$40:$Z$85,$C$40:$C$85,Расчеты!#REF!,$D$40:$D$85,\"=500\",$E$40:$E$85,Расчеты!#REF!,$F$40:$F$85,Расчеты!#REF!)","v":0},null,null,null,{"$f":"SUMIFS($AA$40:$AA$85,$C$40:$C$85,Расчеты!#REF!,$D$40:$D$85,\"=500\",$E$40:$E$85,Расчеты!#REF!,$F$40:$F$85,Расчеты!#REF!)","v":0}]
[null,null,null,null,null,null,null,"общая",null,null,null,null,{"$f":"M128+M129","v":0},null,null,{"$f":"P128+P129","v":0},null,null,{"$f":"S128","v":0},null,null,{"$f":"V128+V129+AC128","v":{"$error":"#REF!"}},null,null,null,{"$f":"Z128+Z129","v":0}]
[null,null,null,null,null,null,null,"",null,0,null,{"$f":"Расчеты!#REF!","v":{"$error":"#REF!"}},0,null,null,null,null,null,null,null,null,null,null,null,null,null,null,{"$f":"AD131+AD132-AC131","v":{"$error":"#REF!"}},{"$f":"Расчеты!#REF!*Расчеты!#REF!/1000/2*Расчеты!#REF!","v":{"$error":"#REF!"}},{"$f":"SUMIFS($AA$40:$AA$85,$C$40:$C$85,Расчеты!#REF!,$D$40:$D$85,\"=500\",$E$40:$E$85,Расчеты!#REF!,$F$40:$F$85,Расчеты!#REF!)","v":0}]
[null,null,null,null,null,null,null,"Остатки",null,null,null,null,0,null,null,null,null,null,null,null,null,null,null,null,null,{"$f":"SUMIFS($Z$40:$Z$85,$C$40:$C$85,Расчеты!#REF!,$D$40:$D$85,\"=500\",$E$40:$E$85,Расчеты!#REF!,$F$40:$F$85,Расчеты!#REF!)","v":0},null,null,null,{"$f":"SUMIFS($AA$40:$AA$85,$C$40:$C$85,Расчеты!#REF!,$D$40:$D$85,\"=500\",$E$40:$E$85,Расчеты!#REF!,$F$40:$F$85,Расчеты!#REF!)","v":0}]
[null,null,null,null,null,null,null,"общая",null,null,null,null,{"$f":"M131+M132","v":0},null,null,{"$f":"P131+P132","v":0},null,null,{"$f":"S131","v":0},null,null,{"$f":"V131+V132+AC131","v":{"$error":"#REF!"}},null,null,null,{"$f":"Z131+Z132","v":0}]
[null,null,null,null,null,null,null,"",null,0,null,{"$f":"Расчеты!#REF!","v":{"$error":"#REF!"}},0,null,null,null,null,null,null,null,null,null,null,null,null,null,null,{"$f":"AD134+AD135-AC134","v":{"$error":"#REF!"}},{"$f":"Расчеты!#REF!*Расчеты!#REF!/1000/2*Расчеты!#REF!","v":{"$error":"#REF!"}},{"$f":"SUMIFS($AA$40:$AA$85,$C$40:$C$85,Расчеты!#REF!,$D$40:$D$85,\"=500\",$E$40:$E$85,Расчеты!#REF!,$F$40:$F$85,Расчеты!#REF!)","v":0}]
[null,null,null,null,null,null,null,"Остатки",null,null,null,null,0,null,null,null,null,null,null,null,null,null,null,null,null,{"$f":"SUMIFS($Z$40:$Z$85,$C$40:$C$85,Расчеты!#REF!,$D$40:$D$85,\"=500\",$E$40:$E$85,Расчеты!#REF!,$F$40:$F$85,Расчеты!#REF!)","v":0},null,null,null,{"$f":"SUMIFS($AA$40:$AA$85,$C$40:$C$85,Расчеты!#REF!,$D$40:$D$85,\"=500\",$E$40:$E$85,Расчеты!#REF!,$F$40:$F$85,Расчеты!#REF!)","v":0}]
[null,null,null,null,null,null,null,"общая",null,null,null,null,{"$f":"M134+M135","v":0},null,null,{"$f":"P134+P135","v":0},null,null,{"$f":"S134","v":0},null,null,{"$f":"V134+V135+AC134","v":{"$error":"#REF!"}},null,null,null,{"$f":"Z134+Z135","v":0}]
[null,null,null,null,null,null,null,"",null,0,null,{"$f":"Расчеты!#REF!","v":{"$error":"#REF!"}},0,null,null,null,null,null,null,null,null,null,null,null,null,null,null,{"$f":"AD137+AD138-AC137","v":{"$error":"#REF!"}},{"$f":"Расчеты!#REF!*Расчеты!#REF!/1000/2*Расчеты!#REF!","v":{"$error":"#REF!"}},{"$f":"SUMIFS($AA$40:$AA$85,$C$40:$C$85,Расчеты!#REF!,$D$40:$D$85,\"=500\",$E$40:$E$85,Расчеты!#REF!,$F$40:$F$85,Расчеты!#REF!)","v":0}]
[null,null,null,null,null,null,null,"Остатки",null,null,null,null,0,null,null,null,null,null,null,null,null,null,null,null,null,{"$f":"SUMIFS($Z$40:$Z$85,$C$40:$C$85,Расчеты!#REF!,$D$40:$D$85,\"=500\",$E$40:$E$85,Расчеты!#REF!,$F$40:$F$85,Расчеты!#REF!)","v":0},null,null,null,{"$f":"SUMIFS($AA$40:$AA$85,$C$40:$C$85,Расчеты!#REF!,$D$40:$D$85,\"=500\",$E$40:$E$85,Расчеты!#REF!,$F$40:$F$85,Расчеты!#REF!)","v":0}]
[null,null,null,null,null,null,null,"общая",null,null,null,null,{"$f":"M137+M138","v":0},null,null,{"$f":"P137+P138","v":0},null,null,{"$f":"S137","v":0},null,null,{"$f":"V137+V138+AC137","v":{"$error":"#REF!"}},null,null,null,{"$f":"Z137+Z138","v":0}]
[null,null,null,null,null,null,null,"",null,0,null,{"$f":"Расчеты!#REF!","v":{"$error":"#REF!"}},0,null,null,null,null,null,null,null,null,null,null,null,null,null,null,{"$f":"AD140+AD141-AC140","v":{"$error":"#REF!"}},{"$f":"Расчеты!#REF!*Расчеты!#REF!/1000/2*Расчеты!#REF!","v":{"$error":"#REF!"}},{"$f":"SUMIFS($AA$40:$AA$85,$C$40:$C$85,Расчеты!#REF!,$D$40:$D$85,\"=500\",$E$40:$E$85,Расчеты!#REF!,$F$40:$F$85,Расчеты!#REF!)","v":0}]
[null,null,null,null,null,null,null,"Остатки",null,null,null,null,0,null,null,null,null,null,null,null,null,null,null,null,null,{"$f":"SUMIFS($Z$40:$Z$85,$C$40:$C$85,Расчеты!#REF!,$D$40:$D$85,\"=500\",$E$40:$E$85,Расчеты!#REF!,$F$40:$F$85,Расчеты!#REF!)","v":0},null,null,null,{"$f":"SUMIFS($AA$40:$AA$85,$C$40:$C$85,Расчеты!#REF!,$D$40:$D$85,\"=500\",$E$40:$E$85,Расчеты!#REF!,$F$40:$F$85,Расчеты!#REF!)","v":0}]
[null,null,null,null,null,null,null,"общая",null,null,null,null,{"$f":"M140+M141","v":0},null,null,{"$f":"P140+P141","v":0},null,null,{"$f":"S140","v":0},null,null,{"$f":"V140+V141+AC140","v":{"$error":"#REF!"}},null,null,null,{"$f":"Z140+Z141","v":0}]
[null,null,null,null,null,null,null,"",null,0,null,{"$f":"Расчеты!#REF!","v":{"$error":"#REF!"}},0,null,null,null,null,null,null,null,null,null,null,null,null,null,null,{"$f":"AD143+AD144-AC143","v":{"$error":"#REF!"}},{"$f":"Расчеты!#REF!*Расчеты!#REF!/1000/2*Расчеты!#REF!","v":{"$error":"#REF!"}},{"$f":"SUMIFS($AA$40:$AA$85,$C$40:$C$85,Расчеты!#REF!,$D$40:$D$85,\"=500\",$E$40:$E$85,Расчеты!#REF!,$F$40:$F$85,Расчеты!#REF!)","v":0}]
[null,null,null,null,null,null,null,"Остатки",null,null,null,null,0,null,null,null,null,null,null,null,null,null,null,null,null,{"$f":"SUMIFS($Z$40:$Z$85,$C$40:$C$85,Расчеты!#REF!,$D$40:$D$85,\"=500\",$E$40:$E$85,Расчеты!#REF!,$F$40:$F$85,Расчеты!#REF!)","v":0},null,null,null,{"$f":"SUMIFS($AA$40:$AA$85,$C$40:$C$85,Расчеты!#REF!,$D$40:$D$85,\"=500\",$E$40:$E$85,Расчеты!#REF!,$F$40:$F$85,Расчеты!#REF!)","v":0}]
[null,null,null,null,null,null,null,"общая",null,null,null,null,{"$f":"M143+M144","v":0},null,null,{"$f":"P143+P144","v":0},null,null,{"$f":"S143","v":0},null,null,{"$f":"V143+V144+AC143","v":{"$error":"#REF!"}},null,null,null,{"$f":"Z143+Z144","v":0}]
[null,null,null,null,null,null,null,"",null,0,null,{"$f":"Расчеты!#REF!","v":{"$error":"#REF!"}},0,null,null,null,null,null,null,null,null,null,null,null,null,null,null,{"$f":"AD146+AD147-AC146","v":{"$error":"#REF!"}},{"$f":"Расчеты!#REF!*Расчеты!#REF!/1000/2*Расчеты!#REF!","v":{"$error":"#REF!"}},{"$f":"SUMIFS($AA$40:$AA$85,$C$40:$C$85,Расчеты!#REF!,$D$40:$D$85,\"=500\",$E$40:$E$85,Расчеты!#REF!,$F$40:$F$85,Расчеты!#REF!)","v":0}]
[null,null,null,null,null,null,null,"Остатки",null,null,null,null,0,null,null,null,null,null,null,null,null,null,null,null,null,{"$f":"SUMIFS($Z$40:$Z$85,$C$40:$C$85,Расчеты!#REF!,$D$40:$D$85,\"=500\",$E$40:$E$85,Расчеты!#REF!,$F$40:$F$85,Расчеты!#REF!)","v":0},null,null,null,{"$f":"SUMIFS($AA$40:$AA$85,$C$40:$C$85,Расчеты!#REF!,$D$40:$D$85,\"=500\",$E$40:$E$85,Расчеты!#REF!,$F$40:$F$85,Расчеты!#REF!)","v":0}]
[null,null,null,null,null,null,null,"общая",null,null,null,null,{"$f":"M146+M147","v":0},null,null,{"$f":"P146+P147","v":0},null,null,{"$f":"S146","v":0},null,null,{"$f":"V146+V147+AC146","v":{"$error":"#REF!"}},null,null,null,{"$f":"Z146+Z147","v":0}]
[null,null,null,null,null,null,null,"",null,0,null,{"$f":"Расчеты!#REF!","v":{"$error":"#REF!"}},0,null,null,null,null,null,null,null,null,null,null,null,null,null,null,{"$f":"AD149+AD150-AC149","v":{"$error":"#REF!"}},{"$f":"Расчеты!#REF!*Расчеты!#REF!/1000/2*Расчеты!#REF!","v":{"$error":"#REF!"}},{"$f":"SUMIFS($AA$40:$AA$85,$C$40:$C$85,Расчеты!#REF!,$D$40:$D$85,\"=500\",$E$40:$E$85,Расчеты!#REF!,$F$40:$F$85,Расчеты!#REF!)","v":0}]
[null,null,null,null,null,null,null,"Остатки",null,null,null,null,0,null,null,null,null,null,null,null,null,null,null,null,null,{"$f":"SUMIFS($Z$40:$Z$85,$C$40:$C$85,Расчеты!#REF!,$D$40:$D$85,\"=500\",$E$40:$E$85,Расчеты!#REF!,$F$40:$F$85,Расчеты!#REF!)","v":0},null,null,null,{"$f":"SUMIFS($AA$40:$AA$85,$C$40:$C$85,Расчеты!#REF!,$D$40:$D$85,\"=500\",$E$40:$E$85,Расчеты!#REF!,$F$40:$F$85,Расчеты!#REF!)","v":0}]
[null,null,null,null,null,null,null,"общая",null,null,null,null,{"$f":"M149+M150","v":0},null,null,{"$f":"P149+P150","v":0},null,null,{"$f":"S149","v":0},null,null,{"$f":"V149+V150+AC149","v":{"$error":"#REF!"}},null,null,null,{"$f":"Z149+Z150","v":0}]
[null,null,null,null,null,null,null,"",null,0,null,{"$f":"Расчеты!#REF!","v":{"$error":"#REF!"}},0,null,null,null,null,null,null,null,null,null,null,null,null,null,null,{"$f":"AD152+AD153-AC152","v":{"$error":"#REF!"}},{"$f":"Расчеты!#REF!*Расчеты!#REF!/1000/2*Расчеты!#REF!","v":{"$error":"#REF!"}},{"$f":"SUMIFS($AA$40:$AA$85,$C$40:$C$85,Расчеты!#REF!,$D$40:$D$85,\"=500\",$E$40:$E$85,Расчеты!#REF!,$F$40:$F$85,Расчеты!#REF!)","v":0}]
[null,null,null,null,null,null,null,"Остатки",null,null,null,null,0,null,null,null,null,null,null,null,null,null,null,null,null,{"$f":"SUMIFS($Z$40:$Z$85,$C$40:$C$85,Расчеты!#REF!,$D$40:$D$85,\"=500\",$E$40:$E$85,Расчеты!#REF!,$F$40:$F$85,Расчеты!#REF!)","v":0},null,null,null,{"$f":"SUMIFS($AA$40:$AA$85,$C$40:$C$85,Расчеты!#REF!,$D$40:$D$85,\"=500\",$E$40:$E$85,Расчеты!#REF!,$F$40:$F$85,Расчеты!#REF!)","v":0}]
[null,null,null,null,null,null,null,"общая",null,null,null,null,{"$f":"M152+M153","v":0},null,null,{"$f":"P152+P153","v":0},null,null,{"$f":"S152","v":0},null,null,{"$f":"V152+V153+AC152","v":{"$error":"#REF!"}},null,null,null,{"$f":"Z152+Z153","v":0}]
[null,null,null,null,null,null,null,"",null,0,null,{"$f":"Расчеты!#REF!","v":{"$error":"#REF!"}},0,null,null,null,null,null,null,null,null,null,null,null,null,null,null,{"$f":"AD155+AD156-AC155","v":{"$error":"#REF!"}},{"$f":"Расчеты!#REF!*Расчеты!#REF!/1000/2*Расчеты!#REF!","v":{"$error":"#REF!"}},{"$f":"SUMIFS($AA$40:$AA$85,$C$40:$C$85,Расчеты!#REF!,$D$40:$D$85,\"=500\",$E$40:$E$85,Расчеты!#REF!,$F$40:$F$85,Расчеты!#REF!)","v":0}]
[null,null,null,null,null,null,null,"Остатки",null,null,null,null,0,null,null,null,null,null,null,null,null,null,null,null,null,{"$f":"SUMIFS($Z$40:$Z$85,$C$40:$C$85,Расчеты!#REF!,$D$40:$D$85,\"=500\",$E$40:$E$85,Расчеты!#REF!,$F$40:$F$85,Расчеты!#REF!)","v":0},null,null,null,{"$f":"SUMIFS($AA$40:$AA$85,$C$40:$C$85,Расчеты!#REF!,$D$40:$D$85,\"=500\",$E$40:$E$85,Расчеты!#REF!,$F$40:$F$85,Расчеты!#REF!)","v":0}]
[null,null,null,null,null,null,null,"общая",null,null,null,null,{"$f":"M155+M156","v":0},null,null,{"$f":"P155+P156","v":0},null,null,{"$f":"S155","v":0},null,null,{"$f":"V155+V156+AC155","v":{"$error":"#REF!"}},null,null,null,{"$f":"Z155+Z156","v":0}]
[null,null,null,null,null,null,null,"",null,0,null,{"$f":"Расчеты!#REF!","v":{"$error":"#REF!"}},0,null,null,null,null,null,null,null,null,null,null,null,null,null,null,{"$f":"AD158+AD159-AC158","v":{"$error":"#REF!"}},{"$f":"Расчеты!#REF!*Расчеты!#REF!/1000/2*Расчеты!#REF!","v":{"$error":"#REF!"}},{"$f":"SUMIFS($AA$40:$AA$85,$C$40:$C$85,Расчеты!#REF!,$D$40:$D$85,\"=500\",$E$40:$E$85,Расчеты!#REF!,$F$40:$F$85,Расчеты!#REF!)","v":0}]
[null,null,null,null,null,null,null,"Остатки",null,null,null,null,0,null,null,null,null,null,null,null,null,null,null,null,null,{"$f":"SUMIFS($Z$40:$Z$85,$C$40:$C$85,Расчеты!#REF!,$D$40:$D$85,\"=500\",$E$40:$E$85,Расчеты!#REF!,$F$40:$F$85,Расчеты!#REF!)","v":0},null,null,null,{"$f":"SUMIFS($AA$40:$AA$85,$C$40:$C$85,Расчеты!#REF!,$D$40:$D$85,\"=500\",$E$40:$E$85,Расчеты!#REF!,$F$40:$F$85,Расчеты!#REF!)","v":0}]
[null,null,null,null,null,null,null,"общая",null,null,null,null,{"$f":"M158+M159","v":0},null,null,{"$f":"P158+P159","v":0},null,null,{"$f":"S158","v":0},null,null,{"$f":"V158+V159+AC158","v":{"$error":"#REF!"}},null,null,null,{"$f":"Z158+Z159","v":0}]
[null,null,null,null,null,null,null,"",null,0,null,{"$f":"Расчеты!#REF!","v":{"$error":"#REF!"}},0,null,null,null,null,null,null,null,null,null,null,null,null,null,null,{"$f":"AD161+AD162-AC161","v":{"$error":"#REF!"}},{"$f":"Расчеты!#REF!*Расчеты!#REF!/1000/2*Расчеты!#REF!","v":{"$error":"#REF!"}},{"$f":"SUMIFS($AA$40:$AA$85,$C$40:$C$85,Расчеты!#REF!,$D$40:$D$85,\"=500\",$E$40:$E$85,Расчеты!#REF!,$F$40:$F$85,Расчеты!#REF!)","v":0}]
[null,null,null,null,null,null,null,"Остатки",null,null,null,null,0,null,null,null,null,null,null,null,null,null,null,null,null,{"$f":"SUMIFS($Z$40:$Z$85,$C$40:$C$85,Расчеты!#REF!,$D$40:$D$85,\"=500\",$E$40:$E$85,Расчеты!#REF!,$F$40:$F$85,Расчеты!#REF!)","v":0},null,null,null,{"$f":"SUMIFS($AA$40:$AA$85,$C$40:$C$85,Расчеты!#REF!,$D$40:$D$85,\"=500\",$E$40:$E$85,Расчеты!#REF!,$F$40:$F$85,Расчеты!#REF!)","v":0}]
[null,null,null,null,null,null,null,"общая",null,null,null,null,{"$f":"M161+M162","v":0},null,null,{"$f":"P161+P162","v":0},null,null,{"$f":"S161","v":0},null,null,{"$f":"V161+V162+AC161","v":{"$error":"#REF!"}},null,null,null,{"$f":"Z161+Z162","v":0}]
[null,null,null,null,null,null,null,"",null,0,null,{"$f":"Расчеты!#REF!","v":{"$error":"#REF!"}},0,null,null,null,null,null,null,null,null,null,null,null,null,null,null,{"$f":"AD164+AD165-AC164","v":{"$error":"#REF!"}},{"$f":"Расчеты!#REF!*Расчеты!#REF!/1000/2*Расчеты!#REF!","v":{"$error":"#REF!"}},{"$f":"SUMIFS($AA$40:$AA$85,$C$40:$C$85,Расчеты!#REF!,$D$40:$D$85,\"=500\",$E$40:$E$85,Расчеты!#REF!,$F$40:$F$85,Расчеты!#REF!)","v":0}]
[null,null,null,null,null,null,null,"Остатки",null,null,null,null,0,null,null,null,null,null,null,null,null,null,null,null,null,{"$f":"SUMIFS($Z$40:$Z$85,$C$40:$C$85,Расчеты!#REF!,$D$40:$D$85,\"=500\",$E$40:$E$85,Расчеты!#REF!,$F$40:$F$85,Расчеты!#REF!)","v":0},null,null,null,{"$f":"SUMIFS($AA$40:$AA$85,$C$40:$C$85,Расчеты!#REF!,$D$40:$D$85,\"=500\",$E$40:$E$85,Расчеты!#REF!,$F$40:$F$85,Расчеты!#REF!)","v":0}]
[null,null,null,null,null,null,null,"общая",null,null,null,null,{"$f":"M164+M165","v":0},null,null,{"$f":"P164+P165","v":0},null,null,{"$f":"S164","v":0},null,null,{"$f":"V164+V165+AC164","v":{"$error":"#REF!"}},null,null,null,{"$f":"Z164+Z165","v":0}]
[null,null,null,null,null,null,null,"",null,0,null,{"$f":"Расчеты!#REF!","v":{"$error":"#REF!"}},0,null,null,null,null,null,null,null,null,null,null,null,null,null,null,{"$f":"AD167+AD168-AC167","v":{"$error":"#REF!"}},{"$f":"Расчеты!#REF!*Расчеты!#REF!/1000/2*Расчеты!#REF!","v":{"$error":"#REF!"}},{"$f":"SUMIFS($AA$40:$AA$85,$C$40:$C$85,Расчеты!#REF!,$D$40:$D$85,\"=500\",$E$40:$E$85,Расчеты!#REF!,$F$40:$F$85,Расчеты!#REF!)","v":0}]
[null,null,null,null,null,null,null,"Остатки",null,null,null,null,0,null,null,null,null,null,null,null,null,null,null,null,null,{"$f":"SUMIFS($Z$40:$Z$85,$C$40:$C$85,Расчеты!#REF!,$D$40:$D$85,\"=500\",$E$40:$E$85,Расчеты!#REF!,$F$40:$F$85,Расчеты!#REF!)","v":0},null,null,null,{"$f":"SUMIFS($AA$40:$AA$85,$C$40:$C$85,Расчеты!#REF!,$D$40:$D$85,\"=500\",$E$40:$E$85,Расчеты!#REF!,$F$40:$F$85,Расчеты!#REF!)","v":0}]
[null,null,null,null,null,null,null,"общая",null,null,null,null,{"$f":"M167+M168","v":0},null,null,{"$f":"P167+P168","v":0},null,null,{"$f":"S167","v":0},null,null,{"$f":"V167+V168+AC167","v":{"$error":"#REF!"}},null,null,null,{"$f":"Z167+Z168","v":0}]
[null,null,null,null,null,null,null,"",null,0,null,{"$f":"Расчеты!#REF!","v":{"$error":"#REF!"}},0,null,null,null,null,null,null,null,null,null,null,null,null,null,null,{"$f":"AD170+AD171-AC170","v":{"$error":"#REF!"}},{"$f":"Расчеты!#REF!*Расчеты!#REF!/1000/2*Расчеты!#REF!","v":{"$error":"#REF!"}},{"$f":"SUMIFS($AA$40:$AA$85,$C$40:$C$85,Расчеты!#REF!,$D$40:$D$85,\"=500\",$E$40:$E$85,Расчеты!#REF!,$F$40:$F$85,Расчеты!#REF!)","v":0}]
[null,null,null,null,null,null,null,"Остатки",null,null,null,null,0,null,null,null,null,null,null,null,null,null,null,null,null,{"$f":"SUMIFS($Z$40:$Z$85,$C$40:$C$85,Расчеты!#REF!,$D$40:$D$85,\"=500\",$E$40:$E$85,Расчеты!#REF!,$F$40:$F$85,Расчеты!#REF!)","v":0},null,null,null,{"$f":"SUMIFS($AA$40:$AA$85,$C$40:$C$85,Расчеты!#REF!,$D$40:$D$85,\"=500\",$E$40:$E$85,Расчеты!#REF!,$F$40:$F$85,Расчеты!#REF!)","v":0}]
[null,null,null,null,null,null,null,"общая",null,null,null,null,{"$f":"M170+M171","v":0},null,null,{"$f":"P170+P171","v":0},null,null,{"$f":"S170","v":0},null,null,{"$f":"V170+V171+AC170","v":{"$error":"#REF!"}},null,null,null,{"$f":"Z170+Z171","v":0}]
[null,null,null,null,null,null,null,"",null,0,null,{"$f":"Расчеты!#REF!","v":{"$error":"#REF!"}},0,null,null,null,null,null,null,null,null,null,null,null,null,null,null,{"$f":"AD173+AD174-AC173","v":{"$error":"#REF!"}},{"$f":"Расчеты!#REF!*Расчеты!#REF!/1000/2*Расчеты!#REF!","v":{"$error":"#REF!"}},{"$f":"SUMIFS($AA$40:$AA$85,$C$40:$C$85,Расчеты!#REF!,$D$40:$D$85,\"=500\",$E$40:$E$85,Расчеты!#REF!,$F$40:$F$85,Расчеты!#REF!)","v":0}]
[null,null,null,null,null,null,null,"Остатки",null,null,null,null,0,null,null,null,null,null,null,null,null,null,null,null,null,{"$f":"SUMIFS($Z$40:$Z$85,$C$40:$C$85,Расчеты!#REF!,$D$40:$D$85,\"=500\",$E$40:$E$85,Расчеты!#REF!,$F$40:$F$85,Расчеты!#REF!)","v":0},null,null,null,{"$f":"SUMIFS($AA$40:$AA$85,$C$40:$C$85,Расчеты!#REF!,$D$40:$D$85,\"=500\",$E$40:$E$85,Расчеты!#REF!,$F$40:$F$85,Расчеты!#REF!)","v":0}]
[null,null,null,null,null,null,null,"общая",null,null,null,null,{"$f":"M173+M174","v":0},null,null,{"$f":"P173+P174","v":0},null,null,{"$f":"S173","v":0},null,null,{"$f":"V173+V174+AC173","v":{"$error":"#REF!"}},null,null,null,{"$f":"Z173+Z174","v":0}]
[null,null,null,null,null,null,null,"",null,0,null,{"$f":"Расчеты!#REF!","v":{"$error":"#REF!"}},0,null,null,null,null,null,null,null,null,null,null,null,null,null,null,{"$f":"AD176+AD177-AC176","v":{"$error":"#REF!"}},{"$f":"Расчеты!#REF!*Расчеты!#REF!/1000/2*Расчеты!#REF!","v":{"$error":"#REF!"}},{"$f":"SUMIFS($AA$40:$AA$85,$C$40:$C$85,Расчеты!#REF!,$D$40:$D$85,\"=500\",$E$40:$E$85,Расчеты!#REF!,$F$40:$F$85,Расчеты!#REF!)","v":0}]
[null,null,null,null,null,null,null,"Остатки",null,null,null,null,0,null,null,null,null,null,null,null,null,null,null,null,null,{"$f":"SUMIFS($Z$40:$Z$85,$C$40:$C$85,Расчеты!#REF!,$D$40:$D$85,\"=500\",$E$40:$E$85,Расчеты!#REF!,$F$40:$F$85,Расчеты!#REF!)","v":0},null,null,null,{"$f":"SUMIFS($AA$40:$AA$85,$C$40:$C$85,Расчеты!#REF!,$D$40:$D$85,\"=500\",$E$40:$E$85,Расчеты!#REF!,$F$40:$F$85,Расчеты!#REF!)","v":0}]
[null,null,null,null,null,null,null,"общая",null,null,null,null,{"$f":"M176+M177","v":0},null,null,{"$f":"P176+P177","v":0},null,null,{"$f":"S176","v":0},null,null,{"$f":"V176+V177+AC176","v":{"$error":"#REF!"}},null,null,null,{"$f":"Z176+Z177","v":0}]
[null,null,null,null,null,null,null,"",null,0,null,{"$f":"Расчеты!#REF!","v":{"$error":"#REF!"}},0,null,null,null,null,null,null,null,null,null,null,null,null,null,null,{"$f":"AD179+AD180-AC179","v":{"$error":"#REF!"}},{"$f":"Расчеты!#REF!*Расчеты!#REF!/1000/2*Расчеты!#REF!","v":{"$error":"#REF!"}},{"$f":"SUMIFS($AA$40:$AA$85,$C$40:$C$85,Расчеты!#REF!,$D$40:$D$85,\"=500\",$E$40:$E$85,Расчеты!#REF!,$F$40:$F$85,Расчеты!#REF!)","v":0}]
[null,null,null,null,null,null,null,"Остатки",null,null,null,null,0,null,null,null,null,null,null,null,null,null,null,null,null,{"$f":"SUMIFS($Z$40:$Z$85,$C$40:$C$85,Расчеты!#REF!,$D$40:$D$85,\"=500\",$E$40:$E$85,Расчеты!#REF!,$F$40:$F$85,Расчеты!#REF!)","v":0},null,null,null,{"$f":"SUMIFS($AA$40:$AA$85,$C$40:$C$85,Расчеты!#REF!,$D$40:$D$85,\"=500\",$E$40:$E$85,Расчеты!#REF!,$F$40:$F$85,Расчеты!#REF!)","v":0}]
[null,null,null,null,null,null,null,"общая",null,null,null,null,{"$f":"M179+M180","v":0},null,null,{"$f":"P179+P180","v":0},null,null,{"$f":"S179","v":0},null,null,{"$f":"V179+V180+AC179","v":{"$error":"#REF!"}},null,null,null,{"$f":"Z179+Z180","v":0}]
[null,null,null,null,null,null,null,"",null,0,null,{"$f":"Расчеты!#REF!","v":{"$error":"#REF!"}},0,null,null,null,null,null,null,null,null,null,null,null,null,null,null,{"$f":"AD182+AD183-AC182","v":{"$error":"#REF!"}},{"$f":"Расчеты!#REF!*Расчеты!#REF!/1000/2*Расчеты!#REF!","v":{"$error":"#REF!"}},{"$f":"SUMIFS($AA$40:$AA$85,$C$40:$C$85,Расчеты!#REF!,$D$40:$D$85,\"=500\",$E$40:$E$85,Расчеты!#REF!,$F$40:$F$85,Расчеты!#REF!)","v":0}]
[null,null,null,null,null,null,null,"Остатки",null,null,null,null,0,null,null,null,null,null,null,null,null,null,null,null,null,{"$f":"SUMIFS($Z$40:$Z$85,$C$40:$C$85,Расчеты!#REF!,$D$40:$D$85,\"=500\",$E$40:$E$85,Расчеты!#REF!,$F$40:$F$85,Расчеты!#REF!)","v":0},null,null,null,{"$f":"SUMIFS($AA$40:$AA$85,$C$40:$C$85,Расчеты!#REF!,$D$40:$D$85,\"=500\",$E$40:$E$85,Расчеты!#REF!,$F$40:$F$85,Расчеты!#REF!)","v":0}]
[null,null,null,null,null,null,null,"общая",null,null,null,null,{"$f":"M182+M183","v":0},null,null,{"$f":"P182+P183","v":0},null,null,{"$f":"S182","v":0},null,null,{"$f":"V182+V183+AC182","v":{"$error":"#REF!"}},null,null,null,{"$f":"Z182+Z183","v":0}]
[null,null,null,null,null,null,null,"",null,0,null,{"$f":"Расчеты!#REF!","v":{"$error":"#REF!"}},0,null,null,null,null,null,null,null,null,null,null,null,null,null,null,{"$f":"AD185+AD186-AC185","v":{"$error":"#REF!"}},{"$f":"Расчеты!#REF!*Расчеты!#REF!/1000/2*Расчеты!#REF!","v":{"$error":"#REF!"}},{"$f":"SUMIFS($AA$40:$AA$85,$C$40:$C$85,Расчеты!#REF!,$D$40:$D$85,\"=500\",$E$40:$E$85,Расчеты!#REF!,$F$40:$F$85,Расчеты!#REF!)","v":0}]
[null,null,null,null,null,null,null,"Остатки",null,null,null,null,0,null,null,null,null,null,null,null,null,null,null,null,null,{"$f":"SUMIFS($Z$40:$Z$85,$C$40:$C$85,Расчеты!#REF!,$D$40:$D$85,\"=500\",$E$40:$E$85,Расчеты!#REF!,$F$40:$F$85,Расчеты!#REF!)","v":0},null,null,null,{"$f":"SUMIFS($AA$40:$AA$85,$C$40:$C$85,Расчеты!#REF!,$D$40:$D$85,\"=500\",$E$40:$E$85,Расчеты!#REF!,$F$40:$F$85,Расчеты!#REF!)","v":0}]
[null,null,null,null,null,null,null,"общая",null,null,null,null,{"$f":"M185+M186","v":0},null,null,{"$f":"P185+P186","v":0},null,null,{"$f":"S185","v":0},null,null,{"$f":"V185+V186+AC185","v":{"$error":"#REF!"}},null,null,null,{"$f":"Z185+Z186","v":0}]
[null,null,null,null,null,null,null,null,null,null,null,{"$f":"Расчеты!#REF!","v":{"$error":"#REF!"}},null,null,null,null,null,null,null,null,null,null,null,null,null,null,null,{"$f":"AD188+AD189-AC188","v":{"$error":"#REF!"}},{"$f":"Расчеты!#REF!*Расчеты!#REF!/1000/2*Расчеты!#REF!","v":{"$error":"#REF!"}},{"$f":"SUMIFS($AA$40:$AA$85,$C$40:$C$85,Расчеты!#REF!,$D$40:$D$85,\"=500\",$E$40:$E$85,Расчеты!#REF!,$F$40:$F$85,Расчеты!#REF!)","v":0}]
[null,null,null,null,null,null,null,"Остатки",null,null,null,null,null,null,null,null,null,null,null,null,null,null,null,null,null,{"$f":"SUMIFS($Z$40:$Z$85,$C$40:$C$85,Расчеты!#REF!,$D$40:$D$85,\"=500\",$E$40:$E$85,Расчеты!#REF!,$F$40:$F$85,Расчеты!#REF!)","v":0},null,null,null,{"$f":"SUMIFS($AA$40:$AA$85,$C$40:$C$85,Расчеты!#REF!,$D$40:$D$85,\"=500\",$E$40:$E$85,Расчеты!#REF!,$F$40:$F$85,Расчеты!#REF!)","v":0}]
[null,null,null,null,null,null,null,"общая",null,null,null,null,{"$f":"M188+M189","v":0},null,null,{"$f":"P188+P189","v":0},null,null,{"$f":"S188","v":0},null,null,{"$f":"V188+V189+AC188","v":{"$error":"#REF!"}},null,null,null,{"$f":"Z188+Z189","v":0}]
[null,null,null,null,null,null,null,"Кол-во",null,"Площадь деталей всего, кв.м",null,{"$f":"Расчеты!#REF!","v":{"$error":"#REF!"}},"Получил кла-довщик",null,null,"Получил кладовщик",null,null,"ЛОМ (кг)",null,null,"Получил",null,null,null,"Количество деталей",null,{"$f":"AD191+AD192-AC191","v":{"$error":"#REF!"}},{"$f":"Расчеты!#REF!*Расчеты!#REF!/1000/2*Расчеты!#REF!","v":{"$error":"#REF!"}},{"$f":"SUMIFS($AA$40:$AA$85,$C$40:$C$85,Расчеты!#REF!,$D$40:$D$85,\"=500\",$E$40:$E$85,Расчеты!#REF!,$F$40:$F$85,Расчеты!#REF!)","v":0}]
[null,null,null,null,null,null,null,"Остатки",null,null,null,null,"Получил кла-довщик",null,null,"Масса деталей (кг)",null,null,null,null,null,"Деловой остаток на склад (кг)",null,null,null,{"$f":"SUMIFS($Z$40:$Z$85,$C$40:$C$85,Расчеты!#REF!,$D$40:$D$85,\"=500\",$E$40:$E$85,Расчеты!#REF!,$F$40:$F$85,Расчеты!#REF!)","v":0},null,null,null,{"$f":"SUMIFS($AA$40:$AA$85,$C$40:$C$85,Расчеты!#REF!,$D$40:$D$85,\"=500\",$E$40:$E$85,Расчеты!#REF!,$F$40:$F$85,Расчеты!#REF!)","v":0}]
[null,null,null,null,null,null,null,"общая",null,null,null,null,{"$f":"M191+M192","v":{"$error":"#VALUE!"}},null,null,{"$f":"P191+P192","v":{"$error":"#VALUE!"}},null,null,{"$f":"S191","v":"ЛОМ (кг)"},null,null,{"$f":"V191+V192+AC191","v":{"$error":"#VALUE!"}},null,null,null,{"$f":"Z191+Z192","v":{"$error":"#VALUE!"}}]
[null,"Подпись",null,null,null,"Инженер-технолог",null,null,"факт"]
[null,"Подпись",null,null,null,"Нач техотдела",null,"Остатки",null,null,null,null,null,null,null,"теория",null,null,null,null,null,"теория"]
[null,"Подпись",null,null,null,"Генеральный директор"]
[null,null,null,null,null,null,null,null,null,null,null,null,null,null,null,null,null,null,0]
[null,null,null,null,null,null,null,"Остатки",null,null,null,null,null,null,null,0,null,null,null,null,null,0]
[]
[null,null,null,null,null,null,null,null,null,null,null,null,null,null,null,null,null,null,0]
[null,null,null,null,null,null,null,"Остатки",null,null,null,null,null,null,null,0,null,null,null,null,null,0]

{"sheet":"Д","index":1,"n_rows":24,"n_cols":7,"rows_kept":24,"cut":false,"hidden":false,"merged":[]}
[{"$f":"IF(Труба!I9=0,\"z\",1)","v":"z"},{"$f":"CONCATENATE(\"х\",Труба!G9,\"х\",Труба!C9)","v":"хх"},{"$f":"Труба!I7","v":10},{"$f":"Труба!E9","v":0},{"$f":"Труба!I9","v":0},{"$f":"Лист3!G4","v":0},{"$f":"Лист3!F4","v":0}]
[{"$f":"IF(Труба!I10=0,\"z\",1)","v":"z"},{"$f":"CONCATENATE(\"х\",Труба!G10,\"х\",Труба!C10)","v":"хх"},{"$f":"Труба!I7","v":10},{"$f":"Труба!E10","v":0},{"$f":"Труба!I10","v":0},{"$f":"Лист3!G5","v":0},{"$f":"Лист3!F5","v":0}]
[{"$f":"IF(Труба!I11=0,\"z\",1)","v":"z"},{"$f":"CONCATENATE(\"х\",Труба!G11,\"х\",Труба!C11)","v":"хх"},{"$f":"Труба!I7","v":10},{"$f":"Труба!E11","v":0},{"$f":"Труба!I11","v":0},{"$f":"Лист3!G6","v":0},{"$f":"Лист3!F6","v":0}]
[{"$f":"IF(Труба!I12=0,\"z\",1)","v":"z"},{"$f":"CONCATENATE(\"х\",Труба!G12,\"х\",Труба!C12)","v":"хх"},{"$f":"Труба!I7","v":10},{"$f":"Труба!E12","v":0},{"$f":"Труба!I12","v":0},{"$f":"Лист3!G7","v":0},{"$f":"Лист3!F7","v":0}]
[{"$f":"IF(Труба!I13=0,\"z\",1)","v":"z"},{"$f":"CONCATENATE(\"х\",Труба!G13,\"х\",Труба!C13)","v":"хх"},{"$f":"Труба!I7","v":10},{"$f":"Труба!E13","v":0},{"$f":"Труба!I13","v":0},{"$f":"Лист3!G8","v":0},{"$f":"Лист3!F8","v":0}]
[{"$f":"IF(Труба!I14=0,\"z\",1)","v":"z"},{"$f":"CONCATENATE(\"х\",Труба!G14,\"х\",Труба!C14)","v":"хх"},{"$f":"Труба!I7","v":10},{"$f":"Труба!E14","v":0},{"$f":"Труба!I14","v":0},{"$f":"Лист3!G9","v":0},{"$f":"Лист3!F9","v":0}]
[{"$f":"IF(Труба!I15=0,\"z\",1)","v":"z"},{"$f":"CONCATENATE(\"х\",Труба!G15,\"х\",Труба!C15)","v":"хх"},{"$f":"Труба!I7","v":10},{"$f":"Труба!E15","v":0},{"$f":"Труба!I15","v":0},{"$f":"Лист3!G10","v":0},{"$f":"Лист3!F10","v":0}]
[{"$f":"IF(Труба!I16=0,\"z\",1)","v":"z"},{"$f":"CONCATENATE(\"х\",Труба!G16,\"х\",Труба!C16)","v":"хх"},{"$f":"Труба!I7","v":10},{"$f":"Труба!E16","v":0},{"$f":"Труба!I16","v":0},{"$f":"Лист3!G11","v":0},{"$f":"Лист3!F11","v":0}]
[{"$f":"IF(Труба!I17=0,\"z\",1)","v":"z"},{"$f":"CONCATENATE(\"х\",Труба!G17,\"х\",Труба!C17)","v":"хх"},{"$f":"Труба!I7","v":10},{"$f":"Труба!E17","v":0},{"$f":"Труба!I17","v":0},{"$f":"Лист3!G12","v":0},{"$f":"Лист3!F12","v":0}]
[{"$f":"IF(Труба!I18=0,\"z\",1)","v":"z"},{"$f":"CONCATENATE(\"х\",Труба!G18,\"х\",Труба!C18)","v":"хх"},{"$f":"Труба!I7","v":10},{"$f":"Труба!E18","v":0},{"$f":"Труба!I18","v":0},{"$f":"Лист3!G13","v":0},{"$f":"Лист3!F13","v":0}]
[{"$f":"IF(Труба!I19=0,\"z\",1)","v":"z"},{"$f":"CONCATENATE(\"х\",Труба!G19,\"х\",Труба!C19)","v":"хх"},{"$f":"Труба!I7","v":10},{"$f":"Труба!E19","v":0},{"$f":"Труба!I19","v":0},{"$f":"Лист3!G14","v":0},{"$f":"Лист3!F14","v":0}]
[{"$f":"IF(Труба!#REF!=0,\"z\",1)","v":{"$error":"#REF!"}},{"$f":"CONCATENATE(\"х\",Труба!#REF!,\"х\",Труба!#REF!)","v":{"$error":"#REF!"}},{"$f":"Труба!I7","v":10},{"$f":"Труба!#REF!","v":{"$error":"#REF!"}},{"$f":"Труба!#REF!","v":{"$error":"#REF!"}},{"$f":"Лист3!G15","v":{"$error":"#REF!"}},{"$f":"Лист3!F15","v":{"$error":"#REF!"}}]
[{"$f":"IF(Труба!#REF!=0,\"z\",1)","v":{"$error":"#REF!"}},{"$f":"CONCATENATE(\"х\",Труба!#REF!,\"х\",Труба!#REF!)","v":{"$error":"#REF!"}},{"$f":"Труба!I7","v":10},{"$f":"Труба!#REF!","v":{"$error":"#REF!"}},{"$f":"Труба!#REF!","v":{"$error":"#REF!"}},{"$f":"Лист3!G16","v":{"$error":"#REF!"}},{"$f":"Лист3!F16","v":{"$error":"#REF!"}}]
[{"$f":"IF(Труба!#REF!=0,\"z\",1)","v":{"$error":"#REF!"}},{"$f":"CONCATENATE(\"х\",Труба!#REF!,\"х\",Труба!#REF!)","v":{"$error":"#REF!"}},{"$f":"Труба!I7","v":10},{"$f":"Труба!#REF!","v":{"$error":"#REF!"}},{"$f":"Труба!#REF!","v":{"$error":"#REF!"}},{"$f":"Лист3!G17","v":{"$error":"#REF!"}},{"$f":"Лист3!F17","v":{"$error":"#REF!"}}]
[{"$f":"IF(Труба!I28=0,\"z\",1)","v":"z"},{"$f":"CONCATENATE(\"х\",Труба!G28,\"х\",Труба!C28)","v":"хх"},{"$f":"Труба!I7","v":10},{"$f":"Труба!E28","v":0},{"$f":"Труба!I28","v":0},{"$f":"Лист3!G18","v":0},{"$f":"Лист3!F18","v":0}]
[{"$f":"IF(Труба!I29=0,\"z\",1)","v":"z"},{"$f":"CONCATENATE(\"х\",Труба!G29,\"х\",Труба!C29)","v":"хх"},{"$f":"Труба!I7","v":10},{"$f":"Труба!E29","v":0},{"$f":"Труба!I29","v":0},{"$f":"Лист3!G19","v":0},{"$f":"Лист3!F19","v":0}]
[{"$f":"IF(Труба!I30=0,\"z\",1)","v":"z"},{"$f":"CONCATENATE(\"х\",Труба!G30,\"х\",Труба!C30)","v":"хх"},{"$f":"Труба!I7","v":10},{"$f":"Труба!E30","v":0},{"$f":"Труба!I30","v":0},{"$f":"Лист3!G20","v":0},{"$f":"Лист3!F20","v":0}]
[{"$f":"IF(Труба!I31=0,\"z\",1)","v":"z"},{"$f":"CONCATENATE(\"х\",Труба!G31,\"х\",Труба!C31)","v":"хх"},{"$f":"Труба!I7","v":10},{"$f":"Труба!E31","v":0},{"$f":"Труба!I31","v":0},{"$f":"Лист3!G21","v":0},{"$f":"Лист3!F21","v":0}]
[{"$f":"IF(Труба!I32=0,\"z\",1)","v":"z"},{"$f":"CONCATENATE(\"х\",Труба!G32,\"х\",Труба!C32)","v":"хх"},{"$f":"Труба!I7","v":10},{"$f":"Труба!E32","v":0},{"$f":"Труба!I32","v":0},{"$f":"Лист3!G22","v":0},{"$f":"Лист3!F22","v":0}]
[{"$f":"IF(Труба!I33=0,\"z\",1)","v":"z"},{"$f":"CONCATENATE(\"х\",Труба!G33,\"х\",Труба!C33)","v":"хх"},{"$f":"Труба!I7","v":10},{"$f":"Труба!E33","v":0},{"$f":"Труба!I33","v":0},{"$f":"Лист3!G23","v":0},{"$f":"Лист3!F23","v":0}]
[{"$f":"IF(Труба!I34=0,\"z\",1)","v":"z"},{"$f":"CONCATENATE(\"х\",Труба!G34,\"х\",Труба!C34)","v":"хх"},{"$f":"Труба!I7","v":10},{"$f":"Труба!E34","v":0},{"$f":"Труба!I34","v":0},{"$f":"Лист3!G24","v":0},{"$f":"Лист3!F24","v":0}]
[{"$f":"IF(Труба!I35=0,\"z\",1)","v":"z"},{"$f":"CONCATENATE(\"х\",Труба!G35,\"х\",Труба!C35)","v":"хх"},{"$f":"Труба!I7","v":10},{"$f":"Труба!E35","v":0},{"$f":"Труба!I35","v":0},{"$f":"Лист3!G25","v":0},{"$f":"Лист3!F25","v":0}]
[{"$f":"IF(Труба!I36=0,\"z\",1)","v":"z"},{"$f":"CONCATENATE(\"х\",Труба!G36,\"х\",Труба!C36)","v":"хх"},{"$f":"Труба!I7","v":10},{"$f":"Труба!E36","v":0},{"$f":"Труба!I36","v":0},{"$f":"Лист3!G26","v":0},{"$f":"Лист3!F26","v":0}]
[null,null,null,null,null,null,{"$f":"SUM(G1:G23)","v":{"$error":"#REF!"}}]

{"sheet":"Лист3","index":2,"n_rows":28,"n_cols":9,"rows_kept":28,"cut":false,"hidden":false,"merged":[]}
[null,null,null,null,null,{"$f":"Труба!L9","v":0}]
[null,null,null,null,null,null,{"$f":"SUM(E4:E27)","v":{"$error":"#REF!"}},{"$f":"B28","v":{"$error":"#REF!"}},{"$f":"(H2-G2)/D28","v":{"$error":"#REF!"}}]
[]
[null,{"$f":"IF(Труба!#REF!=\"z\",0,Труба!#REF!)","v":{"$error":"#REF!"}},null,{"$f":"IF(E4=0,0,1)","v":0},{"$f":"IF(Труба!L9=0,0,Труба!L9)","v":0},{"$f":"IF(E4=0,0,I2+E4)","v":0},{"$f":"IF(F4=0,0,F4/Труба!I7)","v":0}]
[null,{"$f":"IF(Труба!#REF!=\"z\",0,Труба!#REF!)","v":{"$error":"#REF!"}},null,{"$f":"IF(E5=0,0,1)","v":0},{"$f":"IF(Труба!L10=0,0,Труба!L10)","v":0},{"$f":"IF(E5=0,0,I2+E5)","v":0},{"$f":"IF(F5=0,0,F5/Труба!I7)","v":0}]
[null,{"$f":"IF(Труба!#REF!=\"z\",0,Труба!#REF!)","v":{"$error":"#REF!"}},null,0,{"$f":"IF(Труба!L11=0,0,Труба!L11)","v":0},{"$f":"IF(E6=0,0,I2+E6)","v":0},{"$f":"IF(F6=0,0,F6/Труба!I7)","v":0}]
[null,{"$f":"IF(Труба!#REF!=\"z\",0,Труба!#REF!)","v":{"$error":"#REF!"}},null,0,{"$f":"IF(Труба!L12=0,0,Труба!L12)","v":0},{"$f":"IF(E7=0,0,I2+E7)","v":0},{"$f":"IF(F7=0,0,F7/Труба!I7)","v":0}]
[null,{"$f":"IF(Труба!#REF!=\"z\",0,Труба!#REF!)","v":{"$error":"#REF!"}},null,0,{"$f":"IF(Труба!L13=0,0,Труба!L13)","v":0},{"$f":"IF(E8=0,0,I2+E8)","v":0},{"$f":"IF(F8=0,0,F8/Труба!I7)","v":0}]
[null,{"$f":"IF(Труба!B109=\"z\",0,Труба!V109)","v":0},null,0,{"$f":"IF(Труба!L14=0,0,Труба!L14)","v":0},{"$f":"IF(E9=0,0,I2+E9)","v":0},{"$f":"IF(F9=0,0,F9/Труба!I7)","v":0}]
[null,{"$f":"IF(Труба!B112=\"z\",0,Труба!V112)","v":0},null,0,{"$f":"IF(Труба!L15=0,0,Труба!L15)","v":0},{"$f":"IF(E10=0,0,I2+E10)","v":0},{"$f":"IF(F10=0,0,F10/Труба!I7)","v":0}]
[null,{"$f":"IF(Труба!B175=\"z\",0,Труба!V175)","v":{"$error":"#REF!"}},null,0,{"$f":"IF(Труба!L16=0,0,Труба!L16)","v":0},{"$f":"IF(E11=0,0,I2+E11)","v":0},{"$f":"IF(F11=0,0,F11/Труба!I7)","v":0}]
[null,{"$f":"IF(Труба!B178=\"z\",0,Труба!V178)","v":{"$error":"#REF!"}},null,0,{"$f":"IF(Труба!L17=0,0,Труба!L17)","v":0},{"$f":"IF(E12=0,0,I2+E12)","v":0},{"$f":"IF(F12=0,0,F12/Труба!I7)","v":0}]
[null,{"$f":"IF(Труба!B181=\"z\",0,Труба!V181)","v":{"$error":"#REF!"}},null,0,{"$f":"IF(Труба!L18=0,0,Труба!L18)","v":0},{"$f":"IF(E13=0,0,I2+E13)","v":0},{"$f":"IF(F13=0,0,F13/Труба!I7)","v":0}]
[null,{"$f":"IF(Труба!B184=\"z\",0,Труба!V184)","v":{"$error":"#REF!"}},null,0,{"$f":"IF(Труба!L19=0,0,Труба!L19)","v":0},{"$f":"IF(E14=0,0,I2+E14)","v":0},{"$f":"IF(F14=0,0,F14/Труба!I7)","v":0}]
[null,{"$f":"IF(Труба!B187=\"z\",0,Труба!V187)","v":{"$error":"#REF!"}},null,{"$error":"#REF!"},{"$f":"IF(Труба!#REF!=0,0,Труба!#REF!)","v":{"$error":"#REF!"}},{"$f":"IF(E15=0,0,I2+E15)","v":{"$error":"#REF!"}},{"$f":"IF(F15=0,0,F15/Труба!I7)","v":{"$error":"#REF!"}}]
[null,{"$f":"IF(Труба!B190=\"z\",0,Труба!V190)","v":{"$error":"#REF!"}},null,{"$error":"#REF!"},{"$f":"IF(Труба!#REF!=0,0,Труба!#REF!)","v":{"$error":"#REF!"}},{"$f":"IF(E16=0,0,I2+E16)","v":{"$error":"#REF!"}},{"$f":"IF(F16=0,0,F16/Труба!I7)","v":{"$error":"#REF!"}}]
[null,{"$f":"IF(Труба!B193=\"z\",0,Труба!V193)","v":{"$error":"#VALUE!"}},null,{"$error":"#REF!"},{"$f":"IF(Труба!#REF!=0,0,Труба!#REF!)","v":{"$error":"#REF!"}},{"$f":"IF(E17=0,0,I2+E17)","v":{"$error":"#REF!"}},{"$f":"IF(F17=0,0,F17/Труба!I7)","v":{"$error":"#REF!"}}]
[null,{"$f":"IF(Труба!#REF!=\"z\",0,Труба!#REF!)","v":{"$error":"#REF!"}},null,0,{"$f":"IF(Труба!L28=0,0,Труба!L28)","v":0},{"$f":"IF(E18=0,0,I2+E18)","v":0},{"$f":"IF(F18=0,0,F18/Труба!I7)","v":0}]
[{"$f":"IF(Труба!#REF!=\"z\",Труба!#REF!,0)","v":{"$error":"#REF!"}},{"$f":"IF(A19>0.004,Труба!#REF!,0)","v":{"$error":"#REF!"}},null,0,{"$f":"IF(Труба!L29=0,0,Труба!L29)","v":0},{"$f":"IF(E19=0,0,I2+E19)","v":0},{"$f":"IF(F19=0,0,F19/Труба!I7)","v":0}]
[{"$f":"IF(Труба!#REF!=\"z\",Труба!#REF!,0)","v":{"$error":"#REF!"}},{"$f":"IF(A20>0.005,Труба!#REF!,0)","v":{"$error":"#REF!"}},null,0,{"$f":"IF(Труба!L30=0,0,Труба!L30)","v":0},{"$f":"IF(E20=0,0,I2+E20)","v":0},{"$f":"IF(F20=0,0,F20/Труба!I7)","v":0}]
[null,null,null,0,{"$f":"IF(Труба!L31=0,0,Труба!L31)","v":0},{"$f":"IF(E21=0,0,I2+E21)","v":0},{"$f":"IF(F21=0,0,F21/Труба!I7)","v":0}]
[null,null,null,0,{"$f":"IF(Труба!L32=0,0,Труба!L32)","v":0},{"$f":"IF(E22=0,0,I2+E22)","v":0},{"$f":"IF(F22=0,0,F22/Труба!I7)","v":0}]
[null,null,null,0,{"$f":"IF(Труба!L33=0,0,Труба!L33)","v":0},{"$f":"IF(E23=0,0,I2+E23)","v":0},{"$f":"IF(F23=0,0,F23/Труба!I7)","v":0}]
[null,null,null,0,{"$f":"IF(Труба!L34=0,0,Труба!L34)","v":0},{"$f":"IF(E24=0,0,I2+E24)","v":0},{"$f":"IF(F24=0,0,F24/Труба!I7)","v":0}]
[null,null,null,0,{"$f":"IF(Труба!L35=0,0,Труба!L35)","v":0},{"$f":"IF(E25=0,0,I2+E25)","v":0},{"$f":"IF(F25=0,0,F25/Труба!I7)","v":0}]
[null,null,null,0,{"$f":"IF(Труба!L36=0,0,Труба!L36)","v":0},{"$f":"IF(E26=0,0,I2+E26)","v":0},{"$f":"IF(F26=0,0,F26/Труба!I7)","v":0}]
[null,null,null,0,{"$f":"IF(Труба!L37=0,0,Труба!L37)","v":0},{"$f":"IF(E27=0,0,I2+E27)","v":0},{"$f":"IF(F27=0,0,F27/Труба!I7)","v":0}]
[null,{"$f":"Труба!#REF!","v":{"$error":"#REF!"}},null,{"$f":"SUM(D4:D27)","v":{"$error":"#REF!"}},null,{"$f":"SUM(F4:F27)","v":{"$error":"#REF!"}}]

{"sheet":"Расчеты","index":3,"n_rows":37,"n_cols":30,"rows_kept":37,"cut":false,"hidden":false,"merged":[]}
[]
["№ в макросе",null,null,"Cl",1,{"$f":"E2+1","v":2},{"$f":"F2+1","v":3},4,5,6,7,8,9,10,11,12,13,14,15,16,17,18,19,20,21,22,23,24,25,26]
["дублир столбиков",null,null,"D","E","F","G","H","I","J","K","L","M","N","O","P","Q","R","S","T","U","V","W","X","Y","Z","AA","AB","AC","AD"]
[null,null,null,"кол-во\n на план\n этого профиля","Профиль\n(для сортировки)","Название","Размер\nБхМхТ","название в \nАСТРА","толщина\nмм ","масса 2м\n(коэф)","длина трубы\nмм","не равно\n(для расчета)","толщина реза\nмм","Кол-во труб целых","Масса дет. целых","Масса дет. Деловых","Масса деталей","Масса целых","Масса деловых","Масса труб","Дел. ост.  Целых","Дел. ост. Деловых","Деловые остатки","Расход целых","Расход деловых","Общий расход","Лом дубль","Отход на порезку","Чистый лом целых","Чистый лом деловых"]
[null,null,null,{"$f":"SUMIFS(Труба!$I$9:$I$36,Труба!$F$9:$F$36,Таблица1[[#This Row],[название в \nАСТРА]])","v":0},"Круглая","Труба","16х1",1,1,0.74,6000,{"$f":"CONCATENATE(\"<>\",K5)","v":"<>6000"},5,{"$f":"SUMIFS(Труба!$G$40:$G$85,Труба!$C$40:$C$85,Таблица1[[#This Row],[длина трубы\nмм]],Труба!$D$40:$D$85,\"=500\",Труба!$E$40:$E$85,Таблица1[[#This Row],[толщина\nмм ]],Труба!$F$40:$F$85,Таблица1[[#This Row],[название в \nАСТРА]])","v":0},{"$f":"SUMIFS(Труба!$V$40:$V$85,Труба!$C$40:$C$85,Таблица1[[#This Row],[длина трубы\nмм]],Труба!$D$40:$D$85,\"=500\",Труба!$E$40:$E$85,Таблица1[[#This Row],[толщина\nмм ]],Труба!$F$40:$F$85,Таблица1[[#This Row],[название в \nАСТРА]])","v":0},{"$f":"SUMIFS(Труба!$V$40:$V$85,Труба!$C$40:$C$85,Таблица1[[#This Row],[не равно\n(для расчета)]],Труба!$D$40:$D$85,\"=500\",Труба!$E$40:$E$85,Таблица1[[#This Row],[толщина\nмм ]],Труба!$F$40:$F$85,Таблица1[[#This Row],[название в \nАСТРА]])","v":0},{"$f":"Таблица1[[#This Row],[Масса дет. целых]]+Таблица1[[#This Row],[Масса дет. Деловых]]","v":0},{"$f":"SUMIFS(Труба!$M$40:$M$85,Труба!$C$40:$C$85,Таблица1[[#This Row],[длина трубы\nмм]],Труба!$D$40:$D$85,\"=500\",Труба!$E$40:$E$85,Таблица1[[#This Row],[толщина\nмм ]],Труба!$F$40:$F$85,Таблица1[[#This Row],[название в \nАСТРА]])","v":0},{"$f":"SUMIFS(Труба!$M$40:$M$85,Труба!$C$40:$C$85,Таблица1[[#This Row],[не равно\n(для расчета)]],Труба!$D$40:$D$85,\"=500\",Труба!$E$40:$E$85,Таблица1[[#This Row],[толщина\nмм ]],Труба!$F$40:$F$85,Таблица1[[#This Row],[название в \nАСТРА]])","v":0},{"$f":"Таблица1[[#This Row],[Масса целых]]+Таблица1[[#This Row],[Масса деловых]]","v":0},{"$f":"SUMIFS(Труба!$P$40:$P$85,Труба!$C$40:$C$85,Таблица1[[#This Row],[длина трубы\nмм]],Труба!$D$40:$D$85,\"=500\",Труба!$E$40:$E$85,Таблица1[[#This Row],[толщина\nмм ]],Труба!$F$40:$F$85,Таблица1[[#This Row],[название в \nАСТРА]])","v":0},{"$f":"SUMIFS(Труба!$P$40:$P$85,Труба!$C$40:$C$85,Таблица1[[#This Row],[не равно\n(для расчета)]],Труба!$D$40:$D$85,\"=500\",Труба!$E$40:$E$85,Таблица1[[#This Row],[толщина\nмм ]],Труба!$F$40:$F$85,Таблица1[[#This Row],[название в \nАСТРА]])","v":0},{"$f":"Таблица1[[#This Row],[Дел. ост.  Целых]]+Таблица1[[#This Row],[Дел. ост. Деловых]]","v":0},{"$f":"SUMIFS(Труба!$Z$40:$Z$85,Труба!$C$40:$C$85,Таблица1[[#This Row],[длина трубы\nмм]],Труба!$D$40:$D$85,\"=500\",Труба!$E$40:$E$85,Таблица1[[#This Row],[толщина\nмм ]],Труба!$F$40:$F$85,Таблица1[[#This Row],[название в \nАСТРА]])","v":0},{"$f":"SUMIFS(Труба!$Z$40:$Z$85,Труба!$C$40:$C$85,Таблица1[[#This Row],[не равно\n(для расчета)]],Труба!$D$40:$D$85,\"=500\",Труба!$E$40:$E$85,Таблица1[[#This Row],[толщина\nмм ]],Труба!$F$40:$F$85,Таблица1[[#This Row],[название в \nАСТРА]])","v":0},{"$f":"Таблица1[[#This Row],[Расход целых]]+Таблица1[[#This Row],[Расход деловых]]","v":0},{"$f":"Таблица1[[#This Row],[Чистый лом целых]]+Таблица1[[#This Row],[Чистый лом деловых]]-Таблица1[[#This Row],[Отход на порезку]]","v":0},{"$f":"Таблица1[[#This Row],[кол-во\n на план\n этого профиля]]*Таблица1[[#This Row],[толщина реза\nмм]]/1000/2*Таблица1[[#This Row],[масса 2м\n(коэф)]]","v":0},{"$f":"SUMIFS(Труба!$AA$40:$AA$85,Труба!$C$40:$C$85,Таблица1[[#This Row],[длина трубы\nмм]],Труба!$D$40:$D$85,\"=500\",Труба!$E$40:$E$85,Таблица1[[#This Row],[толщина\nмм ]],Труба!$F$40:$F$85,Таблица1[[#This Row],[название в \nАСТРА]])","v":0},{"$f":"SUMIFS(Труба!$AA$40:$AA$85,Труба!$C$40:$C$85,Таблица1[[#This Row],[не равно\n(для расчета)]],Труба!$D$40:$D$85,\"=500\",Труба!$E$40:$E$85,Таблица1[[#This Row],[толщина\nмм ]],Труба!$F$40:$F$85,Таблица1[[#This Row],[название в \nАСТРА]])","v":0}]
[null,null,null,{"$f":"SUMIFS(Труба!$I$9:$I$36,Труба!$F$9:$F$36,Таблица1[[#This Row],[название в \nАСТРА]])","v":0},"Круглая","Труба","20х1","Труба 20 чм, 1.0 мм",1,0.98,6000,"<>6000",5,{"$f":"SUMIFS(Труба!$G$40:$G$85,Труба!$C$40:$C$85,Таблица1[[#This Row],[длина трубы\nмм]],Труба!$D$40:$D$85,\"=500\",Труба!$E$40:$E$85,Таблица1[[#This Row],[толщина\nмм ]],Труба!$F$40:$F$85,Таблица1[[#This Row],[название в \nАСТРА]])","v":0},{"$f":"SUMIFS(Труба!$V$40:$V$85,Труба!$C$40:$C$85,Таблица1[[#This Row],[длина трубы\nмм]],Труба!$D$40:$D$85,\"=500\",Труба!$E$40:$E$85,Таблица1[[#This Row],[толщина\nмм ]],Труба!$F$40:$F$85,Таблица1[[#This Row],[название в \nАСТРА]])","v":0},{"$f":"SUMIFS(Труба!$V$40:$V$85,Труба!$C$40:$C$85,Таблица1[[#This Row],[не равно\n(для расчета)]],Труба!$D$40:$D$85,\"=500\",Труба!$E$40:$E$85,Таблица1[[#This Row],[толщина\nмм ]],Труба!$F$40:$F$85,Таблица1[[#This Row],[название в \nАСТРА]])","v":0},{"$f":"Таблица1[[#This Row],[Масса дет. целых]]+Таблица1[[#This Row],[Масса дет. Деловых]]","v":0},{"$f":"SUMIFS(Труба!$M$40:$M$85,Труба!$C$40:$C$85,Таблица1[[#This Row],[длина трубы\nмм]],Труба!$D$40:$D$85,\"=500\",Труба!$E$40:$E$85,Таблица1[[#This Row],[толщина\nмм ]],Труба!$F$40:$F$85,Таблица1[[#This Row],[название в \nАСТРА]])","v":0},{"$f":"SUMIFS(Труба!$M$40:$M$85,Труба!$C$40:$C$85,Таблица1[[#This Row],[не равно\n(для расчета)]],Труба!$D$40:$D$85,\"=500\",Труба!$E$40:$E$85,Таблица1[[#This Row],[толщина\nмм ]],Труба!$F$40:$F$85,Таблица1[[#This Row],[название в \nАСТРА]])","v":0},{"$f":"Таблица1[[#This Row],[Масса целых]]+Таблица1[[#This Row],[Масса деловых]]","v":0},{"$f":"SUMIFS(Труба!$P$40:$P$85,Труба!$C$40:$C$85,Таблица1[[#This Row],[длина трубы\nмм]],Труба!$D$40:$D$85,\"=500\",Труба!$E$40:$E$85,Таблица1[[#This Row],[толщина\nмм ]],Труба!$F$40:$F$85,Таблица1[[#This Row],[название в \nАСТРА]])","v":0},{"$f":"SUMIFS(Труба!$P$40:$P$85,Труба!$C$40:$C$85,Таблица1[[#This Row],[не равно\n(для расчета)]],Труба!$D$40:$D$85,\"=500\",Труба!$E$40:$E$85,Таблица1[[#This Row],[толщина\nмм ]],Труба!$F$40:$F$85,Таблица1[[#This Row],[название в \nАСТРА]])","v":0},{"$f":"Таблица1[[#This Row],[Дел. ост.  Целых]]+Таблица1[[#This Row],[Дел. ост. Деловых]]","v":0},{"$f":"SUMIFS(Труба!$Z$40:$Z$85,Труба!$C$40:$C$85,Таблица1[[#This Row],[длина трубы\nмм]],Труба!$D$40:$D$85,\"=500\",Труба!$E$40:$E$85,Таблица1[[#This Row],[толщина\nмм ]],Труба!$F$40:$F$85,Таблица1[[#This Row],[название в \nАСТРА]])","v":0},{"$f":"SUMIFS(Труба!$Z$40:$Z$85,Труба!$C$40:$C$85,Таблица1[[#This Row],[не равно\n(для расчета)]],Труба!$D$40:$D$85,\"=500\",Труба!$E$40:$E$85,Таблица1[[#This Row],[толщина\nмм ]],Труба!$F$40:$F$85,Таблица1[[#This Row],[название в \nАСТРА]])","v":0},{"$f":"Таблица1[[#This Row],[Расход целых]]+Таблица1[[#This Row],[Расход деловых]]","v":0},{"$f":"Таблица1[[#This Row],[Чистый лом целых]]+Таблица1[[#This Row],[Чистый лом деловых]]-Таблица1[[#This Row],[Отход на порезку]]","v":0},{"$f":"Таблица1[[#This Row],[кол-во\n на план\n этого профиля]]*Таблица1[[#This Row],[толщина реза\nмм]]/1000/2*Таблица1[[#This Row],[масса 2м\n(коэф)]]","v":0},{"$f":"SUMIFS(Труба!$AA$40:$AA$85,Труба!$C$40:$C$85,Таблица1[[#This Row],[длина трубы\nмм]],Труба!$D$40:$D$85,\"=500\",Труба!$E$40:$E$85,Таблица1[[#This Row],[толщина\nмм ]],Труба!$F$40:$F$85,Таблица1[[#This Row],[название в \nАСТРА]])","v":0},{"$f":"SUMIFS(Труба!$AA$40:$AA$85,Труба!$C$40:$C$85,Таблица1[[#This Row],[не равно\n(для расчета)]],Труба!$D$40:$D$85,\"=500\",Труба!$E$40:$E$85,Таблица1[[#This Row],[толщина\nмм ]],Труба!$F$40:$F$85,Таблица1[[#This Row],[название в \nАСТРА]])","v":0}]
[null,null,null,{"$f":"SUMIFS(Труба!$I$9:$I$36,Труба!$F$9:$F$36,Таблица1[[#This Row],[название в \nАСТРА]])","v":0},"Круглая","Труба","25х1,5","Труба 25 чм, 1.5 мм",1.5,1.86,6000,"<>6000",5,{"$f":"SUMIFS(Труба!$G$40:$G$85,Труба!$C$40:$C$85,Таблица1[[#This Row],[длина трубы\nмм]],Труба!$D$40:$D$85,\"=500\",Труба!$E$40:$E$85,Таблица1[[#This Row],[толщина\nмм ]],Труба!$F$40:$F$85,Таблица1[[#This Row],[название в \nАСТРА]])","v":0},{"$f":"SUMIFS(Труба!$V$40:$V$85,Труба!$C$40:$C$85,Таблица1[[#This Row],[длина трубы\nмм]],Труба!$D$40:$D$85,\"=500\",Труба!$E$40:$E$85,Таблица1[[#This Row],[толщина\nмм ]],Труба!$F$40:$F$85,Таблица1[[#This Row],[название в \nАСТРА]])","v":0},{"$f":"SUMIFS(Труба!$V$40:$V$85,Труба!$C$40:$C$85,Таблица1[[#This Row],[не равно\n(для расчета)]],Труба!$D$40:$D$85,\"=500\",Труба!$E$40:$E$85,Таблица1[[#This Row],[толщина\nмм ]],Труба!$F$40:$F$85,Таблица1[[#This Row],[название в \nАСТРА]])","v":0},{"$f":"Таблица1[[#This Row],[Масса дет. целых]]+Таблица1[[#This Row],[Масса дет. Деловых]]","v":0},{"$f":"SUMIFS(Труба!$M$40:$M$85,Труба!$C$40:$C$85,Таблица1[[#This Row],[длина трубы\nмм]],Труба!$D$40:$D$85,\"=500\",Труба!$E$40:$E$85,Таблица1[[#This Row],[толщина\nмм ]],Труба!$F$40:$F$85,Таблица1[[#This Row],[название в \nАСТРА]])","v":0},{"$f":"SUMIFS(Труба!$M$40:$M$85,Труба!$C$40:$C$85,Таблица1[[#This Row],[не равно\n(для расчета)]],Труба!$D$40:$D$85,\"=500\",Труба!$E$40:$E$85,Таблица1[[#This Row],[толщина\nмм ]],Труба!$F$40:$F$85,Таблица1[[#This Row],[название в \nАСТРА]])","v":0},{"$f":"Таблица1[[#This Row],[Масса целых]]+Таблица1[[#This Row],[Масса деловых]]","v":0},{"$f":"SUMIFS(Труба!$P$40:$P$85,Труба!$C$40:$C$85,Таблица1[[#This Row],[длина трубы\nмм]],Труба!$D$40:$D$85,\"=500\",Труба!$E$40:$E$85,Таблица1[[#This Row],[толщина\nмм ]],Труба!$F$40:$F$85,Таблица1[[#This Row],[название в \nАСТРА]])","v":0},{"$f":"SUMIFS(Труба!$P$40:$P$85,Труба!$C$40:$C$85,Таблица1[[#This Row],[не равно\n(для расчета)]],Труба!$D$40:$D$85,\"=500\",Труба!$E$40:$E$85,Таблица1[[#This Row],[толщина\nмм ]],Труба!$F$40:$F$85,Таблица1[[#This Row],[название в \nАСТРА]])","v":0},{"$f":"Таблица1[[#This Row],[Дел. ост.  Целых]]+Таблица1[[#This Row],[Дел. ост. Деловых]]","v":0},{"$f":"SUMIFS(Труба!$Z$40:$Z$85,Труба!$C$40:$C$85,Таблица1[[#This Row],[длина трубы\nмм]],Труба!$D$40:$D$85,\"=500\",Труба!$E$40:$E$85,Таблица1[[#This Row],[толщина\nмм ]],Труба!$F$40:$F$85,Таблица1[[#This Row],[название в \nАСТРА]])","v":0},{"$f":"SUMIFS(Труба!$Z$40:$Z$85,Труба!$C$40:$C$85,Таблица1[[#This Row],[не равно\n(для расчета)]],Труба!$D$40:$D$85,\"=500\",Труба!$E$40:$E$85,Таблица1[[#This Row],[толщина\nмм ]],Труба!$F$40:$F$85,Таблица1[[#This Row],[название в \nАСТРА]])","v":0},{"$f":"Таблица1[[#This Row],[Расход целых]]+Таблица1[[#This Row],[Расход деловых]]","v":0},{"$f":"Таблица1[[#This Row],[Чистый лом целых]]+Таблица1[[#This Row],[Чистый лом деловых]]-Таблица1[[#This Row],[Отход на порезку]]","v":0},{"$f":"Таблица1[[#This Row],[кол-во\n на план\n этого профиля]]*Таблица1[[#This Row],[толщина реза\nмм]]/1000/2*Таблица1[[#This Row],[масса 2м\n(коэф)]]","v":0},{"$f":"SUMIFS(Труба!$AA$40:$AA$85,Труба!$C$40:$C$85,Таблица1[[#This Row],[длина трубы\nмм]],Труба!$D$40:$D$85,\"=500\",Труба!$E$40:$E$85,Таблица1[[#This Row],[толщина\nмм ]],Труба!$F$40:$F$85,Таблица1[[#This Row],[название в \nАСТРА]])","v":0},{"$f":"SUMIFS(Труба!$AA$40:$AA$85,Труба!$C$40:$C$85,Таблица1[[#This Row],[не равно\n(для расчета)]],Труба!$D$40:$D$85,\"=500\",Труба!$E$40:$E$85,Таблица1[[#This Row],[толщина\nмм ]],Труба!$F$40:$F$85,Таблица1[[#This Row],[название в \nАСТРА]])","v":0}]
[null,null,null,{"$f":"SUMIFS(Труба!$I$9:$I$36,Труба!$F$9:$F$36,Таблица1[[#This Row],[название в \nАСТРА]])","v":0},"Круглая","Труба","30х15",2,1.5,1.9179999999999999,6000,"<>6000",5,{"$f":"SUMIFS(Труба!$G$40:$G$85,Труба!$C$40:$C$85,Таблица1[[#This Row],[длина трубы\nмм]],Труба!$D$40:$D$85,\"=500\",Труба!$E$40:$E$85,Таблица1[[#This Row],[толщина\nмм ]],Труба!$F$40:$F$85,Таблица1[[#This Row],[название в \nАСТРА]])","v":0},{"$f":"SUMIFS(Труба!$V$40:$V$85,Труба!$C$40:$C$85,Таблица1[[#This Row],[длина трубы\nмм]],Труба!$D$40:$D$85,\"=500\",Труба!$E$40:$E$85,Таблица1[[#This Row],[толщина\nмм ]],Труба!$F$40:$F$85,Таблица1[[#This Row],[название в \nАСТРА]])","v":0},{"$f":"SUMIFS(Труба!$V$40:$V$85,Труба!$C$40:$C$85,Таблица1[[#This Row],[не равно\n(для расчета)]],Труба!$D$40:$D$85,\"=500\",Труба!$E$40:$E$85,Таблица1[[#This Row],[толщина\nмм ]],Труба!$F$40:$F$85,Таблица1[[#This Row],[название в \nАСТРА]])","v":0},{"$f":"Таблица1[[#This Row],[Масса дет. целых]]+Таблица1[[#This Row],[Масса дет. Деловых]]","v":0},{"$f":"SUMIFS(Труба!$M$40:$M$85,Труба!$C$40:$C$85,Таблица1[[#This Row],[длина трубы\nмм]],Труба!$D$40:$D$85,\"=500\",Труба!$E$40:$E$85,Таблица1[[#This Row],[толщина\nмм ]],Труба!$F$40:$F$85,Таблица1[[#This Row],[название в \nАСТРА]])","v":0},{"$f":"SUMIFS(Труба!$M$40:$M$85,Труба!$C$40:$C$85,Таблица1[[#This Row],[не равно\n(для расчета)]],Труба!$D$40:$D$85,\"=500\",Труба!$E$40:$E$85,Таблица1[[#This Row],[толщина\nмм ]],Труба!$F$40:$F$85,Таблица1[[#This Row],[название в \nАСТРА]])","v":0},{"$f":"Таблица1[[#This Row],[Масса целых]]+Таблица1[[#This Row],[Масса деловых]]","v":0},{"$f":"SUMIFS(Труба!$P$40:$P$85,Труба!$C$40:$C$85,Таблица1[[#This Row],[длина трубы\nмм]],Труба!$D$40:$D$85,\"=500\",Труба!$E$40:$E$85,Таблица1[[#This Row],[толщина\nмм ]],Труба!$F$40:$F$85,Таблица1[[#This Row],[название в \nАСТРА]])","v":0},{"$f":"SUMIFS(Труба!$P$40:$P$85,Труба!$C$40:$C$85,Таблица1[[#This Row],[не равно\n(для расчета)]],Труба!$D$40:$D$85,\"=500\",Труба!$E$40:$E$85,Таблица1[[#This Row],[толщина\nмм ]],Труба!$F$40:$F$85,Таблица1[[#This Row],[название в \nАСТРА]])","v":0},{"$f":"Таблица1[[#This Row],[Дел. ост.  Целых]]+Таблица1[[#This Row],[Дел. ост. Деловых]]","v":0},{"$f":"SUMIFS(Труба!$Z$40:$Z$85,Труба!$C$40:$C$85,Таблица1[[#This Row],[длина трубы\nмм]],Труба!$D$40:$D$85,\"=500\",Труба!$E$40:$E$85,Таблица1[[#This Row],[толщина\nмм ]],Труба!$F$40:$F$85,Таблица1[[#This Row],[название в \nАСТРА]])","v":0},{"$f":"SUMIFS(Труба!$Z$40:$Z$85,Труба!$C$40:$C$85,Таблица1[[#This Row],[не равно\n(для расчета)]],Труба!$D$40:$D$85,\"=500\",Труба!$E$40:$E$85,Таблица1[[#This Row],[толщина\nмм ]],Труба!$F$40:$F$85,Таблица1[[#This Row],[название в \nАСТРА]])","v":0},{"$f":"Таблица1[[#This Row],[Расход целых]]+Таблица1[[#This Row],[Расход деловых]]","v":0},{"$f":"Таблица1[[#This Row],[Чистый лом целых]]+Таблица1[[#This Row],[Чистый лом деловых]]-Таблица1[[#This Row],[Отход на порезку]]","v":0},{"$f":"Таблица1[[#This Row],[кол-во\n на план\n этого профиля]]*Таблица1[[#This Row],[толщина реза\nмм]]/1000/2*Таблица1[[#This Row],[масса 2м\n(коэф)]]","v":0},{"$f":"SUMIFS(Труба!$AA$40:$AA$85,Труба!$C$40:$C$85,Таблица1[[#This Row],[длина трубы\nмм]],Труба!$D$40:$D$85,\"=500\",Труба!$E$40:$E$85,Таблица1[[#This Row],[толщина\nмм ]],Труба!$F$40:$F$85,Таблица1[[#This Row],[название в \nАСТРА]])","v":0},{"$f":"SUMIFS(Труба!$AA$40:$AA$85,Труба!$C$40:$C$85,Таблица1[[#This Row],[не равно\n(для расчета)]],Труба!$D$40:$D$85,\"=500\",Труба!$E$40:$E$85,Таблица1[[#This Row],[толщина\nмм ]],Труба!$F$40:$F$85,Таблица1[[#This Row],[название в \nАСТРА]])","v":0}]
[null,null,null,{"$f":"SUMIFS(Труба!$I$9:$I$36,Труба!$F$9:$F$36,Таблица1[[#This Row],[название в \nАСТРА]])","v":0},"Круглая","Труба","32,5х3",3,3,4.3159999999999998,6000,"<>6000",5,{"$f":"SUMIFS(Труба!$G$40:$G$85,Труба!$C$40:$C$85,Таблица1[[#This Row],[длина трубы\nмм]],Труба!$D$40:$D$85,\"=500\",Труба!$E$40:$E$85,Таблица1[[#This Row],[толщина\nмм ]],Труба!$F$40:$F$85,Таблица1[[#This Row],[название в \nАСТРА]])","v":0},{"$f":"SUMIFS(Труба!$V$40:$V$85,Труба!$C$40:$C$85,Таблица1[[#This Row],[длина трубы\nмм]],Труба!$D$40:$D$85,\"=500\",Труба!$E$40:$E$85,Таблица1[[#This Row],[толщина\nмм ]],Труба!$F$40:$F$85,Таблица1[[#This Row],[название в \nАСТРА]])","v":0},{"$f":"SUMIFS(Труба!$V$40:$V$85,Труба!$C$40:$C$85,Таблица1[[#This Row],[не равно\n(для расчета)]],Труба!$D$40:$D$85,\"=500\",Труба!$E$40:$E$85,Таблица1[[#This Row],[толщина\nмм ]],Труба!$F$40:$F$85,Таблица1[[#This Row],[название в \nАСТРА]])","v":0},{"$f":"Таблица1[[#This Row],[Масса дет. целых]]+Таблица1[[#This Row],[Масса дет. Деловых]]","v":0},{"$f":"SUMIFS(Труба!$M$40:$M$85,Труба!$C$40:$C$85,Таблица1[[#This Row],[длина трубы\nмм]],Труба!$D$40:$D$85,\"=500\",Труба!$E$40:$E$85,Таблица1[[#This Row],[толщина\nмм ]],Труба!$F$40:$F$85,Таблица1[[#This Row],[название в \nАСТРА]])","v":0},{"$f":"SUMIFS(Труба!$M$40:$M$85,Труба!$C$40:$C$85,Таблица1[[#This Row],[не равно\n(для расчета)]],Труба!$D$40:$D$85,\"=500\",Труба!$E$40:$E$85,Таблица1[[#This Row],[толщина\nмм ]],Труба!$F$40:$F$85,Таблица1[[#This Row],[название в \nАСТРА]])","v":0},{"$f":"Таблица1[[#This Row],[Масса целых]]+Таблица1[[#This Row],[Масса деловых]]","v":0},{"$f":"SUMIFS(Труба!$P$40:$P$85,Труба!$C$40:$C$85,Таблица1[[#This Row],[длина трубы\nмм]],Труба!$D$40:$D$85,\"=500\",Труба!$E$40:$E$85,Таблица1[[#This Row],[толщина\nмм ]],Труба!$F$40:$F$85,Таблица1[[#This Row],[название в \nАСТРА]])","v":0},{"$f":"SUMIFS(Труба!$P$40:$P$85,Труба!$C$40:$C$85,Таблица1[[#This Row],[не равно\n(для расчета)]],Труба!$D$40:$D$85,\"=500\",Труба!$E$40:$E$85,Таблица1[[#This Row],[толщина\nмм ]],Труба!$F$40:$F$85,Таблица1[[#This Row],[название в \nАСТРА]])","v":0},{"$f":"Таблица1[[#This Row],[Дел. ост.  Целых]]+Таблица1[[#This Row],[Дел. ост. Деловых]]","v":0},{"$f":"SUMIFS(Труба!$Z$40:$Z$85,Труба!$C$40:$C$85,Таблица1[[#This Row],[длина трубы\nмм]],Труба!$D$40:$D$85,\"=500\",Труба!$E$40:$E$85,Таблица1[[#This Row],[толщина\nмм ]],Труба!$F$40:$F$85,Таблица1[[#This Row],[название в \nАСТРА]])","v":0},{"$f":"SUMIFS(Труба!$Z$40:$Z$85,Труба!$C$40:$C$85,Таблица1[[#This Row],[не равно\n(для расчета)]],Труба!$D$40:$D$85,\"=500\",Труба!$E$40:$E$85,Таблица1[[#This Row],[толщина\nмм ]],Труба!$F$40:$F$85,Таблица1[[#This Row],[название в \nАСТРА]])","v":0},{"$f":"Таблица1[[#This Row],[Расход целых]]+Таблица1[[#This Row],[Расход деловых]]","v":0},{"$f":"Таблица1[[#This Row],[Чистый лом целых]]+Таблица1[[#This Row],[Чистый лом деловых]]-Таблица1[[#This Row],[Отход на порезку]]","v":0},{"$f":"Таблица1[[#This Row],[кол-во\n на план\n этого профиля]]*Таблица1[[#This Row],[толщина реза\nмм]]/1000/2*Таблица1[[#This Row],[масса 2м\n(коэф)]]","v":0},{"$f":"SUMIFS(Труба!$AA$40:$AA$85,Труба!$C$40:$C$85,Таблица1[[#This Row],[длина трубы\nмм]],Труба!$D$40:$D$85,\"=500\",Труба!$E$40:$E$85,Таблица1[[#This Row],[толщина\nмм ]],Труба!$F$40:$F$85,Таблица1[[#This Row],[название в \nАСТРА]])","v":0},{"$f":"SUMIFS(Труба!$AA$40:$AA$85,Труба!$C$40:$C$85,Таблица1[[#This Row],[не равно\n(для расчета)]],Труба!$D$40:$D$85,\"=500\",Труба!$E$40:$E$85,Таблица1[[#This Row],[толщина\nмм ]],Труба!$F$40:$F$85,Таблица1[[#This Row],[название в \nАСТРА]])","v":0}]
[null,null,null,{"$f":"SUMIFS(Труба!$I$9:$I$36,Труба!$F$9:$F$36,Таблица1[[#This Row],[название в \nАСТРА]])","v":0},"Круглая","Труба","50х1.2","Труба 50 чм, 1.2 мм",1.2,2.88,6000,"<>6000",5,{"$f":"SUMIFS(Труба!$G$40:$G$85,Труба!$C$40:$C$85,Таблица1[[#This Row],[длина трубы\nмм]],Труба!$D$40:$D$85,\"=500\",Труба!$E$40:$E$85,Таблица1[[#This Row],[толщина\nмм ]],Труба!$F$40:$F$85,Таблица1[[#This Row],[название в \nАСТРА]])","v":0},{"$f":"SUMIFS(Труба!$V$40:$V$85,Труба!$C$40:$C$85,Таблица1[[#This Row],[длина трубы\nмм]],Труба!$D$40:$D$85,\"=500\",Труба!$E$40:$E$85,Таблица1[[#This Row],[толщина\nмм ]],Труба!$F$40:$F$85,Таблица1[[#This Row],[название в \nАСТРА]])","v":0},{"$f":"SUMIFS(Труба!$V$40:$V$85,Труба!$C$40:$C$85,Таблица1[[#This Row],[не равно\n(для расчета)]],Труба!$D$40:$D$85,\"=500\",Труба!$E$40:$E$85,Таблица1[[#This Row],[толщина\nмм ]],Труба!$F$40:$F$85,Таблица1[[#This Row],[название в \nАСТРА]])","v":0},{"$f":"Таблица1[[#This Row],[Масса дет. целых]]+Таблица1[[#This Row],[Масса дет. Деловых]]","v":0},{"$f":"SUMIFS(Труба!$M$40:$M$85,Труба!$C$40:$C$85,Таблица1[[#This Row],[длина трубы\nмм]],Труба!$D$40:$D$85,\"=500\",Труба!$E$40:$E$85,Таблица1[[#This Row],[толщина\nмм ]],Труба!$F$40:$F$85,Таблица1[[#This Row],[название в \nАСТРА]])","v":0},{"$f":"SUMIFS(Труба!$M$40:$M$85,Труба!$C$40:$C$85,Таблица1[[#This Row],[не равно\n(для расчета)]],Труба!$D$40:$D$85,\"=500\",Труба!$E$40:$E$85,Таблица1[[#This Row],[толщина\nмм ]],Труба!$F$40:$F$85,Таблица1[[#This Row],[название в \nАСТРА]])","v":0},{"$f":"Таблица1[[#This Row],[Масса целых]]+Таблица1[[#This Row],[Масса деловых]]","v":0},{"$f":"SUMIFS(Труба!$P$40:$P$85,Труба!$C$40:$C$85,Таблица1[[#This Row],[длина трубы\nмм]],Труба!$D$40:$D$85,\"=500\",Труба!$E$40:$E$85,Таблица1[[#This Row],[толщина\nмм ]],Труба!$F$40:$F$85,Таблица1[[#This Row],[название в \nАСТРА]])","v":0},{"$f":"SUMIFS(Труба!$P$40:$P$85,Труба!$C$40:$C$85,Таблица1[[#This Row],[не равно\n(для расчета)]],Труба!$D$40:$D$85,\"=500\",Труба!$E$40:$E$85,Таблица1[[#This Row],[толщина\nмм ]],Труба!$F$40:$F$85,Таблица1[[#This Row],[название в \nАСТРА]])","v":0},{"$f":"Таблица1[[#This Row],[Дел. ост.  Целых]]+Таблица1[[#This Row],[Дел. ост. Деловых]]","v":0},{"$f":"SUMIFS(Труба!$Z$40:$Z$85,Труба!$C$40:$C$85,Таблица1[[#This Row],[длина трубы\nмм]],Труба!$D$40:$D$85,\"=500\",Труба!$E$40:$E$85,Таблица1[[#This Row],[толщина\nмм ]],Труба!$F$40:$F$85,Таблица1[[#This Row],[название в \nАСТРА]])","v":0},{"$f":"SUMIFS(Труба!$Z$40:$Z$85,Труба!$C$40:$C$85,Таблица1[[#This Row],[не равно\n(для расчета)]],Труба!$D$40:$D$85,\"=500\",Труба!$E$40:$E$85,Таблица1[[#This Row],[толщина\nмм ]],Труба!$F$40:$F$85,Таблица1[[#This Row],[название в \nАСТРА]])","v":0},{"$f":"Таблица1[[#This Row],[Расход целых]]+Таблица1[[#This Row],[Расход деловых]]","v":0},{"$f":"Таблица1[[#This Row],[Чистый лом целых]]+Таблица1[[#This Row],[Чистый лом деловых]]-Таблица1[[#This Row],[Отход на порезку]]","v":0},{"$f":"Таблица1[[#This Row],[кол-во\n на план\n этого профиля]]*Таблица1[[#This Row],[толщина реза\nмм]]/1000/2*Таблица1[[#This Row],[масса 2м\n(коэф)]]","v":0},{"$f":"SUMIFS(Труба!$AA$40:$AA$85,Труба!$C$40:$C$85,Таблица1[[#This Row],[длина трубы\nмм]],Труба!$D$40:$D$85,\"=500\",Труба!$E$40:$E$85,Таблица1[[#This Row],[толщина\nмм ]],Труба!$F$40:$F$85,Таблица1[[#This Row],[название в \nАСТРА]])","v":0},{"$f":"SUMIFS(Труба!$AA$40:$AA$85,Труба!$C$40:$C$85,Таблица1[[#This Row],[не равно\n(для расчета)]],Труба!$D$40:$D$85,\"=500\",Труба!$E$40:$E$85,Таблица1[[#This Row],[толщина\nмм ]],Труба!$F$40:$F$85,Таблица1[[#This Row],[название в \nАСТРА]])","v":0}]
[null,null,null,{"$f":"SUMIFS(Труба!$I$9:$I$36,Труба!$F$9:$F$36,Таблица1[[#This Row],[название в \nАСТРА]])","v":0},"Круглая","Труба","ДУ15",4,3,2.3199999999999998,6000,"<>6000",5,{"$f":"SUMIFS(Труба!$G$40:$G$85,Труба!$C$40:$C$85,Таблица1[[#This Row],[длина трубы\nмм]],Труба!$D$40:$D$85,\"=500\",Труба!$E$40:$E$85,Таблица1[[#This Row],[толщина\nмм ]],Труба!$F$40:$F$85,Таблица1[[#This Row],[название в \nАСТРА]])","v":0},{"$f":"SUMIFS(Труба!$V$40:$V$85,Труба!$C$40:$C$85,Таблица1[[#This Row],[длина трубы\nмм]],Труба!$D$40:$D$85,\"=500\",Труба!$E$40:$E$85,Таблица1[[#This Row],[толщина\nмм ]],Труба!$F$40:$F$85,Таблица1[[#This Row],[название в \nАСТРА]])","v":0},{"$f":"SUMIFS(Труба!$V$40:$V$85,Труба!$C$40:$C$85,Таблица1[[#This Row],[не равно\n(для расчета)]],Труба!$D$40:$D$85,\"=500\",Труба!$E$40:$E$85,Таблица1[[#This Row],[толщина\nмм ]],Труба!$F$40:$F$85,Таблица1[[#This Row],[название в \nАСТРА]])","v":0},{"$f":"Таблица1[[#This Row],[Масса дет. целых]]+Таблица1[[#This Row],[Масса дет. Деловых]]","v":0},{"$f":"SUMIFS(Труба!$M$40:$M$85,Труба!$C$40:$C$85,Таблица1[[#This Row],[длина трубы\nмм]],Труба!$D$40:$D$85,\"=500\",Труба!$E$40:$E$85,Таблица1[[#This Row],[толщина\nмм ]],Труба!$F$40:$F$85,Таблица1[[#This Row],[название в \nАСТРА]])","v":0},{"$f":"SUMIFS(Труба!$M$40:$M$85,Труба!$C$40:$C$85,Таблица1[[#This Row],[не равно\n(для расчета)]],Труба!$D$40:$D$85,\"=500\",Труба!$E$40:$E$85,Таблица1[[#This Row],[толщина\nмм ]],Труба!$F$40:$F$85,Таблица1[[#This Row],[название в \nАСТРА]])","v":0},{"$f":"Таблица1[[#This Row],[Масса целых]]+Таблица1[[#This Row],[Масса деловых]]","v":0},{"$f":"SUMIFS(Труба!$P$40:$P$85,Труба!$C$40:$C$85,Таблица1[[#This Row],[длина трубы\nмм]],Труба!$D$40:$D$85,\"=500\",Труба!$E$40:$E$85,Таблица1[[#This Row],[толщина\nмм ]],Труба!$F$40:$F$85,Таблица1[[#This Row],[название в \nАСТРА]])","v":0},{"$f":"SUMIFS(Труба!$P$40:$P$85,Труба!$C$40:$C$85,Таблица1[[#This Row],[не равно\n(для расчета)]],Труба!$D$40:$D$85,\"=500\",Труба!$E$40:$E$85,Таблица1[[#This Row],[толщина\nмм ]],Труба!$F$40:$F$85,Таблица1[[#This Row],[название в \nАСТРА]])","v":0},{"$f":"Таблица1[[#This Row],[Дел. ост.  Целых]]+Таблица1[[#This Row],[Дел. ост. Деловых]]","v":0},{"$f":"SUMIFS(Труба!$Z$40:$Z$85,Труба!$C$40:$C$85,Таблица1[[#This Row],[длина трубы\nмм]],Труба!$D$40:$D$85,\"=500\",Труба!$E$40:$E$85,Таблица1[[#This Row],[толщина\nмм ]],Труба!$F$40:$F$85,Таблица1[[#This Row],[название в \nАСТРА]])","v":0},{"$f":"SUMIFS(Труба!$Z$40:$Z$85,Труба!$C$40:$C$85,Таблица1[[#This Row],[не равно\n(для расчета)]],Труба!$D$40:$D$85,\"=500\",Труба!$E$40:$E$85,Таблица1[[#This Row],[толщина\nмм ]],Труба!$F$40:$F$85,Таблица1[[#This Row],[название в \nАСТРА]])","v":0},{"$f":"Таблица1[[#This Row],[Расход целых]]+Таблица1[[#This Row],[Расход деловых]]","v":0},{"$f":"Таблица1[[#This Row],[Чистый лом целых]]+Таблица1[[#This Row],[Чистый лом деловых]]-Таблица1[[#This Row],[Отход на порезку]]","v":0},{"$f":"Таблица1[[#This Row],[кол-во\n на план\n этого профиля]]*Таблица1[[#This Row],[толщина реза\nмм]]/1000/2*Таблица1[[#This Row],[масса 2м\n(коэф)]]","v":0},{"$f":"SUMIFS(Труба!$AA$40:$AA$85,Труба!$C$40:$C$85,Таблица1[[#This Row],[длина трубы\nмм]],Труба!$D$40:$D$85,\"=500\",Труба!$E$40:$E$85,Таблица1[[#This Row],[толщина\nмм ]],Труба!$F$40:$F$85,Таблица1[[#This Row],[название в \nАСТРА]])","v":0},{"$f":"SUMIFS(Труба!$AA$40:$AA$85,Труба!$C$40:$C$85,Таблица1[[#This Row],[не равно\n(для расчета)]],Труба!$D$40:$D$85,\"=500\",Труба!$E$40:$E$85,Таблица1[[#This Row],[толщина\nмм ]],Труба!$F$40:$F$85,Таблица1[[#This Row],[название в \nАСТРА]])","v":0}]
[null,null,null,{"$f":"SUMIFS(Труба!$I$9:$I$36,Труба!$F$9:$F$36,Таблица1[[#This Row],[название в \nАСТРА]])","v":0},"Пруток","Пруток",10,5,{"$f":"Таблица1[[#This Row],[Размер\nБхМхТ]]","v":10},null,3000,"<>3000",5,{"$f":"SUMIFS(Труба!$G$40:$G$85,Труба!$C$40:$C$85,Таблица1[[#This Row],[длина трубы\nмм]],Труба!$D$40:$D$85,\"=500\",Труба!$E$40:$E$85,Таблица1[[#This Row],[толщина\nмм ]],Труба!$F$40:$F$85,Таблица1[[#This Row],[название в \nАСТРА]])","v":0},{"$f":"SUMIFS(Труба!$V$40:$V$85,Труба!$C$40:$C$85,Таблица1[[#This Row],[длина трубы\nмм]],Труба!$D$40:$D$85,\"=500\",Труба!$E$40:$E$85,Таблица1[[#This Row],[толщина\nмм ]],Труба!$F$40:$F$85,Таблица1[[#This Row],[название в \nАСТРА]])","v":0},{"$f":"SUMIFS(Труба!$V$40:$V$85,Труба!$C$40:$C$85,Таблица1[[#This Row],[не равно\n(для расчета)]],Труба!$D$40:$D$85,\"=500\",Труба!$E$40:$E$85,Таблица1[[#This Row],[толщина\nмм ]],Труба!$F$40:$F$85,Таблица1[[#This Row],[название в \nАСТРА]])","v":0},{"$f":"Таблица1[[#This Row],[Масса дет. целых]]+Таблица1[[#This Row],[Масса дет. Деловых]]","v":0},{"$f":"SUMIFS(Труба!$M$40:$M$85,Труба!$C$40:$C$85,Таблица1[[#This Row],[длина трубы\nмм]],Труба!$D$40:$D$85,\"=500\",Труба!$E$40:$E$85,Таблица1[[#This Row],[толщина\nмм ]],Труба!$F$40:$F$85,Таблица1[[#This Row],[название в \nАСТРА]])","v":0},{"$f":"SUMIFS(Труба!$M$40:$M$85,Труба!$C$40:$C$85,Таблица1[[#This Row],[не равно\n(для расчета)]],Труба!$D$40:$D$85,\"=500\",Труба!$E$40:$E$85,Таблица1[[#This Row],[толщина\nмм ]],Труба!$F$40:$F$85,Таблица1[[#This Row],[название в \nАСТРА]])","v":0},{"$f":"Таблица1[[#This Row],[Масса целых]]+Таблица1[[#This Row],[Масса деловых]]","v":0},{"$f":"SUMIFS(Труба!$P$40:$P$85,Труба!$C$40:$C$85,Таблица1[[#This Row],[длина трубы\nмм]],Труба!$D$40:$D$85,\"=500\",Труба!$E$40:$E$85,Таблица1[[#This Row],[толщина\nмм ]],Труба!$F$40:$F$85,Таблица1[[#This Row],[название в \nАСТРА]])","v":0},{"$f":"SUMIFS(Труба!$P$40:$P$85,Труба!$C$40:$C$85,Таблица1[[#This Row],[не равно\n(для расчета)]],Труба!$D$40:$D$85,\"=500\",Труба!$E$40:$E$85,Таблица1[[#This Row],[толщина\nмм ]],Труба!$F$40:$F$85,Таблица1[[#This Row],[название в \nАСТРА]])","v":0},{"$f":"Таблица1[[#This Row],[Дел. ост.  Целых]]+Таблица1[[#This Row],[Дел. ост. Деловых]]","v":0},{"$f":"SUMIFS(Труба!$Z$40:$Z$85,Труба!$C$40:$C$85,Таблица1[[#This Row],[длина трубы\nмм]],Труба!$D$40:$D$85,\"=500\",Труба!$E$40:$E$85,Таблица1[[#This Row],[толщина\nмм ]],Труба!$F$40:$F$85,Таблица1[[#This Row],[название в \nАСТРА]])","v":0},{"$f":"SUMIFS(Труба!$Z$40:$Z$85,Труба!$C$40:$C$85,Таблица1[[#This Row],[не равно\n(для расчета)]],Труба!$D$40:$D$85,\"=500\",Труба!$E$40:$E$85,Таблица1[[#This Row],[толщина\nмм ]],Труба!$F$40:$F$85,Таблица1[[#This Row],[название в \nАСТРА]])","v":0},{"$f":"Таблица1[[#This Row],[Расход целых]]+Таблица1[[#This Row],[Расход деловых]]","v":0},{"$f":"Таблица1[[#This Row],[Чистый лом целых]]+Таблица1[[#This Row],[Чистый лом деловых]]-Таблица1[[#This Row],[Отход на порезку]]","v":0},{"$f":"Таблица1[[#This Row],[кол-во\n на план\n этого профиля]]*Таблица1[[#This Row],[толщина реза\nмм]]/1000/2*Таблица1[[#This Row],[масса 2м\n(коэф)]]","v":0},{"$f":"SUMIFS(Труба!$AA$40:$AA$85,Труба!$C$40:$C$85,Таблица1[[#This Row],[длина трубы\nмм]],Труба!$D$40:$D$85,\"=500\",Труба!$E$40:$E$85,Таблица1[[#This Row],[толщина\nмм ]],Труба!$F$40:$F$85,Таблица1[[#This Row],[название в \nАСТРА]])","v":0},{"$f":"SUMIFS(Труба!$AA$40:$AA$85,Труба!$C$40:$C$85,Таблица1[[#This Row],[не равно\n(для расчета)]],Труба!$D$40:$D$85,\"=500\",Труба!$E$40:$E$85,Таблица1[[#This Row],[толщина\nмм ]],Труба!$F$40:$F$85,Таблица1[[#This Row],[название в \nАСТРА]])","v":0}]
[null,null,null,{"$f":"SUMIFS(Труба!$I$9:$I$36,Труба!$F$9:$F$36,Таблица1[[#This Row],[название в \nАСТРА]])","v":0},"Пруток","Пруток",11,6,{"$f":"Таблица1[[#This Row],[Размер\nБхМхТ]]","v":11},null,3000,"<>3000",5,{"$f":"SUMIFS(Труба!$G$40:$G$85,Труба!$C$40:$C$85,Таблица1[[#This Row],[длина трубы\nмм]],Труба!$D$40:$D$85,\"=500\",Труба!$E$40:$E$85,Таблица1[[#This Row],[толщина\nмм ]],Труба!$F$40:$F$85,Таблица1[[#This Row],[название в \nАСТРА]])","v":0},{"$f":"SUMIFS(Труба!$V$40:$V$85,Труба!$C$40:$C$85,Таблица1[[#This Row],[длина трубы\nмм]],Труба!$D$40:$D$85,\"=500\",Труба!$E$40:$E$85,Таблица1[[#This Row],[толщина\nмм ]],Труба!$F$40:$F$85,Таблица1[[#This Row],[название в \nАСТРА]])","v":0},{"$f":"SUMIFS(Труба!$V$40:$V$85,Труба!$C$40:$C$85,Таблица1[[#This Row],[не равно\n(для расчета)]],Труба!$D$40:$D$85,\"=500\",Труба!$E$40:$E$85,Таблица1[[#This Row],[толщина\nмм ]],Труба!$F$40:$F$85,Таблица1[[#This Row],[название в \nАСТРА]])","v":0},{"$f":"Таблица1[[#This Row],[Масса дет. целых]]+Таблица1[[#This Row],[Масса дет. Деловых]]","v":0},{"$f":"SUMIFS(Труба!$M$40:$M$85,Труба!$C$40:$C$85,Таблица1[[#This Row],[длина трубы\nмм]],Труба!$D$40:$D$85,\"=500\",Труба!$E$40:$E$85,Таблица1[[#This Row],[толщина\nмм ]],Труба!$F$40:$F$85,Таблица1[[#This Row],[название в \nАСТРА]])","v":0},{"$f":"SUMIFS(Труба!$M$40:$M$85,Труба!$C$40:$C$85,Таблица1[[#This Row],[не равно\n(для расчета)]],Труба!$D$40:$D$85,\"=500\",Труба!$E$40:$E$85,Таблица1[[#This Row],[толщина\nмм ]],Труба!$F$40:$F$85,Таблица1[[#This Row],[название в \nАСТРА]])","v":0},{"$f":"Таблица1[[#This Row],[Масса целых]]+Таблица1[[#This Row],[Масса деловых]]","v":0},{"$f":"SUMIFS(Труба!$P$40:$P$85,Труба!$C$40:$C$85,Таблица1[[#This Row],[длина трубы\nмм]],Труба!$D$40:$D$85,\"=500\",Труба!$E$40:$E$85,Таблица1[[#This Row],[толщина\nмм ]],Труба!$F$40:$F$85,Таблица1[[#This Row],[название в \nАСТРА]])","v":0},{"$f":"SUMIFS(Труба!$P$40:$P$85,Труба!$C$40:$C$85,Таблица1[[#This Row],[не равно\n(для расчета)]],Труба!$D$40:$D$85,\"=500\",Труба!$E$40:$E$85,Таблица1[[#This Row],[толщина\nмм ]],Труба!$F$40:$F$85,Таблица1[[#This Row],[название в \nАСТРА]])","v":0},{"$f":"Таблица1[[#This Row],[Дел. ост.  Целых]]+Таблица1[[#This Row],[Дел. ост. Деловых]]","v":0},{"$f":"SUMIFS(Труба!$Z$40:$Z$85,Труба!$C$40:$C$85,Таблица1[[#This Row],[длина трубы\nмм]],Труба!$D$40:$D$85,\"=500\",Труба!$E$40:$E$85,Таблица1[[#This Row],[толщина\nмм ]],Труба!$F$40:$F$85,Таблица1[[#This Row],[название в \nАСТРА]])","v":0},{"$f":"SUMIFS(Труба!$Z$40:$Z$85,Труба!$C$40:$C$85,Таблица1[[#This Row],[не равно\n(для расчета)]],Труба!$D$40:$D$85,\"=500\",Труба!$E$40:$E$85,Таблица1[[#This Row],[толщина\nмм ]],Труба!$F$40:$F$85,Таблица1[[#This Row],[название в \nАСТРА]])","v":0},{"$f":"Таблица1[[#This Row],[Расход целых]]+Таблица1[[#This Row],[Расход деловых]]","v":0},{"$f":"Таблица1[[#This Row],[Чистый лом целых]]+Таблица1[[#This Row],[Чистый лом деловых]]-Таблица1[[#This Row],[Отход на порезку]]","v":0},{"$f":"Таблица1[[#This Row],[кол-во\n на план\n этого профиля]]*Таблица1[[#This Row],[толщина реза\nмм]]/1000/2*Таблица1[[#This Row],[масса 2м\n(коэф)]]","v":0},{"$f":"SUMIFS(Труба!$AA$40:$AA$85,Труба!$C$40:$C$85,Таблица1[[#This Row],[длина трубы\nмм]],Труба!$D$40:$D$85,\"=500\",Труба!$E$40:$E$85,Таблица1[[#This Row],[толщина\nмм ]],Труба!$F$40:$F$85,Таблица1[[#This Row],[название в \nАСТРА]])","v":0},{"$f":"SUMIFS(Труба!$AA$40:$AA$85,Труба!$C$40:$C$85,Таблица1[[#This Row],[не равно\n(для расчета)]],Труба!$D$40:$D$85,\"=500\",Труба!$E$40:$E$85,Таблица1[[#This Row],[толщина\nмм ]],Труба!$F$40:$F$85,Таблица1[[#This Row],[название в \nАСТРА]])","v":0}]
[null,null,null,{"$f":"SUMIFS(Труба!$I$9:$I$36,Труба!$F$9:$F$36,Таблица1[[#This Row],[название в \nАСТРА]])","v":0},"Пруток","Пруток",12,7,{"$f":"Таблица1[[#This Row],[Размер\nБхМхТ]]","v":12},null,3000,"<>3000",5,{"$f":"SUMIFS(Труба!$G$40:$G$85,Труба!$C$40:$C$85,Таблица1[[#This Row],[длина трубы\nмм]],Труба!$D$40:$D$85,\"=500\",Труба!$E$40:$E$85,Таблица1[[#This Row],[толщина\nмм ]],Труба!$F$40:$F$85,Таблица1[[#This Row],[название в \nАСТРА]])","v":0},{"$f":"SUMIFS(Труба!$V$40:$V$85,Труба!$C$40:$C$85,Таблица1[[#This Row],[длина трубы\nмм]],Труба!$D$40:$D$85,\"=500\",Труба!$E$40:$E$85,Таблица1[[#This Row],[толщина\nмм ]],Труба!$F$40:$F$85,Таблица1[[#This Row],[название в \nАСТРА]])","v":0},{"$f":"SUMIFS(Труба!$V$40:$V$85,Труба!$C$40:$C$85,Таблица1[[#This Row],[не равно\n(для расчета)]],Труба!$D$40:$D$85,\"=500\",Труба!$E$40:$E$85,Таблица1[[#This Row],[толщина\nмм ]],Труба!$F$40:$F$85,Таблица1[[#This Row],[название в \nАСТРА]])","v":0},{"$f":"Таблица1[[#This Row],[Масса дет. целых]]+Таблица1[[#This Row],[Масса дет. Деловых]]","v":0},{"$f":"SUMIFS(Труба!$M$40:$M$85,Труба!$C$40:$C$85,Таблица1[[#This Row],[длина трубы\nмм]],Труба!$D$40:$D$85,\"=500\",Труба!$E$40:$E$85,Таблица1[[#This Row],[толщина\nмм ]],Труба!$F$40:$F$85,Таблица1[[#This Row],[название в \nАСТРА]])","v":0},{"$f":"SUMIFS(Труба!$M$40:$M$85,Труба!$C$40:$C$85,Таблица1[[#This Row],[не равно\n(для расчета)]],Труба!$D$40:$D$85,\"=500\",Труба!$E$40:$E$85,Таблица1[[#This Row],[толщина\nмм ]],Труба!$F$40:$F$85,Таблица1[[#This Row],[название в \nАСТРА]])","v":0},{"$f":"Таблица1[[#This Row],[Масса целых]]+Таблица1[[#This Row],[Масса деловых]]","v":0},{"$f":"SUMIFS(Труба!$P$40:$P$85,Труба!$C$40:$C$85,Таблица1[[#This Row],[длина трубы\nмм]],Труба!$D$40:$D$85,\"=500\",Труба!$E$40:$E$85,Таблица1[[#This Row],[толщина\nмм ]],Труба!$F$40:$F$85,Таблица1[[#This Row],[название в \nАСТРА]])","v":0},{"$f":"SUMIFS(Труба!$P$40:$P$85,Труба!$C$40:$C$85,Таблица1[[#This Row],[не равно\n(для расчета)]],Труба!$D$40:$D$85,\"=500\",Труба!$E$40:$E$85,Таблица1[[#This Row],[толщина\nмм ]],Труба!$F$40:$F$85,Таблица1[[#This Row],[название в \nАСТРА]])","v":0},{"$f":"Таблица1[[#This Row],[Дел. ост.  Целых]]+Таблица1[[#This Row],[Дел. ост. Деловых]]","v":0},{"$f":"SUMIFS(Труба!$Z$40:$Z$85,Труба!$C$40:$C$85,Таблица1[[#This Row],[длина трубы\nмм]],Труба!$D$40:$D$85,\"=500\",Труба!$E$40:$E$85,Таблица1[[#This Row],[толщина\nмм ]],Труба!$F$40:$F$85,Таблица1[[#This Row],[название в \nАСТРА]])","v":0},{"$f":"SUMIFS(Труба!$Z$40:$Z$85,Труба!$C$40:$C$85,Таблица1[[#This Row],[не равно\n(для расчета)]],Труба!$D$40:$D$85,\"=500\",Труба!$E$40:$E$85,Таблица1[[#This Row],[толщина\nмм ]],Труба!$F$40:$F$85,Таблица1[[#This Row],[название в \nАСТРА]])","v":0},{"$f":"Таблица1[[#This Row],[Расход целых]]+Таблица1[[#This Row],[Расход деловых]]","v":0},{"$f":"Таблица1[[#This Row],[Чистый лом целых]]+Таблица1[[#This Row],[Чистый лом деловых]]-Таблица1[[#This Row],[Отход на порезку]]","v":0},{"$f":"Таблица1[[#This Row],[кол-во\n на план\n этого профиля]]*Таблица1[[#This Row],[толщина реза\nмм]]/1000/2*Таблица1[[#This Row],[масса 2м\n(коэф)]]","v":0},{"$f":"SUMIFS(Труба!$AA$40:$AA$85,Труба!$C$40:$C$85,Таблица1[[#This Row],[длина трубы\nмм]],Труба!$D$40:$D$85,\"=500\",Труба!$E$40:$E$85,Таблица1[[#This Row],[толщина\nмм ]],Труба!$F$40:$F$85,Таблица1[[#This Row],[название в \nАСТРА]])","v":0},{"$f":"SUMIFS(Труба!$AA$40:$AA$85,Труба!$C$40:$C$85,Таблица1[[#This Row],[не равно\n(для расчета)]],Труба!$D$40:$D$85,\"=500\",Труба!$E$40:$E$85,Таблица1[[#This Row],[толщина\nмм ]],Труба!$F$40:$F$85,Таблица1[[#This Row],[название в \nАСТРА]])","v":0}]
[null,null,null,{"$f":"SUMIFS(Труба!$I$9:$I$36,Труба!$F$9:$F$36,Таблица1[[#This Row],[название в \nАСТРА]])","v":0},"Пруток","Пруток",13,8,{"$f":"Таблица1[[#This Row],[Размер\nБхМхТ]]","v":13},null,3000,"<>3000",5,{"$f":"SUMIFS(Труба!$G$40:$G$85,Труба!$C$40:$C$85,Таблица1[[#This Row],[длина трубы\nмм]],Труба!$D$40:$D$85,\"=500\",Труба!$E$40:$E$85,Таблица1[[#This Row],[толщина\nмм ]],Труба!$F$40:$F$85,Таблица1[[#This Row],[название в \nАСТРА]])","v":0},{"$f":"SUMIFS(Труба!$V$40:$V$85,Труба!$C$40:$C$85,Таблица1[[#This Row],[длина трубы\nмм]],Труба!$D$40:$D$85,\"=500\",Труба!$E$40:$E$85,Таблица1[[#This Row],[толщина\nмм ]],Труба!$F$40:$F$85,Таблица1[[#This Row],[название в \nАСТРА]])","v":0},{"$f":"SUMIFS(Труба!$V$40:$V$85,Труба!$C$40:$C$85,Таблица1[[#This Row],[не равно\n(для расчета)]],Труба!$D$40:$D$85,\"=500\",Труба!$E$40:$E$85,Таблица1[[#This Row],[толщина\nмм ]],Труба!$F$40:$F$85,Таблица1[[#This Row],[название в \nАСТРА]])","v":0},{"$f":"Таблица1[[#This Row],[Масса дет. целых]]+Таблица1[[#This Row],[Масса дет. Деловых]]","v":0},{"$f":"SUMIFS(Труба!$M$40:$M$85,Труба!$C$40:$C$85,Таблица1[[#This Row],[длина трубы\nмм]],Труба!$D$40:$D$85,\"=500\",Труба!$E$40:$E$85,Таблица1[[#This Row],[толщина\nмм ]],Труба!$F$40:$F$85,Таблица1[[#This Row],[название в \nАСТРА]])","v":0},{"$f":"SUMIFS(Труба!$M$40:$M$85,Труба!$C$40:$C$85,Таблица1[[#This Row],[не равно\n(для расчета)]],Труба!$D$40:$D$85,\"=500\",Труба!$E$40:$E$85,Таблица1[[#This Row],[толщина\nмм ]],Труба!$F$40:$F$85,Таблица1[[#This Row],[название в \nАСТРА]])","v":0},{"$f":"Таблица1[[#This Row],[Масса целых]]+Таблица1[[#This Row],[Масса деловых]]","v":0},{"$f":"SUMIFS(Труба!$P$40:$P$85,Труба!$C$40:$C$85,Таблица1[[#This Row],[длина трубы\nмм]],Труба!$D$40:$D$85,\"=500\",Труба!$E$40:$E$85,Таблица1[[#This Row],[толщина\nмм ]],Труба!$F$40:$F$85,Таблица1[[#This Row],[название в \nАСТРА]])","v":0},{"$f":"SUMIFS(Труба!$P$40:$P$85,Труба!$C$40:$C$85,Таблица1[[#This Row],[не равно\n(для расчета)]],Труба!$D$40:$D$85,\"=500\",Труба!$E$40:$E$85,Таблица1[[#This Row],[толщина\nмм ]],Труба!$F$40:$F$85,Таблица1[[#This Row],[название в \nАСТРА]])","v":0},{"$f":"Таблица1[[#This Row],[Дел. ост.  Целых]]+Таблица1[[#This Row],[Дел. ост. Деловых]]","v":0},{"$f":"SUMIFS(Труба!$Z$40:$Z$85,Труба!$C$40:$C$85,Таблица1[[#This Row],[длина трубы\nмм]],Труба!$D$40:$D$85,\"=500\",Труба!$E$40:$E$85,Таблица1[[#This Row],[толщина\nмм ]],Труба!$F$40:$F$85,Таблица1[[#This Row],[название в \nАСТРА]])","v":0},{"$f":"SUMIFS(Труба!$Z$40:$Z$85,Труба!$C$40:$C$85,Таблица1[[#This Row],[не равно\n(для расчета)]],Труба!$D$40:$D$85,\"=500\",Труба!$E$40:$E$85,Таблица1[[#This Row],[толщина\nмм ]],Труба!$F$40:$F$85,Таблица1[[#This Row],[название в \nАСТРА]])","v":0},{"$f":"Таблица1[[#This Row],[Расход целых]]+Таблица1[[#This Row],[Расход деловых]]","v":0},{"$f":"Таблица1[[#This Row],[Чистый лом целых]]+Таблица1[[#This Row],[Чистый лом деловых]]-Таблица1[[#This Row],[Отход на порезку]]","v":0},{"$f":"Таблица1[[#This Row],[кол-во\n на план\n этого профиля]]*Таблица1[[#This Row],[толщина реза\nмм]]/1000/2*Таблица1[[#This Row],[масса 2м\n(коэф)]]","v":0},{"$f":"SUMIFS(Труба!$AA$40:$AA$85,Труба!$C$40:$C$85,Таблица1[[#This Row],[длина трубы\nмм]],Труба!$D$40:$D$85,\"=500\",Труба!$E$40:$E$85,Таблица1[[#This Row],[толщина\nмм ]],Труба!$F$40:$F$85,Таблица1[[#This Row],[название в \nАСТРА]])","v":0},{"$f":"SUMIFS(Труба!$AA$40:$AA$85,Труба!$C$40:$C$85,Таблица1[[#This Row],[не равно\n(для расчета)]],Труба!$D$40:$D$85,\"=500\",Труба!$E$40:$E$85,Таблица1[[#This Row],[толщина\nмм ]],Труба!$F$40:$F$85,Таблица1[[#This Row],[название в \nАСТРА]])","v":0}]
[null,null,null,{"$f":"SUMIFS(Труба!$I$9:$I$36,Труба!$F$9:$F$36,Таблица1[[#This Row],[название в \nАСТРА]])","v":0},"Пруток","Пруток",14,9,{"$f":"Таблица1[[#This Row],[Размер\nБхМхТ]]","v":14},null,3000,"<>3000",5,{"$f":"SUMIFS(Труба!$G$40:$G$85,Труба!$C$40:$C$85,Таблица1[[#This Row],[длина трубы\nмм]],Труба!$D$40:$D$85,\"=500\",Труба!$E$40:$E$85,Таблица1[[#This Row],[толщина\nмм ]],Труба!$F$40:$F$85,Таблица1[[#This Row],[название в \nАСТРА]])","v":0},{"$f":"SUMIFS(Труба!$V$40:$V$85,Труба!$C$40:$C$85,Таблица1[[#This Row],[длина трубы\nмм]],Труба!$D$40:$D$85,\"=500\",Труба!$E$40:$E$85,Таблица1[[#This Row],[толщина\nмм ]],Труба!$F$40:$F$85,Таблица1[[#This Row],[название в \nАСТРА]])","v":0},{"$f":"SUMIFS(Труба!$V$40:$V$85,Труба!$C$40:$C$85,Таблица1[[#This Row],[не равно\n(для расчета)]],Труба!$D$40:$D$85,\"=500\",Труба!$E$40:$E$85,Таблица1[[#This Row],[толщина\nмм ]],Труба!$F$40:$F$85,Таблица1[[#This Row],[название в \nАСТРА]])","v":0},{"$f":"Таблица1[[#This Row],[Масса дет. целых]]+Таблица1[[#This Row],[Масса дет. Деловых]]","v":0},{"$f":"SUMIFS(Труба!$M$40:$M$85,Труба!$C$40:$C$85,Таблица1[[#This Row],[длина трубы\nмм]],Труба!$D$40:$D$85,\"=500\",Труба!$E$40:$E$85,Таблица1[[#This Row],[толщина\nмм ]],Труба!$F$40:$F$85,Таблица1[[#This Row],[название в \nАСТРА]])","v":0},{"$f":"SUMIFS(Труба!$M$40:$M$85,Труба!$C$40:$C$85,Таблица1[[#This Row],[не равно\n(для расчета)]],Труба!$D$40:$D$85,\"=500\",Труба!$E$40:$E$85,Таблица1[[#This Row],[толщина\nмм ]],Труба!$F$40:$F$85,Таблица1[[#This Row],[название в \nАСТРА]])","v":0},{"$f":"Таблица1[[#This Row],[Масса целых]]+Таблица1[[#This Row],[Масса деловых]]","v":0},{"$f":"SUMIFS(Труба!$P$40:$P$85,Труба!$C$40:$C$85,Таблица1[[#This Row],[длина трубы\nмм]],Труба!$D$40:$D$85,\"=500\",Труба!$E$40:$E$85,Таблица1[[#This Row],[толщина\nмм ]],Труба!$F$40:$F$85,Таблица1[[#This Row],[название в \nАСТРА]])","v":0},{"$f":"SUMIFS(Труба!$P$40:$P$85,Труба!$C$40:$C$85,Таблица1[[#This Row],[не равно\n(для расчета)]],Труба!$D$40:$D$85,\"=500\",Труба!$E$40:$E$85,Таблица1[[#This Row],[толщина\nмм ]],Труба!$F$40:$F$85,Таблица1[[#This Row],[название в \nАСТРА]])","v":0},{"$f":"Таблица1[[#This Row],[Дел. ост.  Целых]]+Таблица1[[#This Row],[Дел. ост. Деловых]]","v":0},{"$f":"SUMIFS(Труба!$Z$40:$Z$85,Труба!$C$40:$C$85,Таблица1[[#This Row],[длина трубы\nмм]],Труба!$D$40:$D$85,\"=500\",Труба!$E$40:$E$85,Таблица1[[#This Row],[толщина\nмм ]],Труба!$F$40:$F$85,Таблица1[[#This Row],[название в \nАСТРА]])","v":0},{"$f":"SUMIFS(Труба!$Z$40:$Z$85,Труба!$C$40:$C$85,Таблица1[[#This Row],[не равно\n(для расчета)]],Труба!$D$40:$D$85,\"=500\",Труба!$E$40:$E$85,Таблица1[[#This Row],[толщина\nмм ]],Труба!$F$40:$F$85,Таблица1[[#This Row],[название в \nАСТРА]])","v":0},{"$f":"Таблица1[[#This Row],[Расход целых]]+Таблица1[[#This Row],[Расход деловых]]","v":0},{"$f":"Таблица1[[#This Row],[Чистый лом целых]]+Таблица1[[#This Row],[Чистый лом деловых]]-Таблица1[[#This Row],[Отход на порезку]]","v":0},{"$f":"Таблица1[[#This Row],[кол-во\n на план\n этого профиля]]*Таблица1[[#This Row],[толщина реза\nмм]]/1000/2*Таблица1[[#This Row],[масса 2м\n(коэф)]]","v":0},{"$f":"SUMIFS(Труба!$AA$40:$AA$85,Труба!$C$40:$C$85,Таблица1[[#This Row],[длина трубы\nмм]],Труба!$D$40:$D$85,\"=500\",Труба!$E$40:$E$85,Таблица1[[#This Row],[толщина\nмм ]],Труба!$F$40:$F$85,Таблица1[[#This Row],[название в \nАСТРА]])","v":0},{"$f":"SUMIFS(Труба!$AA$40:$AA$85,Труба!$C$40:$C$85,Таблица1[[#This Row],[не равно\n(для расчета)]],Труба!$D$40:$D$85,\"=500\",Труба!$E$40:$E$85,Таблица1[[#This Row],[толщина\nмм ]],Труба!$F$40:$F$85,Таблица1[[#This Row],[название в \nАСТРА]])","v":0}]
[null,null,null,{"$f":"SUMIFS(Труба!$I$9:$I$36,Труба!$F$9:$F$36,Таблица1[[#This Row],[название в \nАСТРА]])","v":0},"Прямоугольная","Труба","15х15х1","Труба 15х15 чм, 1.0 мм",1,0.85199999999999998,6000,"<>6000",5,{"$f":"SUMIFS(Труба!$G$40:$G$85,Труба!$C$40:$C$85,Таблица1[[#This Row],[длина трубы\nмм]],Труба!$D$40:$D$85,\"=500\",Труба!$E$40:$E$85,Таблица1[[#This Row],[толщина\nмм ]],Труба!$F$40:$F$85,Таблица1[[#This Row],[название в \nАСТРА]])","v":0},{"$f":"SUMIFS(Труба!$V$40:$V$85,Труба!$C$40:$C$85,Таблица1[[#This Row],[длина трубы\nмм]],Труба!$D$40:$D$85,\"=500\",Труба!$E$40:$E$85,Таблица1[[#This Row],[толщина\nмм ]],Труба!$F$40:$F$85,Таблица1[[#This Row],[название в \nАСТРА]])","v":0},{"$f":"SUMIFS(Труба!$V$40:$V$85,Труба!$C$40:$C$85,Таблица1[[#This Row],[не равно\n(для расчета)]],Труба!$D$40:$D$85,\"=500\",Труба!$E$40:$E$85,Таблица1[[#This Row],[толщина\nмм ]],Труба!$F$40:$F$85,Таблица1[[#This Row],[название в \nАСТРА]])","v":0},{"$f":"Таблица1[[#This Row],[Масса дет. целых]]+Таблица1[[#This Row],[Масса дет. Деловых]]","v":0},{"$f":"SUMIFS(Труба!$M$40:$M$85,Труба!$C$40:$C$85,Таблица1[[#This Row],[длина трубы\nмм]],Труба!$D$40:$D$85,\"=500\",Труба!$E$40:$E$85,Таблица1[[#This Row],[толщина\nмм ]],Труба!$F$40:$F$85,Таблица1[[#This Row],[название в \nАСТРА]])","v":0},{"$f":"SUMIFS(Труба!$M$40:$M$85,Труба!$C$40:$C$85,Таблица1[[#This Row],[не равно\n(для расчета)]],Труба!$D$40:$D$85,\"=500\",Труба!$E$40:$E$85,Таблица1[[#This Row],[толщина\nмм ]],Труба!$F$40:$F$85,Таблица1[[#This Row],[название в \nАСТРА]])","v":0},{"$f":"Таблица1[[#This Row],[Масса целых]]+Таблица1[[#This Row],[Масса деловых]]","v":0},{"$f":"SUMIFS(Труба!$P$40:$P$85,Труба!$C$40:$C$85,Таблица1[[#This Row],[длина трубы\nмм]],Труба!$D$40:$D$85,\"=500\",Труба!$E$40:$E$85,Таблица1[[#This Row],[толщина\nмм ]],Труба!$F$40:$F$85,Таблица1[[#This Row],[название в \nАСТРА]])","v":0},{"$f":"SUMIFS(Труба!$P$40:$P$85,Труба!$C$40:$C$85,Таблица1[[#This Row],[не равно\n(для расчета)]],Труба!$D$40:$D$85,\"=500\",Труба!$E$40:$E$85,Таблица1[[#This Row],[толщина\nмм ]],Труба!$F$40:$F$85,Таблица1[[#This Row],[название в \nАСТРА]])","v":0},{"$f":"Таблица1[[#This Row],[Дел. ост.  Целых]]+Таблица1[[#This Row],[Дел. ост. Деловых]]","v":0},{"$f":"SUMIFS(Труба!$Z$40:$Z$85,Труба!$C$40:$C$85,Таблица1[[#This Row],[длина трубы\nмм]],Труба!$D$40:$D$85,\"=500\",Труба!$E$40:$E$85,Таблица1[[#This Row],[толщина\nмм ]],Труба!$F$40:$F$85,Таблица1[[#This Row],[название в \nАСТРА]])","v":0},{"$f":"SUMIFS(Труба!$Z$40:$Z$85,Труба!$C$40:$C$85,Таблица1[[#This Row],[не равно\n(для расчета)]],Труба!$D$40:$D$85,\"=500\",Труба!$E$40:$E$85,Таблица1[[#This Row],[толщина\nмм ]],Труба!$F$40:$F$85,Таблица1[[#This Row],[название в \nАСТРА]])","v":0},{"$f":"Таблица1[[#This Row],[Расход целых]]+Таблица1[[#This Row],[Расход деловых]]","v":0},{"$f":"Таблица1[[#This Row],[Чистый лом целых]]+Таблица1[[#This Row],[Чистый лом деловых]]-Таблица1[[#This Row],[Отход на порезку]]","v":0},{"$f":"Таблица1[[#This Row],[кол-во\n на план\n этого профиля]]*Таблица1[[#This Row],[толщина реза\nмм]]/1000/2*Таблица1[[#This Row],[масса 2м\n(коэф)]]","v":0},{"$f":"SUMIFS(Труба!$AA$40:$AA$85,Труба!$C$40:$C$85,Таблица1[[#This Row],[длина трубы\nмм]],Труба!$D$40:$D$85,\"=500\",Труба!$E$40:$E$85,Таблица1[[#This Row],[толщина\nмм ]],Труба!$F$40:$F$85,Таблица1[[#This Row],[название в \nАСТРА]])","v":0},{"$f":"SUMIFS(Труба!$AA$40:$AA$85,Труба!$C$40:$C$85,Таблица1[[#This Row],[не равно\n(для расчета)]],Труба!$D$40:$D$85,\"=500\",Труба!$E$40:$E$85,Таблица1[[#This Row],[толщина\nмм ]],Труба!$F$40:$F$85,Таблица1[[#This Row],[название в \nАСТРА]])","v":0}]
[null,null,null,{"$f":"SUMIFS(Труба!$I$9:$I$36,Труба!$F$9:$F$36,Таблица1[[#This Row],[название в \nАСТРА]])","v":0},"Прямоугольная","Труба","17х17х2","Труба 17х17 чм, 2,0",2,1.88,6000,"<>6000",5,{"$f":"SUMIFS(Труба!$G$40:$G$85,Труба!$C$40:$C$85,Таблица1[[#This Row],[длина трубы\nмм]],Труба!$D$40:$D$85,\"=500\",Труба!$E$40:$E$85,Таблица1[[#This Row],[толщина\nмм ]],Труба!$F$40:$F$85,Таблица1[[#This Row],[название в \nАСТРА]])","v":0},{"$f":"SUMIFS(Труба!$V$40:$V$85,Труба!$C$40:$C$85,Таблица1[[#This Row],[длина трубы\nмм]],Труба!$D$40:$D$85,\"=500\",Труба!$E$40:$E$85,Таблица1[[#This Row],[толщина\nмм ]],Труба!$F$40:$F$85,Таблица1[[#This Row],[название в \nАСТРА]])","v":0},{"$f":"SUMIFS(Труба!$V$40:$V$85,Труба!$C$40:$C$85,Таблица1[[#This Row],[не равно\n(для расчета)]],Труба!$D$40:$D$85,\"=500\",Труба!$E$40:$E$85,Таблица1[[#This Row],[толщина\nмм ]],Труба!$F$40:$F$85,Таблица1[[#This Row],[название в \nАСТРА]])","v":0},{"$f":"Таблица1[[#This Row],[Масса дет. целых]]+Таблица1[[#This Row],[Масса дет. Деловых]]","v":0},{"$f":"SUMIFS(Труба!$M$40:$M$85,Труба!$C$40:$C$85,Таблица1[[#This Row],[длина трубы\nмм]],Труба!$D$40:$D$85,\"=500\",Труба!$E$40:$E$85,Таблица1[[#This Row],[толщина\nмм ]],Труба!$F$40:$F$85,Таблица1[[#This Row],[название в \nАСТРА]])","v":0},{"$f":"SUMIFS(Труба!$M$40:$M$85,Труба!$C$40:$C$85,Таблица1[[#This Row],[не равно\n(для расчета)]],Труба!$D$40:$D$85,\"=500\",Труба!$E$40:$E$85,Таблица1[[#This Row],[толщина\nмм ]],Труба!$F$40:$F$85,Таблица1[[#This Row],[название в \nАСТРА]])","v":0},{"$f":"Таблица1[[#This Row],[Масса целых]]+Таблица1[[#This Row],[Масса деловых]]","v":0},{"$f":"SUMIFS(Труба!$P$40:$P$85,Труба!$C$40:$C$85,Таблица1[[#This Row],[длина трубы\nмм]],Труба!$D$40:$D$85,\"=500\",Труба!$E$40:$E$85,Таблица1[[#This Row],[толщина\nмм ]],Труба!$F$40:$F$85,Таблица1[[#This Row],[название в \nАСТРА]])","v":0},{"$f":"SUMIFS(Труба!$P$40:$P$85,Труба!$C$40:$C$85,Таблица1[[#This Row],[не равно\n(для расчета)]],Труба!$D$40:$D$85,\"=500\",Труба!$E$40:$E$85,Таблица1[[#This Row],[толщина\nмм ]],Труба!$F$40:$F$85,Таблица1[[#This Row],[название в \nАСТРА]])","v":0},{"$f":"Таблица1[[#This Row],[Дел. ост.  Целых]]+Таблица1[[#This Row],[Дел. ост. Деловых]]","v":0},{"$f":"SUMIFS(Труба!$Z$40:$Z$85,Труба!$C$40:$C$85,Таблица1[[#This Row],[длина трубы\nмм]],Труба!$D$40:$D$85,\"=500\",Труба!$E$40:$E$85,Таблица1[[#This Row],[толщина\nмм ]],Труба!$F$40:$F$85,Таблица1[[#This Row],[название в \nАСТРА]])","v":0},{"$f":"SUMIFS(Труба!$Z$40:$Z$85,Труба!$C$40:$C$85,Таблица1[[#This Row],[не равно\n(для расчета)]],Труба!$D$40:$D$85,\"=500\",Труба!$E$40:$E$85,Таблица1[[#This Row],[толщина\nмм ]],Труба!$F$40:$F$85,Таблица1[[#This Row],[название в \nАСТРА]])","v":0},{"$f":"Таблица1[[#This Row],[Расход целых]]+Таблица1[[#This Row],[Расход деловых]]","v":0},{"$f":"Таблица1[[#This Row],[Чистый лом целых]]+Таблица1[[#This Row],[Чистый лом деловых]]-Таблица1[[#This Row],[Отход на порезку]]","v":0},{"$f":"Таблица1[[#This Row],[кол-во\n на план\n этого профиля]]*Таблица1[[#This Row],[толщина реза\nмм]]/1000/2*Таблица1[[#This Row],[масса 2м\n(коэф)]]","v":0},{"$f":"SUMIFS(Труба!$AA$40:$AA$85,Труба!$C$40:$C$85,Таблица1[[#This Row],[длина трубы\nмм]],Труба!$D$40:$D$85,\"=500\",Труба!$E$40:$E$85,Таблица1[[#This Row],[толщина\nмм ]],Труба!$F$40:$F$85,Таблица1[[#This Row],[название в \nАСТРА]])","v":0},{"$f":"SUMIFS(Труба!$AA$40:$AA$85,Труба!$C$40:$C$85,Таблица1[[#This Row],[не равно\n(для расчета)]],Труба!$D$40:$D$85,\"=500\",Труба!$E$40:$E$85,Таблица1[[#This Row],[толщина\nмм ]],Труба!$F$40:$F$85,Таблица1[[#This Row],[название в \nАСТРА]])","v":0}]
[null,null,null,{"$f":"SUMIFS(Труба!$I$9:$I$36,Труба!$F$9:$F$36,Таблица1[[#This Row],[название в \nАСТРА]])","v":0},"Прямоугольная","Труба","20х20х0,8","Труба 20х20 чм, 0.8 мм",0.8,1.006,6000,"<>6000",5,{"$f":"SUMIFS(Труба!$G$40:$G$85,Труба!$C$40:$C$85,Таблица1[[#This Row],[длина трубы\nмм]],Труба!$D$40:$D$85,\"=500\",Труба!$E$40:$E$85,Таблица1[[#This Row],[толщина\nмм ]],Труба!$F$40:$F$85,Таблица1[[#This Row],[название в \nАСТРА]])","v":0},{"$f":"SUMIFS(Труба!$V$40:$V$85,Труба!$C$40:$C$85,Таблица1[[#This Row],[длина трубы\nмм]],Труба!$D$40:$D$85,\"=500\",Труба!$E$40:$E$85,Таблица1[[#This Row],[толщина\nмм ]],Труба!$F$40:$F$85,Таблица1[[#This Row],[название в \nАСТРА]])","v":0},{"$f":"SUMIFS(Труба!$V$40:$V$85,Труба!$C$40:$C$85,Таблица1[[#This Row],[не равно\n(для расчета)]],Труба!$D$40:$D$85,\"=500\",Труба!$E$40:$E$85,Таблица1[[#This Row],[толщина\nмм ]],Труба!$F$40:$F$85,Таблица1[[#This Row],[название в \nАСТРА]])","v":0},{"$f":"Таблица1[[#This Row],[Масса дет. целых]]+Таблица1[[#This Row],[Масса дет. Деловых]]","v":0},{"$f":"SUMIFS(Труба!$M$40:$M$85,Труба!$C$40:$C$85,Таблица1[[#This Row],[длина трубы\nмм]],Труба!$D$40:$D$85,\"=500\",Труба!$E$40:$E$85,Таблица1[[#This Row],[толщина\nмм ]],Труба!$F$40:$F$85,Таблица1[[#This Row],[название в \nАСТРА]])","v":0},{"$f":"SUMIFS(Труба!$M$40:$M$85,Труба!$C$40:$C$85,Таблица1[[#This Row],[не равно\n(для расчета)]],Труба!$D$40:$D$85,\"=500\",Труба!$E$40:$E$85,Таблица1[[#This Row],[толщина\nмм ]],Труба!$F$40:$F$85,Таблица1[[#This Row],[название в \nАСТРА]])","v":0},{"$f":"Таблица1[[#This Row],[Масса целых]]+Таблица1[[#This Row],[Масса деловых]]","v":0},{"$f":"SUMIFS(Труба!$P$40:$P$85,Труба!$C$40:$C$85,Таблица1[[#This Row],[длина трубы\nмм]],Труба!$D$40:$D$85,\"=500\",Труба!$E$40:$E$85,Таблица1[[#This Row],[толщина\nмм ]],Труба!$F$40:$F$85,Таблица1[[#This Row],[название в \nАСТРА]])","v":0},{"$f":"SUMIFS(Труба!$P$40:$P$85,Труба!$C$40:$C$85,Таблица1[[#This Row],[не равно\n(для расчета)]],Труба!$D$40:$D$85,\"=500\",Труба!$E$40:$E$85,Таблица1[[#This Row],[толщина\nмм ]],Труба!$F$40:$F$85,Таблица1[[#This Row],[название в \nАСТРА]])","v":0},{"$f":"Таблица1[[#This Row],[Дел. ост.  Целых]]+Таблица1[[#This Row],[Дел. ост. Деловых]]","v":0},{"$f":"SUMIFS(Труба!$Z$40:$Z$85,Труба!$C$40:$C$85,Таблица1[[#This Row],[длина трубы\nмм]],Труба!$D$40:$D$85,\"=500\",Труба!$E$40:$E$85,Таблица1[[#This Row],[толщина\nмм ]],Труба!$F$40:$F$85,Таблица1[[#This Row],[название в \nАСТРА]])","v":0},{"$f":"SUMIFS(Труба!$Z$40:$Z$85,Труба!$C$40:$C$85,Таблица1[[#This Row],[не равно\n(для расчета)]],Труба!$D$40:$D$85,\"=500\",Труба!$E$40:$E$85,Таблица1[[#This Row],[толщина\nмм ]],Труба!$F$40:$F$85,Таблица1[[#This Row],[название в \nАСТРА]])","v":0},{"$f":"Таблица1[[#This Row],[Расход целых]]+Таблица1[[#This Row],[Расход деловых]]","v":0},{"$f":"Таблица1[[#This Row],[Чистый лом целых]]+Таблица1[[#This Row],[Чистый лом деловых]]-Таблица1[[#This Row],[Отход на порезку]]","v":0},{"$f":"Таблица1[[#This Row],[кол-во\n на план\n этого профиля]]*Таблица1[[#This Row],[толщина реза\nмм]]/1000/2*Таблица1[[#This Row],[масса 2м\n(коэф)]]","v":0},{"$f":"SUMIFS(Труба!$AA$40:$AA$85,Труба!$C$40:$C$85,Таблица1[[#This Row],[длина трубы\nмм]],Труба!$D$40:$D$85,\"=500\",Труба!$E$40:$E$85,Таблица1[[#This Row],[толщина\nмм ]],Труба!$F$40:$F$85,Таблица1[[#This Row],[название в \nАСТРА]])","v":0},{"$f":"SUMIFS(Труба!$AA$40:$AA$85,Труба!$C$40:$C$85,Таблица1[[#This Row],[не равно\n(для расчета)]],Труба!$D$40:$D$85,\"=500\",Труба!$E$40:$E$85,Таблица1[[#This Row],[толщина\nмм ]],Труба!$F$40:$F$85,Таблица1[[#This Row],[название в \nАСТРА]])","v":0}]
[null,null,null,{"$f":"SUMIFS(Труба!$I$9:$I$36,Труба!$F$9:$F$36,Таблица1[[#This Row],[название в \nАСТРА]])","v":0},"Прямоугольная","Труба","20х20х1","Труба 20х20 чм, 1.0 мм",1,1.248,6000,"<>6000",5,{"$f":"SUMIFS(Труба!$G$40:$G$85,Труба!$C$40:$C$85,Таблица1[[#This Row],[длина трубы\nмм]],Труба!$D$40:$D$85,\"=500\",Труба!$E$40:$E$85,Таблица1[[#This Row],[толщина\nмм ]],Труба!$F$40:$F$85,Таблица1[[#This Row],[название в \nАСТРА]])","v":0},{"$f":"SUMIFS(Труба!$V$40:$V$85,Труба!$C$40:$C$85,Таблица1[[#This Row],[длина трубы\nмм]],Труба!$D$40:$D$85,\"=500\",Труба!$E$40:$E$85,Таблица1[[#This Row],[толщина\nмм ]],Труба!$F$40:$F$85,Таблица1[[#This Row],[название в \nАСТРА]])","v":0},{"$f":"SUMIFS(Труба!$V$40:$V$85,Труба!$C$40:$C$85,Таблица1[[#This Row],[не равно\n(для расчета)]],Труба!$D$40:$D$85,\"=500\",Труба!$E$40:$E$85,Таблица1[[#This Row],[толщина\nмм ]],Труба!$F$40:$F$85,Таблица1[[#This Row],[название в \nАСТРА]])","v":0},{"$f":"Таблица1[[#This Row],[Масса дет. целых]]+Таблица1[[#This Row],[Масса дет. Деловых]]","v":0},{"$f":"SUMIFS(Труба!$M$40:$M$85,Труба!$C$40:$C$85,Таблица1[[#This Row],[длина трубы\nмм]],Труба!$D$40:$D$85,\"=500\",Труба!$E$40:$E$85,Таблица1[[#This Row],[толщина\nмм ]],Труба!$F$40:$F$85,Таблица1[[#This Row],[название в \nАСТРА]])","v":0},{"$f":"SUMIFS(Труба!$M$40:$M$85,Труба!$C$40:$C$85,Таблица1[[#This Row],[не равно\n(для расчета)]],Труба!$D$40:$D$85,\"=500\",Труба!$E$40:$E$85,Таблица1[[#This Row],[толщина\nмм ]],Труба!$F$40:$F$85,Таблица1[[#This Row],[название в \nАСТРА]])","v":0},{"$f":"Таблица1[[#This Row],[Масса целых]]+Таблица1[[#This Row],[Масса деловых]]","v":0},{"$f":"SUMIFS(Труба!$P$40:$P$85,Труба!$C$40:$C$85,Таблица1[[#This Row],[длина трубы\nмм]],Труба!$D$40:$D$85,\"=500\",Труба!$E$40:$E$85,Таблица1[[#This Row],[толщина\nмм ]],Труба!$F$40:$F$85,Таблица1[[#This Row],[название в \nАСТРА]])","v":0},{"$f":"SUMIFS(Труба!$P$40:$P$85,Труба!$C$40:$C$85,Таблица1[[#This Row],[не равно\n(для расчета)]],Труба!$D$40:$D$85,\"=500\",Труба!$E$40:$E$85,Таблица1[[#This Row],[толщина\nмм ]],Труба!$F$40:$F$85,Таблица1[[#This Row],[название в \nАСТРА]])","v":0},{"$f":"Таблица1[[#This Row],[Дел. ост.  Целых]]+Таблица1[[#This Row],[Дел. ост. Деловых]]","v":0},{"$f":"SUMIFS(Труба!$Z$40:$Z$85,Труба!$C$40:$C$85,Таблица1[[#This Row],[длина трубы\nмм]],Труба!$D$40:$D$85,\"=500\",Труба!$E$40:$E$85,Таблица1[[#This Row],[толщина\nмм ]],Труба!$F$40:$F$85,Таблица1[[#This Row],[название в \nАСТРА]])","v":0},{"$f":"SUMIFS(Труба!$Z$40:$Z$85,Труба!$C$40:$C$85,Таблица1[[#This Row],[не равно\n(для расчета)]],Труба!$D$40:$D$85,\"=500\",Труба!$E$40:$E$85,Таблица1[[#This Row],[толщина\nмм ]],Труба!$F$40:$F$85,Таблица1[[#This Row],[название в \nАСТРА]])","v":0},{"$f":"Таблица1[[#This Row],[Расход целых]]+Таблица1[[#This Row],[Расход деловых]]","v":0},{"$f":"Таблица1[[#This Row],[Чистый лом целых]]+Таблица1[[#This Row],[Чистый лом деловых]]-Таблица1[[#This Row],[Отход на порезку]]","v":0},{"$f":"Таблица1[[#This Row],[кол-во\n на план\n этого профиля]]*Таблица1[[#This Row],[толщина реза\nмм]]/1000/2*Таблица1[[#This Row],[масса 2м\n(коэф)]]","v":0},{"$f":"SUMIFS(Труба!$AA$40:$AA$85,Труба!$C$40:$C$85,Таблица1[[#This Row],[длина трубы\nмм]],Труба!$D$40:$D$85,\"=500\",Труба!$E$40:$E$85,Таблица1[[#This Row],[толщина\nмм ]],Труба!$F$40:$F$85,Таблица1[[#This Row],[название в \nАСТРА]])","v":0},{"$f":"SUMIFS(Труба!$AA$40:$AA$85,Труба!$C$40:$C$85,Таблица1[[#This Row],[не равно\n(для расчета)]],Труба!$D$40:$D$85,\"=500\",Труба!$E$40:$E$85,Таблица1[[#This Row],[толщина\nмм ]],Труба!$F$40:$F$85,Таблица1[[#This Row],[название в \nАСТРА]])","v":0}]
[null,null,null,{"$f":"SUMIFS(Труба!$I$9:$I$36,Труба!$F$9:$F$36,Таблица1[[#This Row],[название в \nАСТРА]])","v":0},"Прямоугольная","Труба","20х20х1,5","Труба 20х20 чм, 1.5 мм",1.5,1.8720000000000001,6000,"<>6000",5,{"$f":"SUMIFS(Труба!$G$40:$G$85,Труба!$C$40:$C$85,Таблица1[[#This Row],[длина трубы\nмм]],Труба!$D$40:$D$85,\"=500\",Труба!$E$40:$E$85,Таблица1[[#This Row],[толщина\nмм ]],Труба!$F$40:$F$85,Таблица1[[#This Row],[название в \nАСТРА]])","v":0},{"$f":"SUMIFS(Труба!$V$40:$V$85,Труба!$C$40:$C$85,Таблица1[[#This Row],[длина трубы\nмм]],Труба!$D$40:$D$85,\"=500\",Труба!$E$40:$E$85,Таблица1[[#This Row],[толщина\nмм ]],Труба!$F$40:$F$85,Таблица1[[#This Row],[название в \nАСТРА]])","v":0},{"$f":"SUMIFS(Труба!$V$40:$V$85,Труба!$C$40:$C$85,Таблица1[[#This Row],[не равно\n(для расчета)]],Труба!$D$40:$D$85,\"=500\",Труба!$E$40:$E$85,Таблица1[[#This Row],[толщина\nмм ]],Труба!$F$40:$F$85,Таблица1[[#This Row],[название в \nАСТРА]])","v":0},{"$f":"Таблица1[[#This Row],[Масса дет. целых]]+Таблица1[[#This Row],[Масса дет. Деловых]]","v":0},{"$f":"SUMIFS(Труба!$M$40:$M$85,Труба!$C$40:$C$85,Таблица1[[#This Row],[длина трубы\nмм]],Труба!$D$40:$D$85,\"=500\",Труба!$E$40:$E$85,Таблица1[[#This Row],[толщина\nмм ]],Труба!$F$40:$F$85,Таблица1[[#This Row],[название в \nАСТРА]])","v":0},{"$f":"SUMIFS(Труба!$M$40:$M$85,Труба!$C$40:$C$85,Таблица1[[#This Row],[не равно\n(для расчета)]],Труба!$D$40:$D$85,\"=500\",Труба!$E$40:$E$85,Таблица1[[#This Row],[толщина\nмм ]],Труба!$F$40:$F$85,Таблица1[[#This Row],[название в \nАСТРА]])","v":0},{"$f":"Таблица1[[#This Row],[Масса целых]]+Таблица1[[#This Row],[Масса деловых]]","v":0},{"$f":"SUMIFS(Труба!$P$40:$P$85,Труба!$C$40:$C$85,Таблица1[[#This Row],[длина трубы\nмм]],Труба!$D$40:$D$85,\"=500\",Труба!$E$40:$E$85,Таблица1[[#This Row],[толщина\nмм ]],Труба!$F$40:$F$85,Таблица1[[#This Row],[название в \nАСТРА]])","v":0},{"$f":"SUMIFS(Труба!$P$40:$P$85,Труба!$C$40:$C$85,Таблица1[[#This Row],[не равно\n(для расчета)]],Труба!$D$40:$D$85,\"=500\",Труба!$E$40:$E$85,Таблица1[[#This Row],[толщина\nмм ]],Труба!$F$40:$F$85,Таблица1[[#This Row],[название в \nАСТРА]])","v":0},{"$f":"Таблица1[[#This Row],[Дел. ост.  Целых]]+Таблица1[[#This Row],[Дел. ост. Деловых]]","v":0},{"$f":"SUMIFS(Труба!$Z$40:$Z$85,Труба!$C$40:$C$85,Таблица1[[#This Row],[длина трубы\nмм]],Труба!$D$40:$D$85,\"=500\",Труба!$E$40:$E$85,Таблица1[[#This Row],[толщина\nмм ]],Труба!$F$40:$F$85,Таблица1[[#This Row],[название в \nАСТРА]])","v":0},{"$f":"SUMIFS(Труба!$Z$40:$Z$85,Труба!$C$40:$C$85,Таблица1[[#This Row],[не равно\n(для расчета)]],Труба!$D$40:$D$85,\"=500\",Труба!$E$40:$E$85,Таблица1[[#This Row],[толщина\nмм ]],Труба!$F$40:$F$85,Таблица1[[#This Row],[название в \nАСТРА]])","v":0},{"$f":"Таблица1[[#This Row],[Расход целых]]+Таблица1[[#This Row],[Расход деловых]]","v":0},{"$f":"Таблица1[[#This Row],[Чистый лом целых]]+Таблица1[[#This Row],[Чистый лом деловых]]-Таблица1[[#This Row],[Отход на порезку]]","v":0},{"$f":"Таблица1[[#This Row],[кол-во\n на план\n этого профиля]]*Таблица1[[#This Row],[толщина реза\nмм]]/1000/2*Таблица1[[#This Row],[масса 2м\n(коэф)]]","v":0},{"$f":"SUMIFS(Труба!$AA$40:$AA$85,Труба!$C$40:$C$85,Таблица1[[#This Row],[длина трубы\nмм]],Труба!$D$40:$D$85,\"=500\",Труба!$E$40:$E$85,Таблица1[[#This Row],[толщина\nмм ]],Труба!$F$40:$F$85,Таблица1[[#This Row],[название в \nАСТРА]])","v":0},{"$f":"SUMIFS(Труба!$AA$40:$AA$85,Труба!$C$40:$C$85,Таблица1[[#This Row],[не равно\n(для расчета)]],Труба!$D$40:$D$85,\"=500\",Труба!$E$40:$E$85,Таблица1[[#This Row],[толщина\nмм ]],Труба!$F$40:$F$85,Таблица1[[#This Row],[название в \nАСТРА]])","v":0}]
[null,null,null,{"$f":"SUMIFS(Труба!$I$9:$I$36,Труба!$F$9:$F$36,Таблица1[[#This Row],[название в \nАСТРА]])","v":0},"Прямоугольная","Труба","20х20х2","Труба 20х20 чм, 2.0 мм",2,2.2519999999999998,6000,"<>6000",5,{"$f":"SUMIFS(Труба!$G$40:$G$85,Труба!$C$40:$C$85,Таблица1[[#This Row],[длина трубы\nмм]],Труба!$D$40:$D$85,\"=500\",Труба!$E$40:$E$85,Таблица1[[#This Row],[толщина\nмм ]],Труба!$F$40:$F$85,Таблица1[[#This Row],[название в \nАСТРА]])","v":0},{"$f":"SUMIFS(Труба!$V$40:$V$85,Труба!$C$40:$C$85,Таблица1[[#This Row],[длина трубы\nмм]],Труба!$D$40:$D$85,\"=500\",Труба!$E$40:$E$85,Таблица1[[#This Row],[толщина\nмм ]],Труба!$F$40:$F$85,Таблица1[[#This Row],[название в \nАСТРА]])","v":0},{"$f":"SUMIFS(Труба!$V$40:$V$85,Труба!$C$40:$C$85,Таблица1[[#This Row],[не равно\n(для расчета)]],Труба!$D$40:$D$85,\"=500\",Труба!$E$40:$E$85,Таблица1[[#This Row],[толщина\nмм ]],Труба!$F$40:$F$85,Таблица1[[#This Row],[название в \nАСТРА]])","v":0},{"$f":"Таблица1[[#This Row],[Масса дет. целых]]+Таблица1[[#This Row],[Масса дет. Деловых]]","v":0},{"$f":"SUMIFS(Труба!$M$40:$M$85,Труба!$C$40:$C$85,Таблица1[[#This Row],[длина трубы\nмм]],Труба!$D$40:$D$85,\"=500\",Труба!$E$40:$E$85,Таблица1[[#This Row],[толщина\nмм ]],Труба!$F$40:$F$85,Таблица1[[#This Row],[название в \nАСТРА]])","v":0},{"$f":"SUMIFS(Труба!$M$40:$M$85,Труба!$C$40:$C$85,Таблица1[[#This Row],[не равно\n(для расчета)]],Труба!$D$40:$D$85,\"=500\",Труба!$E$40:$E$85,Таблица1[[#This Row],[толщина\nмм ]],Труба!$F$40:$F$85,Таблица1[[#This Row],[название в \nАСТРА]])","v":0},{"$f":"Таблица1[[#This Row],[Масса целых]]+Таблица1[[#This Row],[Масса деловых]]","v":0},{"$f":"SUMIFS(Труба!$P$40:$P$85,Труба!$C$40:$C$85,Таблица1[[#This Row],[длина трубы\nмм]],Труба!$D$40:$D$85,\"=500\",Труба!$E$40:$E$85,Таблица1[[#This Row],[толщина\nмм ]],Труба!$F$40:$F$85,Таблица1[[#This Row],[название в \nАСТРА]])","v":0},{"$f":"SUMIFS(Труба!$P$40:$P$85,Труба!$C$40:$C$85,Таблица1[[#This Row],[не равно\n(для расчета)]],Труба!$D$40:$D$85,\"=500\",Труба!$E$40:$E$85,Таблица1[[#This Row],[толщина\nмм ]],Труба!$F$40:$F$85,Таблица1[[#This Row],[название в \nАСТРА]])","v":0},{"$f":"Таблица1[[#This Row],[Дел. ост.  Целых]]+Таблица1[[#This Row],[Дел. ост. Деловых]]","v":0},{"$f":"SUMIFS(Труба!$Z$40:$Z$85,Труба!$C$40:$C$85,Таблица1[[#This Row],[длина трубы\nмм]],Труба!$D$40:$D$85,\"=500\",Труба!$E$40:$E$85,Таблица1[[#This Row],[толщина\nмм ]],Труба!$F$40:$F$85,Таблица1[[#This Row],[название в \nАСТРА]])","v":0},{"$f":"SUMIFS(Труба!$Z$40:$Z$85,Труба!$C$40:$C$85,Таблица1[[#This Row],[не равно\n(для расчета)]],Труба!$D$40:$D$85,\"=500\",Труба!$E$40:$E$85,Таблица1[[#This Row],[толщина\nмм ]],Труба!$F$40:$F$85,Таблица1[[#This Row],[название в \nАСТРА]])","v":0},{"$f":"Таблица1[[#This Row],[Расход целых]]+Таблица1[[#This Row],[Расход деловых]]","v":0},{"$f":"Таблица1[[#This Row],[Чистый лом целых]]+Таблица1[[#This Row],[Чистый лом деловых]]-Таблица1[[#This Row],[Отход на порезку]]","v":0},{"$f":"Таблица1[[#This Row],[кол-во\n на план\n этого профиля]]*Таблица1[[#This Row],[толщина реза\nмм]]/1000/2*Таблица1[[#This Row],[масса 2м\n(коэф)]]","v":0},{"$f":"SUMIFS(Труба!$AA$40:$AA$85,Труба!$C$40:$C$85,Таблица1[[#This Row],[длина трубы\nмм]],Труба!$D$40:$D$85,\"=500\",Труба!$E$40:$E$85,Таблица1[[#This Row],[толщина\nмм ]],Труба!$F$40:$F$85,Таблица1[[#This Row],[название в \nАСТРА]])","v":0},{"$f":"SUMIFS(Труба!$AA$40:$AA$85,Труба!$C$40:$C$85,Таблица1[[#This Row],[не равно\n(для расчета)]],Труба!$D$40:$D$85,\"=500\",Труба!$E$40:$E$85,Таблица1[[#This Row],[толщина\nмм ]],Труба!$F$40:$F$85,Таблица1[[#This Row],[название в \nАСТРА]])","v":0}]
[null,null,null,{"$f":"SUMIFS(Труба!$I$9:$I$36,Труба!$F$9:$F$36,Таблица1[[#This Row],[название в \nАСТРА]])","v":0},"Прямоугольная","Труба","25х25х0,8","Труба 25х25 чм, 0.8 мм",0.8,1.2383999999999999,6000,"<>6000",5,{"$f":"SUMIFS(Труба!$G$40:$G$85,Труба!$C$40:$C$85,Таблица1[[#This Row],[длина трубы\nмм]],Труба!$D$40:$D$85,\"=500\",Труба!$E$40:$E$85,Таблица1[[#This Row],[толщина\nмм ]],Труба!$F$40:$F$85,Таблица1[[#This Row],[название в \nАСТРА]])","v":0},{"$f":"SUMIFS(Труба!$V$40:$V$85,Труба!$C$40:$C$85,Таблица1[[#This Row],[длина трубы\nмм]],Труба!$D$40:$D$85,\"=500\",Труба!$E$40:$E$85,Таблица1[[#This Row],[толщина\nмм ]],Труба!$F$40:$F$85,Таблица1[[#This Row],[название в \nАСТРА]])","v":0},{"$f":"SUMIFS(Труба!$V$40:$V$85,Труба!$C$40:$C$85,Таблица1[[#This Row],[не равно\n(для расчета)]],Труба!$D$40:$D$85,\"=500\",Труба!$E$40:$E$85,Таблица1[[#This Row],[толщина\nмм ]],Труба!$F$40:$F$85,Таблица1[[#This Row],[название в \nАСТРА]])","v":0},{"$f":"Таблица1[[#This Row],[Масса дет. целых]]+Таблица1[[#This Row],[Масса дет. Деловых]]","v":0},{"$f":"SUMIFS(Труба!$M$40:$M$85,Труба!$C$40:$C$85,Таблица1[[#This Row],[длина трубы\nмм]],Труба!$D$40:$D$85,\"=500\",Труба!$E$40:$E$85,Таблица1[[#This Row],[толщина\nмм ]],Труба!$F$40:$F$85,Таблица1[[#This Row],[название в \nАСТРА]])","v":0},{"$f":"SUMIFS(Труба!$M$40:$M$85,Труба!$C$40:$C$85,Таблица1[[#This Row],[не равно\n(для расчета)]],Труба!$D$40:$D$85,\"=500\",Труба!$E$40:$E$85,Таблица1[[#This Row],[толщина\nмм ]],Труба!$F$40:$F$85,Таблица1[[#This Row],[название в \nАСТРА]])","v":0},{"$f":"Таблица1[[#This Row],[Масса целых]]+Таблица1[[#This Row],[Масса деловых]]","v":0},{"$f":"SUMIFS(Труба!$P$40:$P$85,Труба!$C$40:$C$85,Таблица1[[#This Row],[длина трубы\nмм]],Труба!$D$40:$D$85,\"=500\",Труба!$E$40:$E$85,Таблица1[[#This Row],[толщина\nмм ]],Труба!$F$40:$F$85,Таблица1[[#This Row],[название в \nАСТРА]])","v":0},{"$f":"SUMIFS(Труба!$P$40:$P$85,Труба!$C$40:$C$85,Таблица1[[#This Row],[не равно\n(для расчета)]],Труба!$D$40:$D$85,\"=500\",Труба!$E$40:$E$85,Таблица1[[#This Row],[толщина\nмм ]],Труба!$F$40:$F$85,Таблица1[[#This Row],[название в \nАСТРА]])","v":0},{"$f":"Таблица1[[#This Row],[Дел. ост.  Целых]]+Таблица1[[#This Row],[Дел. ост. Деловых]]","v":0},{"$f":"SUMIFS(Труба!$Z$40:$Z$85,Труба!$C$40:$C$85,Таблица1[[#This Row],[длина трубы\nмм]],Труба!$D$40:$D$85,\"=500\",Труба!$E$40:$E$85,Таблица1[[#This Row],[толщина\nмм ]],Труба!$F$40:$F$85,Таблица1[[#This Row],[название в \nАСТРА]])","v":0},{"$f":"SUMIFS(Труба!$Z$40:$Z$85,Труба!$C$40:$C$85,Таблица1[[#This Row],[не равно\n(для расчета)]],Труба!$D$40:$D$85,\"=500\",Труба!$E$40:$E$85,Таблица1[[#This Row],[толщина\nмм ]],Труба!$F$40:$F$85,Таблица1[[#This Row],[название в \nАСТРА]])","v":0},{"$f":"Таблица1[[#This Row],[Расход целых]]+Таблица1[[#This Row],[Расход деловых]]","v":0},{"$f":"Таблица1[[#This Row],[Чистый лом целых]]+Таблица1[[#This Row],[Чистый лом деловых]]-Таблица1[[#This Row],[Отход на порезку]]","v":0},{"$f":"Таблица1[[#This Row],[кол-во\n на план\n этого профиля]]*Таблица1[[#This Row],[толщина реза\nмм]]/1000/2*Таблица1[[#This Row],[масса 2м\n(коэф)]]","v":0},{"$f":"SUMIFS(Труба!$AA$40:$AA$85,Труба!$C$40:$C$85,Таблица1[[#This Row],[длина трубы\nмм]],Труба!$D$40:$D$85,\"=500\",Труба!$E$40:$E$85,Таблица1[[#This Row],[толщина\nмм ]],Труба!$F$40:$F$85,Таблица1[[#This Row],[название в \nАСТРА]])","v":0},{"$f":"SUMIFS(Труба!$AA$40:$AA$85,Труба!$C$40:$C$85,Таблица1[[#This Row],[не равно\n(для расчета)]],Труба!$D$40:$D$85,\"=500\",Труба!$E$40:$E$85,Таблица1[[#This Row],[толщина\nмм ]],Труба!$F$40:$F$85,Таблица1[[#This Row],[название в \nАСТРА]])","v":0}]
[null,null,null,{"$f":"SUMIFS(Труба!$I$9:$I$36,Труба!$F$9:$F$36,Таблица1[[#This Row],[название в \nАСТРА]])","v":0},"Прямоугольная","Труба","25х25х1","Труба 25х25 чм, 1.0 мм",1,1.548,6000,"<>6000",5,{"$f":"SUMIFS(Труба!$G$40:$G$85,Труба!$C$40:$C$85,Таблица1[[#This Row],[длина трубы\nмм]],Труба!$D$40:$D$85,\"=500\",Труба!$E$40:$E$85,Таблица1[[#This Row],[толщина\nмм ]],Труба!$F$40:$F$85,Таблица1[[#This Row],[название в \nАСТРА]])","v":0},{"$f":"SUMIFS(Труба!$V$40:$V$85,Труба!$C$40:$C$85,Таблица1[[#This Row],[длина трубы\nмм]],Труба!$D$40:$D$85,\"=500\",Труба!$E$40:$E$85,Таблица1[[#This Row],[толщина\nмм ]],Труба!$F$40:$F$85,Таблица1[[#This Row],[название в \nАСТРА]])","v":0},{"$f":"SUMIFS(Труба!$V$40:$V$85,Труба!$C$40:$C$85,Таблица1[[#This Row],[не равно\n(для расчета)]],Труба!$D$40:$D$85,\"=500\",Труба!$E$40:$E$85,Таблица1[[#This Row],[толщина\nмм ]],Труба!$F$40:$F$85,Таблица1[[#This Row],[название в \nАСТРА]])","v":0},{"$f":"Таблица1[[#This Row],[Масса дет. целых]]+Таблица1[[#This Row],[Масса дет. Деловых]]","v":0},{"$f":"SUMIFS(Труба!$M$40:$M$85,Труба!$C$40:$C$85,Таблица1[[#This Row],[длина трубы\nмм]],Труба!$D$40:$D$85,\"=500\",Труба!$E$40:$E$85,Таблица1[[#This Row],[толщина\nмм ]],Труба!$F$40:$F$85,Таблица1[[#This Row],[название в \nАСТРА]])","v":0},{"$f":"SUMIFS(Труба!$M$40:$M$85,Труба!$C$40:$C$85,Таблица1[[#This Row],[не равно\n(для расчета)]],Труба!$D$40:$D$85,\"=500\",Труба!$E$40:$E$85,Таблица1[[#This Row],[толщина\nмм ]],Труба!$F$40:$F$85,Таблица1[[#This Row],[название в \nАСТРА]])","v":0},{"$f":"Таблица1[[#This Row],[Масса целых]]+Таблица1[[#This Row],[Масса деловых]]","v":0},{"$f":"SUMIFS(Труба!$P$40:$P$85,Труба!$C$40:$C$85,Таблица1[[#This Row],[длина трубы\nмм]],Труба!$D$40:$D$85,\"=500\",Труба!$E$40:$E$85,Таблица1[[#This Row],[толщина\nмм ]],Труба!$F$40:$F$85,Таблица1[[#This Row],[название в \nАСТРА]])","v":0},{"$f":"SUMIFS(Труба!$P$40:$P$85,Труба!$C$40:$C$85,Таблица1[[#This Row],[не равно\n(для расчета)]],Труба!$D$40:$D$85,\"=500\",Труба!$E$40:$E$85,Таблица1[[#This Row],[толщина\nмм ]],Труба!$F$40:$F$85,Таблица1[[#This Row],[название в \nАСТРА]])","v":0},{"$f":"Таблица1[[#This Row],[Дел. ост.  Целых]]+Таблица1[[#This Row],[Дел. ост. Деловых]]","v":0},{"$f":"SUMIFS(Труба!$Z$40:$Z$85,Труба!$C$40:$C$85,Таблица1[[#This Row],[длина трубы\nмм]],Труба!$D$40:$D$85,\"=500\",Труба!$E$40:$E$85,Таблица1[[#This Row],[толщина\nмм ]],Труба!$F$40:$F$85,Таблица1[[#This Row],[название в \nАСТРА]])","v":0},{"$f":"SUMIFS(Труба!$Z$40:$Z$85,Труба!$C$40:$C$85,Таблица1[[#This Row],[не равно\n(для расчета)]],Труба!$D$40:$D$85,\"=500\",Труба!$E$40:$E$85,Таблица1[[#This Row],[толщина\nмм ]],Труба!$F$40:$F$85,Таблица1[[#This Row],[название в \nАСТРА]])","v":0},{"$f":"Таблица1[[#This Row],[Расход целых]]+Таблица1[[#This Row],[Расход деловых]]","v":0},{"$f":"Таблица1[[#This Row],[Чистый лом целых]]+Таблица1[[#This Row],[Чистый лом деловых]]-Таблица1[[#This Row],[Отход на порезку]]","v":0},{"$f":"Таблица1[[#This Row],[кол-во\n на план\n этого профиля]]*Таблица1[[#This Row],[толщина реза\nмм]]/1000/2*Таблица1[[#This Row],[масса 2м\n(коэф)]]","v":0},{"$f":"SUMIFS(Труба!$AA$40:$AA$85,Труба!$C$40:$C$85,Таблица1[[#This Row],[длина трубы\nмм]],Труба!$D$40:$D$85,\"=500\",Труба!$E$40:$E$85,Таблица1[[#This Row],[толщина\nмм ]],Труба!$F$40:$F$85,Таблица1[[#This Row],[название в \nАСТРА]])","v":0},{"$f":"SUMIFS(Труба!$AA$40:$AA$85,Труба!$C$40:$C$85,Таблица1[[#This Row],[не равно\n(для расчета)]],Труба!$D$40:$D$85,\"=500\",Труба!$E$40:$E$85,Таблица1[[#This Row],[толщина\nмм ]],Труба!$F$40:$F$85,Таблица1[[#This Row],[название в \nАСТРА]])","v":0}]
[null,null,null,{"$f":"SUMIFS(Труба!$I$9:$I$36,Труба!$F$9:$F$36,Таблица1[[#This Row],[название в \nАСТРА]])","v":0},"Прямоугольная","Труба","25х25х1,2","Труба 25х25 чм, 1.2 мм",1.2,1.8575999999999999,6000,"<>6000",5,{"$f":"SUMIFS(Труба!$G$40:$G$85,Труба!$C$40:$C$85,Таблица1[[#This Row],[длина трубы\nмм]],Труба!$D$40:$D$85,\"=500\",Труба!$E$40:$E$85,Таблица1[[#This Row],[толщина\nмм ]],Труба!$F$40:$F$85,Таблица1[[#This Row],[название в \nАСТРА]])","v":0},{"$f":"SUMIFS(Труба!$V$40:$V$85,Труба!$C$40:$C$85,Таблица1[[#This Row],[длина трубы\nмм]],Труба!$D$40:$D$85,\"=500\",Труба!$E$40:$E$85,Таблица1[[#This Row],[толщина\nмм ]],Труба!$F$40:$F$85,Таблица1[[#This Row],[название в \nАСТРА]])","v":0},{"$f":"SUMIFS(Труба!$V$40:$V$85,Труба!$C$40:$C$85,Таблица1[[#This Row],[не равно\n(для расчета)]],Труба!$D$40:$D$85,\"=500\",Труба!$E$40:$E$85,Таблица1[[#This Row],[толщина\nмм ]],Труба!$F$40:$F$85,Таблица1[[#This Row],[название в \nАСТРА]])","v":0},{"$f":"Таблица1[[#This Row],[Масса дет. целых]]+Таблица1[[#This Row],[Масса дет. Деловых]]","v":0},{"$f":"SUMIFS(Труба!$M$40:$M$85,Труба!$C$40:$C$85,Таблица1[[#This Row],[длина трубы\nмм]],Труба!$D$40:$D$85,\"=500\",Труба!$E$40:$E$85,Таблица1[[#This Row],[толщина\nмм ]],Труба!$F$40:$F$85,Таблица1[[#This Row],[название в \nАСТРА]])","v":0},{"$f":"SUMIFS(Труба!$M$40:$M$85,Труба!$C$40:$C$85,Таблица1[[#This Row],[не равно\n(для расчета)]],Труба!$D$40:$D$85,\"=500\",Труба!$E$40:$E$85,Таблица1[[#This Row],[толщина\nмм ]],Труба!$F$40:$F$85,Таблица1[[#This Row],[название в \nАСТРА]])","v":0},{"$f":"Таблица1[[#This Row],[Масса целых]]+Таблица1[[#This Row],[Масса деловых]]","v":0},{"$f":"SUMIFS(Труба!$P$40:$P$85,Труба!$C$40:$C$85,Таблица1[[#This Row],[длина трубы\nмм]],Труба!$D$40:$D$85,\"=500\",Труба!$E$40:$E$85,Таблица1[[#This Row],[толщина\nмм ]],Труба!$F$40:$F$85,Таблица1[[#This Row],[название в \nАСТРА]])","v":0},{"$f":"SUMIFS(Труба!$P$40:$P$85,Труба!$C$40:$C$85,Таблица1[[#This Row],[не равно\n(для расчета)]],Труба!$D$40:$D$85,\"=500\",Труба!$E$40:$E$85,Таблица1[[#This Row],[толщина\nмм ]],Труба!$F$40:$F$85,Таблица1[[#This Row],[название в \nАСТРА]])","v":0},{"$f":"Таблица1[[#This Row],[Дел. ост.  Целых]]+Таблица1[[#This Row],[Дел. ост. Деловых]]","v":0},{"$f":"SUMIFS(Труба!$Z$40:$Z$85,Труба!$C$40:$C$85,Таблица1[[#This Row],[длина трубы\nмм]],Труба!$D$40:$D$85,\"=500\",Труба!$E$40:$E$85,Таблица1[[#This Row],[толщина\nмм ]],Труба!$F$40:$F$85,Таблица1[[#This Row],[название в \nАСТРА]])","v":0},{"$f":"SUMIFS(Труба!$Z$40:$Z$85,Труба!$C$40:$C$85,Таблица1[[#This Row],[не равно\n(для расчета)]],Труба!$D$40:$D$85,\"=500\",Труба!$E$40:$E$85,Таблица1[[#This Row],[толщина\nмм ]],Труба!$F$40:$F$85,Таблица1[[#This Row],[название в \nАСТРА]])","v":0},{"$f":"Таблица1[[#This Row],[Расход целых]]+Таблица1[[#This Row],[Расход деловых]]","v":0},{"$f":"Таблица1[[#This Row],[Чистый лом целых]]+Таблица1[[#This Row],[Чистый лом деловых]]-Таблица1[[#This Row],[Отход на порезку]]","v":0},{"$f":"Таблица1[[#This Row],[кол-во\n на план\n этого профиля]]*Таблица1[[#This Row],[толщина реза\nмм]]/1000/2*Таблица1[[#This Row],[масса 2м\n(коэф)]]","v":0},{"$f":"SUMIFS(Труба!$AA$40:$AA$85,Труба!$C$40:$C$85,Таблица1[[#This Row],[длина трубы\nмм]],Труба!$D$40:$D$85,\"=500\",Труба!$E$40:$E$85,Таблица1[[#This Row],[толщина\nмм ]],Труба!$F$40:$F$85,Таблица1[[#This Row],[название в \nАСТРА]])","v":0},{"$f":"SUMIFS(Труба!$AA$40:$AA$85,Труба!$C$40:$C$85,Таблица1[[#This Row],[не равно\n(для расчета)]],Труба!$D$40:$D$85,\"=500\",Труба!$E$40:$E$85,Таблица1[[#This Row],[толщина\nмм ]],Труба!$F$40:$F$85,Таблица1[[#This Row],[название в \nАСТРА]])","v":0}]
[null,null,null,{"$f":"SUMIFS(Труба!$I$9:$I$36,Труба!$F$9:$F$36,Таблица1[[#This Row],[название в \nАСТРА]])","v":0},"Прямоугольная","Труба","25х25х1,5","Труба 25х25 чм, 1.5 мм",1.5,2.2200000000000002,6000,"<>6000",5,{"$f":"SUMIFS(Труба!$G$40:$G$85,Труба!$C$40:$C$85,Таблица1[[#This Row],[длина трубы\nмм]],Труба!$D$40:$D$85,\"=500\",Труба!$E$40:$E$85,Таблица1[[#This Row],[толщина\nмм ]],Труба!$F$40:$F$85,Таблица1[[#This Row],[название в \nАСТРА]])","v":0},{"$f":"SUMIFS(Труба!$V$40:$V$85,Труба!$C$40:$C$85,Таблица1[[#This Row],[длина трубы\nмм]],Труба!$D$40:$D$85,\"=500\",Труба!$E$40:$E$85,Таблица1[[#This Row],[толщина\nмм ]],Труба!$F$40:$F$85,Таблица1[[#This Row],[название в \nАСТРА]])","v":0},{"$f":"SUMIFS(Труба!$V$40:$V$85,Труба!$C$40:$C$85,Таблица1[[#This Row],[не равно\n(для расчета)]],Труба!$D$40:$D$85,\"=500\",Труба!$E$40:$E$85,Таблица1[[#This Row],[толщина\nмм ]],Труба!$F$40:$F$85,Таблица1[[#This Row],[название в \nАСТРА]])","v":0},{"$f":"Таблица1[[#This Row],[Масса дет. целых]]+Таблица1[[#This Row],[Масса дет. Деловых]]","v":0},{"$f":"SUMIFS(Труба!$M$40:$M$85,Труба!$C$40:$C$85,Таблица1[[#This Row],[длина трубы\nмм]],Труба!$D$40:$D$85,\"=500\",Труба!$E$40:$E$85,Таблица1[[#This Row],[толщина\nмм ]],Труба!$F$40:$F$85,Таблица1[[#This Row],[название в \nАСТРА]])","v":0},{"$f":"SUMIFS(Труба!$M$40:$M$85,Труба!$C$40:$C$85,Таблица1[[#This Row],[не равно\n(для расчета)]],Труба!$D$40:$D$85,\"=500\",Труба!$E$40:$E$85,Таблица1[[#This Row],[толщина\nмм ]],Труба!$F$40:$F$85,Таблица1[[#This Row],[название в \nАСТРА]])","v":0},{"$f":"Таблица1[[#This Row],[Масса целых]]+Таблица1[[#This Row],[Масса деловых]]","v":0},{"$f":"SUMIFS(Труба!$P$40:$P$85,Труба!$C$40:$C$85,Таблица1[[#This Row],[длина трубы\nмм]],Труба!$D$40:$D$85,\"=500\",Труба!$E$40:$E$85,Таблица1[[#This Row],[толщина\nмм ]],Труба!$F$40:$F$85,Таблица1[[#This Row],[название в \nАСТРА]])","v":0},{"$f":"SUMIFS(Труба!$P$40:$P$85,Труба!$C$40:$C$85,Таблица1[[#This Row],[не равно\n(для расчета)]],Труба!$D$40:$D$85,\"=500\",Труба!$E$40:$E$85,Таблица1[[#This Row],[толщина\nмм ]],Труба!$F$40:$F$85,Таблица1[[#This Row],[название в \nАСТРА]])","v":0},{"$f":"Таблица1[[#This Row],[Дел. ост.  Целых]]+Таблица1[[#This Row],[Дел. ост. Деловых]]","v":0},{"$f":"SUMIFS(Труба!$Z$40:$Z$85,Труба!$C$40:$C$85,Таблица1[[#This Row],[длина трубы\nмм]],Труба!$D$40:$D$85,\"=500\",Труба!$E$40:$E$85,Таблица1[[#This Row],[толщина\nмм ]],Труба!$F$40:$F$85,Таблица1[[#This Row],[название в \nАСТРА]])","v":0},{"$f":"SUMIFS(Труба!$Z$40:$Z$85,Труба!$C$40:$C$85,Таблица1[[#This Row],[не равно\n(для расчета)]],Труба!$D$40:$D$85,\"=500\",Труба!$E$40:$E$85,Таблица1[[#This Row],[толщина\nмм ]],Труба!$F$40:$F$85,Таблица1[[#This Row],[название в \nАСТРА]])","v":0},{"$f":"Таблица1[[#This Row],[Расход целых]]+Таблица1[[#This Row],[Расход деловых]]","v":0},{"$f":"Таблица1[[#This Row],[Чистый лом целых]]+Таблица1[[#This Row],[Чистый лом деловых]]-Таблица1[[#This Row],[Отход на порезку]]","v":0},{"$f":"Таблица1[[#This Row],[кол-во\n на план\n этого профиля]]*Таблица1[[#This Row],[толщина реза\nмм]]/1000/2*Таблица1[[#This Row],[масса 2м\n(коэф)]]","v":0},{"$f":"SUMIFS(Труба!$AA$40:$AA$85,Труба!$C$40:$C$85,Таблица1[[#This Row],[длина трубы\nмм]],Труба!$D$40:$D$85,\"=500\",Труба!$E$40:$E$85,Таблица1[[#This Row],[толщина\nмм ]],Труба!$F$40:$F$85,Таблица1[[#This Row],[название в \nАСТРА]])","v":0},{"$f":"SUMIFS(Труба!$AA$40:$AA$85,Труба!$C$40:$C$85,Таблица1[[#This Row],[не равно\n(для расчета)]],Труба!$D$40:$D$85,\"=500\",Труба!$E$40:$E$85,Таблица1[[#This Row],[толщина\nмм ]],Труба!$F$40:$F$85,Таблица1[[#This Row],[название в \nАСТРА]])","v":0}]
[null,null,null,{"$f":"SUMIFS(Труба!$I$9:$I$36,Труба!$F$9:$F$36,Таблица1[[#This Row],[название в \nАСТРА]])","v":0},"Прямоугольная","Труба","25х25х2","Труба 25х25 чм, 2.0 мм",2,3.0960000000000001,6000,"<>6000",5,{"$f":"SUMIFS(Труба!$G$40:$G$85,Труба!$C$40:$C$85,Таблица1[[#This Row],[длина трубы\nмм]],Труба!$D$40:$D$85,\"=500\",Труба!$E$40:$E$85,Таблица1[[#This Row],[толщина\nмм ]],Труба!$F$40:$F$85,Таблица1[[#This Row],[название в \nАСТРА]])","v":0},{"$f":"SUMIFS(Труба!$V$40:$V$85,Труба!$C$40:$C$85,Таблица1[[#This Row],[длина трубы\nмм]],Труба!$D$40:$D$85,\"=500\",Труба!$E$40:$E$85,Таблица1[[#This Row],[толщина\nмм ]],Труба!$F$40:$F$85,Таблица1[[#This Row],[название в \nАСТРА]])","v":0},{"$f":"SUMIFS(Труба!$V$40:$V$85,Труба!$C$40:$C$85,Таблица1[[#This Row],[не равно\n(для расчета)]],Труба!$D$40:$D$85,\"=500\",Труба!$E$40:$E$85,Таблица1[[#This Row],[толщина\nмм ]],Труба!$F$40:$F$85,Таблица1[[#This Row],[название в \nАСТРА]])","v":0},{"$f":"Таблица1[[#This Row],[Масса дет. целых]]+Таблица1[[#This Row],[Масса дет. Деловых]]","v":0},{"$f":"SUMIFS(Труба!$M$40:$M$85,Труба!$C$40:$C$85,Таблица1[[#This Row],[длина трубы\nмм]],Труба!$D$40:$D$85,\"=500\",Труба!$E$40:$E$85,Таблица1[[#This Row],[толщина\nмм ]],Труба!$F$40:$F$85,Таблица1[[#This Row],[название в \nАСТРА]])","v":0},{"$f":"SUMIFS(Труба!$M$40:$M$85,Труба!$C$40:$C$85,Таблица1[[#This Row],[не равно\n(для расчета)]],Труба!$D$40:$D$85,\"=500\",Труба!$E$40:$E$85,Таблица1[[#This Row],[толщина\nмм ]],Труба!$F$40:$F$85,Таблица1[[#This Row],[название в \nАСТРА]])","v":0},{"$f":"Таблица1[[#This Row],[Масса целых]]+Таблица1[[#This Row],[Масса деловых]]","v":0},{"$f":"SUMIFS(Труба!$P$40:$P$85,Труба!$C$40:$C$85,Таблица1[[#This Row],[длина трубы\nмм]],Труба!$D$40:$D$85,\"=500\",Труба!$E$40:$E$85,Таблица1[[#This Row],[толщина\nмм ]],Труба!$F$40:$F$85,Таблица1[[#This Row],[название в \nАСТРА]])","v":0},{"$f":"SUMIFS(Труба!$P$40:$P$85,Труба!$C$40:$C$85,Таблица1[[#This Row],[не равно\n(для расчета)]],Труба!$D$40:$D$85,\"=500\",Труба!$E$40:$E$85,Таблица1[[#This Row],[толщина\nмм ]],Труба!$F$40:$F$85,Таблица1[[#This Row],[название в \nАСТРА]])","v":0},{"$f":"Таблица1[[#This Row],[Дел. ост.  Целых]]+Таблица1[[#This Row],[Дел. ост. Деловых]]","v":0},{"$f":"SUMIFS(Труба!$Z$40:$Z$85,Труба!$C$40:$C$85,Таблица1[[#This Row],[длина трубы\nмм]],Труба!$D$40:$D$85,\"=500\",Труба!$E$40:$E$85,Таблица1[[#This Row],[толщина\nмм ]],Труба!$F$40:$F$85,Таблица1[[#This Row],[название в \nАСТРА]])","v":0},{"$f":"SUMIFS(Труба!$Z$40:$Z$85,Труба!$C$40:$C$85,Таблица1[[#This Row],[не равно\n(для расчета)]],Труба!$D$40:$D$85,\"=500\",Труба!$E$40:$E$85,Таблица1[[#This Row],[толщина\nмм ]],Труба!$F$40:$F$85,Таблица1[[#This Row],[название в \nАСТРА]])","v":0},{"$f":"Таблица1[[#This Row],[Расход целых]]+Таблица1[[#This Row],[Расход деловых]]","v":0},{"$f":"Таблица1[[#This Row],[Чистый лом целых]]+Таблица1[[#This Row],[Чистый лом деловых]]-Таблица1[[#This Row],[Отход на порезку]]","v":0},{"$f":"Таблица1[[#This Row],[кол-во\n на план\n этого профиля]]*Таблица1[[#This Row],[толщина реза\nмм]]/1000/2*Таблица1[[#This Row],[масса 2м\n(коэф)]]","v":0},{"$f":"SUMIFS(Труба!$AA$40:$AA$85,Труба!$C$40:$C$85,Таблица1[[#This Row],[длина трубы\nмм]],Труба!$D$40:$D$85,\"=500\",Труба!$E$40:$E$85,Таблица1[[#This Row],[толщина\nмм ]],Труба!$F$40:$F$85,Таблица1[[#This Row],[название в \nАСТРА]])","v":0},{"$f":"SUMIFS(Труба!$AA$40:$AA$85,Труба!$C$40:$C$85,Таблица1[[#This Row],[не равно\n(для расчета)]],Труба!$D$40:$D$85,\"=500\",Труба!$E$40:$E$85,Таблица1[[#This Row],[толщина\nмм ]],Труба!$F$40:$F$85,Таблица1[[#This Row],[название в \nАСТРА]])","v":0}]
[null,null,null,{"$f":"SUMIFS(Труба!$I$9:$I$36,Труба!$F$9:$F$36,Таблица1[[#This Row],[название в \nАСТРА]])","v":0},"Прямоугольная","Труба","28х25х1,5","Труба 25х28 чм, 1.5 мм",1.5,2.6,6000,"<>6000",5,{"$f":"SUMIFS(Труба!$G$40:$G$85,Труба!$C$40:$C$85,Таблица1[[#This Row],[длина трубы\nмм]],Труба!$D$40:$D$85,\"=500\",Труба!$E$40:$E$85,Таблица1[[#This Row],[толщина\nмм ]],Труба!$F$40:$F$85,Таблица1[[#This Row],[название в \nАСТРА]])","v":0},{"$f":"SUMIFS(Труба!$V$40:$V$85,Труба!$C$40:$C$85,Таблица1[[#This Row],[длина трубы\nмм]],Труба!$D$40:$D$85,\"=500\",Труба!$E$40:$E$85,Таблица1[[#This Row],[толщина\nмм ]],Труба!$F$40:$F$85,Таблица1[[#This Row],[название в \nАСТРА]])","v":0},{"$f":"SUMIFS(Труба!$V$40:$V$85,Труба!$C$40:$C$85,Таблица1[[#This Row],[не равно\n(для расчета)]],Труба!$D$40:$D$85,\"=500\",Труба!$E$40:$E$85,Таблица1[[#This Row],[толщина\nмм ]],Труба!$F$40:$F$85,Таблица1[[#This Row],[название в \nАСТРА]])","v":0},{"$f":"Таблица1[[#This Row],[Масса дет. целых]]+Таблица1[[#This Row],[Масса дет. Деловых]]","v":0},{"$f":"SUMIFS(Труба!$M$40:$M$85,Труба!$C$40:$C$85,Таблица1[[#This Row],[длина трубы\nмм]],Труба!$D$40:$D$85,\"=500\",Труба!$E$40:$E$85,Таблица1[[#This Row],[толщина\nмм ]],Труба!$F$40:$F$85,Таблица1[[#This Row],[название в \nАСТРА]])","v":0},{"$f":"SUMIFS(Труба!$M$40:$M$85,Труба!$C$40:$C$85,Таблица1[[#This Row],[не равно\n(для расчета)]],Труба!$D$40:$D$85,\"=500\",Труба!$E$40:$E$85,Таблица1[[#This Row],[толщина\nмм ]],Труба!$F$40:$F$85,Таблица1[[#This Row],[название в \nАСТРА]])","v":0},{"$f":"Таблица1[[#This Row],[Масса целых]]+Таблица1[[#This Row],[Масса деловых]]","v":0},{"$f":"SUMIFS(Труба!$P$40:$P$85,Труба!$C$40:$C$85,Таблица1[[#This Row],[длина трубы\nмм]],Труба!$D$40:$D$85,\"=500\",Труба!$E$40:$E$85,Таблица1[[#This Row],[толщина\nмм ]],Труба!$F$40:$F$85,Таблица1[[#This Row],[название в \nАСТРА]])","v":0},{"$f":"SUMIFS(Труба!$P$40:$P$85,Труба!$C$40:$C$85,Таблица1[[#This Row],[не равно\n(для расчета)]],Труба!$D$40:$D$85,\"=500\",Труба!$E$40:$E$85,Таблица1[[#This Row],[толщина\nмм ]],Труба!$F$40:$F$85,Таблица1[[#This Row],[название в \nАСТРА]])","v":0},{"$f":"Таблица1[[#This Row],[Дел. ост.  Целых]]+Таблица1[[#This Row],[Дел. ост. Деловых]]","v":0},{"$f":"SUMIFS(Труба!$Z$40:$Z$85,Труба!$C$40:$C$85,Таблица1[[#This Row],[длина трубы\nмм]],Труба!$D$40:$D$85,\"=500\",Труба!$E$40:$E$85,Таблица1[[#This Row],[толщина\nмм ]],Труба!$F$40:$F$85,Таблица1[[#This Row],[название в \nАСТРА]])","v":0},{"$f":"SUMIFS(Труба!$Z$40:$Z$85,Труба!$C$40:$C$85,Таблица1[[#This Row],[не равно\n(для расчета)]],Труба!$D$40:$D$85,\"=500\",Труба!$E$40:$E$85,Таблица1[[#This Row],[толщина\nмм ]],Труба!$F$40:$F$85,Таблица1[[#This Row],[название в \nАСТРА]])","v":0},{"$f":"Таблица1[[#This Row],[Расход целых]]+Таблица1[[#This Row],[Расход деловых]]","v":0},{"$f":"Таблица1[[#This Row],[Чистый лом целых]]+Таблица1[[#This Row],[Чистый лом деловых]]-Таблица1[[#This Row],[Отход на порезку]]","v":0},{"$f":"Таблица1[[#This Row],[кол-во\n на план\n этого профиля]]*Таблица1[[#This Row],[толщина реза\nмм]]/1000/2*Таблица1[[#This Row],[масса 2м\n(коэф)]]","v":0},{"$f":"SUMIFS(Труба!$AA$40:$AA$85,Труба!$C$40:$C$85,Таблица1[[#This Row],[длина трубы\nмм]],Труба!$D$40:$D$85,\"=500\",Труба!$E$40:$E$85,Таблица1[[#This Row],[толщина\nмм ]],Труба!$F$40:$F$85,Таблица1[[#This Row],[название в \nАСТРА]])","v":0},{"$f":"SUMIFS(Труба!$AA$40:$AA$85,Труба!$C$40:$C$85,Таблица1[[#This Row],[не равно\n(для расчета)]],Труба!$D$40:$D$85,\"=500\",Труба!$E$40:$E$85,Таблица1[[#This Row],[толщина\nмм ]],Труба!$F$40:$F$85,Таблица1[[#This Row],[название в \nАСТРА]])","v":0}]
[null,null,null,{"$f":"SUMIFS(Труба!$I$9:$I$36,Труба!$F$9:$F$36,Таблица1[[#This Row],[название в \nАСТРА]])","v":0},"Прямоугольная","Труба","28х25х2","Труба 25х28 чм, 2.0 мм",2,null,6000,"<>6000",5,{"$f":"SUMIFS(Труба!$G$40:$G$85,Труба!$C$40:$C$85,Таблица1[[#This Row],[длина трубы\nмм]],Труба!$D$40:$D$85,\"=500\",Труба!$E$40:$E$85,Таблица1[[#This Row],[толщина\nмм ]],Труба!$F$40:$F$85,Таблица1[[#This Row],[название в \nАСТРА]])","v":0},{"$f":"SUMIFS(Труба!$V$40:$V$85,Труба!$C$40:$C$85,Таблица1[[#This Row],[длина трубы\nмм]],Труба!$D$40:$D$85,\"=500\",Труба!$E$40:$E$85,Таблица1[[#This Row],[толщина\nмм ]],Труба!$F$40:$F$85,Таблица1[[#This Row],[название в \nАСТРА]])","v":0},{"$f":"SUMIFS(Труба!$V$40:$V$85,Труба!$C$40:$C$85,Таблица1[[#This Row],[не равно\n(для расчета)]],Труба!$D$40:$D$85,\"=500\",Труба!$E$40:$E$85,Таблица1[[#This Row],[толщина\nмм ]],Труба!$F$40:$F$85,Таблица1[[#This Row],[название в \nАСТРА]])","v":0},{"$f":"Таблица1[[#This Row],[Масса дет. целых]]+Таблица1[[#This Row],[Масса дет. Деловых]]","v":0},{"$f":"SUMIFS(Труба!$M$40:$M$85,Труба!$C$40:$C$85,Таблица1[[#This Row],[длина трубы\nмм]],Труба!$D$40:$D$85,\"=500\",Труба!$E$40:$E$85,Таблица1[[#This Row],[толщина\nмм ]],Труба!$F$40:$F$85,Таблица1[[#This Row],[название в \nАСТРА]])","v":0},{"$f":"SUMIFS(Труба!$M$40:$M$85,Труба!$C$40:$C$85,Таблица1[[#This Row],[не равно\n(для расчета)]],Труба!$D$40:$D$85,\"=500\",Труба!$E$40:$E$85,Таблица1[[#This Row],[толщина\nмм ]],Труба!$F$40:$F$85,Таблица1[[#This Row],[название в \nАСТРА]])","v":0},{"$f":"Таблица1[[#This Row],[Масса целых]]+Таблица1[[#This Row],[Масса деловых]]","v":0},{"$f":"SUMIFS(Труба!$P$40:$P$85,Труба!$C$40:$C$85,Таблица1[[#This Row],[длина трубы\nмм]],Труба!$D$40:$D$85,\"=500\",Труба!$E$40:$E$85,Таблица1[[#This Row],[толщина\nмм ]],Труба!$F$40:$F$85,Таблица1[[#This Row],[название в \nАСТРА]])","v":0},{"$f":"SUMIFS(Труба!$P$40:$P$85,Труба!$C$40:$C$85,Таблица1[[#This Row],[не равно\n(для расчета)]],Труба!$D$40:$D$85,\"=500\",Труба!$E$40:$E$85,Таблица1[[#This Row],[толщина\nмм ]],Труба!$F$40:$F$85,Таблица1[[#This Row],[название в \nАСТРА]])","v":0},{"$f":"Таблица1[[#This Row],[Дел. ост.  Целых]]+Таблица1[[#This Row],[Дел. ост. Деловых]]","v":0},{"$f":"SUMIFS(Труба!$Z$40:$Z$85,Труба!$C$40:$C$85,Таблица1[[#This Row],[длина трубы\nмм]],Труба!$D$40:$D$85,\"=500\",Труба!$E$40:$E$85,Таблица1[[#This Row],[толщина\nмм ]],Труба!$F$40:$F$85,Таблица1[[#This Row],[название в \nАСТРА]])","v":0},{"$f":"SUMIFS(Труба!$Z$40:$Z$85,Труба!$C$40:$C$85,Таблица1[[#This Row],[не равно\n(для расчета)]],Труба!$D$40:$D$85,\"=500\",Труба!$E$40:$E$85,Таблица1[[#This Row],[толщина\nмм ]],Труба!$F$40:$F$85,Таблица1[[#This Row],[название в \nАСТРА]])","v":0},{"$f":"Таблица1[[#This Row],[Расход целых]]+Таблица1[[#This Row],[Расход деловых]]","v":0},{"$f":"Таблица1[[#This Row],[Чистый лом целых]]+Таблица1[[#This Row],[Чистый лом деловых]]-Таблица1[[#This Row],[Отход на порезку]]","v":0},{"$f":"Таблица1[[#This Row],[кол-во\n на план\n этого профиля]]*Таблица1[[#This Row],[толщина реза\nмм]]/1000/2*Таблица1[[#This Row],[масса 2м\n(коэф)]]","v":0},{"$f":"SUMIFS(Труба!$AA$40:$AA$85,Труба!$C$40:$C$85,Таблица1[[#This Row],[длина трубы\nмм]],Труба!$D$40:$D$85,\"=500\",Труба!$E$40:$E$85,Таблица1[[#This Row],[толщина\nмм ]],Труба!$F$40:$F$85,Таблица1[[#This Row],[название в \nАСТРА]])","v":0},{"$f":"SUMIFS(Труба!$AA$40:$AA$85,Труба!$C$40:$C$85,Таблица1[[#This Row],[не равно\n(для расчета)]],Труба!$D$40:$D$85,\"=500\",Труба!$E$40:$E$85,Таблица1[[#This Row],[толщина\nмм ]],Труба!$F$40:$F$85,Таблица1[[#This Row],[название в \nАСТРА]])","v":0}]
[null,null,null,{"$f":"SUMIFS(Труба!$I$9:$I$36,Труба!$F$9:$F$36,Таблица1[[#This Row],[название в \nАСТРА]])","v":0},"Прямоугольная","Труба","50х25х1,2","Труба 25х50 чм, 1.2 мм",1.2,2.7,6000,"<>6000",5,{"$f":"SUMIFS(Труба!$G$40:$G$85,Труба!$C$40:$C$85,Таблица1[[#This Row],[длина трубы\nмм]],Труба!$D$40:$D$85,\"=500\",Труба!$E$40:$E$85,Таблица1[[#This Row],[толщина\nмм ]],Труба!$F$40:$F$85,Таблица1[[#This Row],[название в \nАСТРА]])","v":0},{"$f":"SUMIFS(Труба!$V$40:$V$85,Труба!$C$40:$C$85,Таблица1[[#This Row],[длина трубы\nмм]],Труба!$D$40:$D$85,\"=500\",Труба!$E$40:$E$85,Таблица1[[#This Row],[толщина\nмм ]],Труба!$F$40:$F$85,Таблица1[[#This Row],[название в \nАСТРА]])","v":0},{"$f":"SUMIFS(Труба!$V$40:$V$85,Труба!$C$40:$C$85,Таблица1[[#This Row],[не равно\n(для расчета)]],Труба!$D$40:$D$85,\"=500\",Труба!$E$40:$E$85,Таблица1[[#This Row],[толщина\nмм ]],Труба!$F$40:$F$85,Таблица1[[#This Row],[название в \nАСТРА]])","v":0},{"$f":"Таблица1[[#This Row],[Масса дет. целых]]+Таблица1[[#This Row],[Масса дет. Деловых]]","v":0},{"$f":"SUMIFS(Труба!$M$40:$M$85,Труба!$C$40:$C$85,Таблица1[[#This Row],[длина трубы\nмм]],Труба!$D$40:$D$85,\"=500\",Труба!$E$40:$E$85,Таблица1[[#This Row],[толщина\nмм ]],Труба!$F$40:$F$85,Таблица1[[#This Row],[название в \nАСТРА]])","v":0},{"$f":"SUMIFS(Труба!$M$40:$M$85,Труба!$C$40:$C$85,Таблица1[[#This Row],[не равно\n(для расчета)]],Труба!$D$40:$D$85,\"=500\",Труба!$E$40:$E$85,Таблица1[[#This Row],[толщина\nмм ]],Труба!$F$40:$F$85,Таблица1[[#This Row],[название в \nАСТРА]])","v":0},{"$f":"Таблица1[[#This Row],[Масса целых]]+Таблица1[[#This Row],[Масса деловых]]","v":0},{"$f":"SUMIFS(Труба!$P$40:$P$85,Труба!$C$40:$C$85,Таблица1[[#This Row],[длина трубы\nмм]],Труба!$D$40:$D$85,\"=500\",Труба!$E$40:$E$85,Таблица1[[#This Row],[толщина\nмм ]],Труба!$F$40:$F$85,Таблица1[[#This Row],[название в \nАСТРА]])","v":0},{"$f":"SUMIFS(Труба!$P$40:$P$85,Труба!$C$40:$C$85,Таблица1[[#This Row],[не равно\n(для расчета)]],Труба!$D$40:$D$85,\"=500\",Труба!$E$40:$E$85,Таблица1[[#This Row],[толщина\nмм ]],Труба!$F$40:$F$85,Таблица1[[#This Row],[название в \nАСТРА]])","v":0},{"$f":"Таблица1[[#This Row],[Дел. ост.  Целых]]+Таблица1[[#This Row],[Дел. ост. Деловых]]","v":0},{"$f":"SUMIFS(Труба!$Z$40:$Z$85,Труба!$C$40:$C$85,Таблица1[[#This Row],[длина трубы\nмм]],Труба!$D$40:$D$85,\"=500\",Труба!$E$40:$E$85,Таблица1[[#This Row],[толщина\nмм ]],Труба!$F$40:$F$85,Таблица1[[#This Row],[название в \nАСТРА]])","v":0},{"$f":"SUMIFS(Труба!$Z$40:$Z$85,Труба!$C$40:$C$85,Таблица1[[#This Row],[не равно\n(для расчета)]],Труба!$D$40:$D$85,\"=500\",Труба!$E$40:$E$85,Таблица1[[#This Row],[толщина\nмм ]],Труба!$F$40:$F$85,Таблица1[[#This Row],[название в \nАСТРА]])","v":0},{"$f":"Таблица1[[#This Row],[Расход целых]]+Таблица1[[#This Row],[Расход деловых]]","v":0},{"$f":"Таблица1[[#This Row],[Чистый лом целых]]+Таблица1[[#This Row],[Чистый лом деловых]]-Таблица1[[#This Row],[Отход на порезку]]","v":0},{"$f":"Таблица1[[#This Row],[кол-во\n на план\n этого профиля]]*Таблица1[[#This Row],[толщина реза\nмм]]/1000/2*Таблица1[[#This Row],[масса 2м\n(коэф)]]","v":0},{"$f":"SUMIFS(Труба!$AA$40:$AA$85,Труба!$C$40:$C$85,Таблица1[[#This Row],[длина трубы\nмм]],Труба!$D$40:$D$85,\"=500\",Труба!$E$40:$E$85,Таблица1[[#This Row],[толщина\nмм ]],Труба!$F$40:$F$85,Таблица1[[#This Row],[название в \nАСТРА]])","v":0},{"$f":"SUMIFS(Труба!$AA$40:$AA$85,Труба!$C$40:$C$85,Таблица1[[#This Row],[не равно\n(для расчета)]],Труба!$D$40:$D$85,\"=500\",Труба!$E$40:$E$85,Таблица1[[#This Row],[толщина\nмм ]],Труба!$F$40:$F$85,Таблица1[[#This Row],[название в \nАСТРА]])","v":0}]
[null,null,null,{"$f":"SUMIFS(Труба!$I$9:$I$36,Труба!$F$9:$F$36,Таблица1[[#This Row],[название в \nАСТРА]])","v":0},"Прямоугольная","Труба","30х15х1,2","Труба 30х15 чм, 1.2 мм",1.2,1.5660000000000001,6000,"<>6000",5,{"$f":"SUMIFS(Труба!$G$40:$G$85,Труба!$C$40:$C$85,Таблица1[[#This Row],[длина трубы\nмм]],Труба!$D$40:$D$85,\"=500\",Труба!$E$40:$E$85,Таблица1[[#This Row],[толщина\nмм ]],Труба!$F$40:$F$85,Таблица1[[#This Row],[название в \nАСТРА]])","v":0},{"$f":"SUMIFS(Труба!$V$40:$V$85,Труба!$C$40:$C$85,Таблица1[[#This Row],[длина трубы\nмм]],Труба!$D$40:$D$85,\"=500\",Труба!$E$40:$E$85,Таблица1[[#This Row],[толщина\nмм ]],Труба!$F$40:$F$85,Таблица1[[#This Row],[название в \nАСТРА]])","v":0},{"$f":"SUMIFS(Труба!$V$40:$V$85,Труба!$C$40:$C$85,Таблица1[[#This Row],[не равно\n(для расчета)]],Труба!$D$40:$D$85,\"=500\",Труба!$E$40:$E$85,Таблица1[[#This Row],[толщина\nмм ]],Труба!$F$40:$F$85,Таблица1[[#This Row],[название в \nАСТРА]])","v":0},{"$f":"Таблица1[[#This Row],[Масса дет. целых]]+Таблица1[[#This Row],[Масса дет. Деловых]]","v":0},{"$f":"SUMIFS(Труба!$M$40:$M$85,Труба!$C$40:$C$85,Таблица1[[#This Row],[длина трубы\nмм]],Труба!$D$40:$D$85,\"=500\",Труба!$E$40:$E$85,Таблица1[[#This Row],[толщина\nмм ]],Труба!$F$40:$F$85,Таблица1[[#This Row],[название в \nАСТРА]])","v":0},{"$f":"SUMIFS(Труба!$M$40:$M$85,Труба!$C$40:$C$85,Таблица1[[#This Row],[не равно\n(для расчета)]],Труба!$D$40:$D$85,\"=500\",Труба!$E$40:$E$85,Таблица1[[#This Row],[толщина\nмм ]],Труба!$F$40:$F$85,Таблица1[[#This Row],[название в \nАСТРА]])","v":0},{"$f":"Таблица1[[#This Row],[Масса целых]]+Таблица1[[#This Row],[Масса деловых]]","v":0},{"$f":"SUMIFS(Труба!$P$40:$P$85,Труба!$C$40:$C$85,Таблица1[[#This Row],[длина трубы\nмм]],Труба!$D$40:$D$85,\"=500\",Труба!$E$40:$E$85,Таблица1[[#This Row],[толщина\nмм ]],Труба!$F$40:$F$85,Таблица1[[#This Row],[название в \nАСТРА]])","v":0},{"$f":"SUMIFS(Труба!$P$40:$P$85,Труба!$C$40:$C$85,Таблица1[[#This Row],[не равно\n(для расчета)]],Труба!$D$40:$D$85,\"=500\",Труба!$E$40:$E$85,Таблица1[[#This Row],[толщина\nмм ]],Труба!$F$40:$F$85,Таблица1[[#This Row],[название в \nАСТРА]])","v":0},{"$f":"Таблица1[[#This Row],[Дел. ост.  Целых]]+Таблица1[[#This Row],[Дел. ост. Деловых]]","v":0},{"$f":"SUMIFS(Труба!$Z$40:$Z$85,Труба!$C$40:$C$85,Таблица1[[#This Row],[длина трубы\nмм]],Труба!$D$40:$D$85,\"=500\",Труба!$E$40:$E$85,Таблица1[[#This Row],[толщина\nмм ]],Труба!$F$40:$F$85,Таблица1[[#This Row],[название в \nАСТРА]])","v":0},{"$f":"SUMIFS(Труба!$Z$40:$Z$85,Труба!$C$40:$C$85,Таблица1[[#This Row],[не равно\n(для расчета)]],Труба!$D$40:$D$85,\"=500\",Труба!$E$40:$E$85,Таблица1[[#This Row],[толщина\nмм ]],Труба!$F$40:$F$85,Таблица1[[#This Row],[название в \nАСТРА]])","v":0},{"$f":"Таблица1[[#This Row],[Расход целых]]+Таблица1[[#This Row],[Расход деловых]]","v":0},{"$f":"Таблица1[[#This Row],[Чистый лом целых]]+Таблица1[[#This Row],[Чистый лом деловых]]-Таблица1[[#This Row],[Отход на порезку]]","v":0},{"$f":"Таблица1[[#This Row],[кол-во\n на план\n этого профиля]]*Таблица1[[#This Row],[толщина реза\nмм]]/1000/2*Таблица1[[#This Row],[масса 2м\n(коэф)]]","v":0},{"$f":"SUMIFS(Труба!$AA$40:$AA$85,Труба!$C$40:$C$85,Таблица1[[#This Row],[длина трубы\nмм]],Труба!$D$40:$D$85,\"=500\",Труба!$E$40:$E$85,Таблица1[[#This Row],[толщина\nмм ]],Труба!$F$40:$F$85,Таблица1[[#This Row],[название в \nАСТРА]])","v":0},{"$f":"SUMIFS(Труба!$AA$40:$AA$85,Труба!$C$40:$C$85,Таблица1[[#This Row],[не равно\n(для расчета)]],Труба!$D$40:$D$85,\"=500\",Труба!$E$40:$E$85,Таблица1[[#This Row],[толщина\nмм ]],Труба!$F$40:$F$85,Таблица1[[#This Row],[название в \nАСТРА]])","v":0}]
[null,null,null,{"$f":"SUMIFS(Труба!$I$9:$I$36,Труба!$F$9:$F$36,Таблица1[[#This Row],[название в \nАСТРА]])","v":0},"Прямоугольная","Труба","20х30х1","Труба 30х20 чм, 1.0 мм",1,1.5720000000000001,6000,"<>6000",5,{"$f":"SUMIFS(Труба!$G$40:$G$85,Труба!$C$40:$C$85,Таблица1[[#This Row],[длина трубы\nмм]],Труба!$D$40:$D$85,\"=500\",Труба!$E$40:$E$85,Таблица1[[#This Row],[толщина\nмм ]],Труба!$F$40:$F$85,Таблица1[[#This Row],[название в \nАСТРА]])","v":0},{"$f":"SUMIFS(Труба!$V$40:$V$85,Труба!$C$40:$C$85,Таблица1[[#This Row],[длина трубы\nмм]],Труба!$D$40:$D$85,\"=500\",Труба!$E$40:$E$85,Таблица1[[#This Row],[толщина\nмм ]],Труба!$F$40:$F$85,Таблица1[[#This Row],[название в \nАСТРА]])","v":0},{"$f":"SUMIFS(Труба!$V$40:$V$85,Труба!$C$40:$C$85,Таблица1[[#This Row],[не равно\n(для расчета)]],Труба!$D$40:$D$85,\"=500\",Труба!$E$40:$E$85,Таблица1[[#This Row],[толщина\nмм ]],Труба!$F$40:$F$85,Таблица1[[#This Row],[название в \nАСТРА]])","v":0},{"$f":"Таблица1[[#This Row],[Масса дет. целых]]+Таблица1[[#This Row],[Масса дет. Деловых]]","v":0},{"$f":"SUMIFS(Труба!$M$40:$M$85,Труба!$C$40:$C$85,Таблица1[[#This Row],[длина трубы\nмм]],Труба!$D$40:$D$85,\"=500\",Труба!$E$40:$E$85,Таблица1[[#This Row],[толщина\nмм ]],Труба!$F$40:$F$85,Таблица1[[#This Row],[название в \nАСТРА]])","v":0},{"$f":"SUMIFS(Труба!$M$40:$M$85,Труба!$C$40:$C$85,Таблица1[[#This Row],[не равно\n(для расчета)]],Труба!$D$40:$D$85,\"=500\",Труба!$E$40:$E$85,Таблица1[[#This Row],[толщина\nмм ]],Труба!$F$40:$F$85,Таблица1[[#This Row],[название в \nАСТРА]])","v":0},{"$f":"Таблица1[[#This Row],[Масса целых]]+Таблица1[[#This Row],[Масса деловых]]","v":0},{"$f":"SUMIFS(Труба!$P$40:$P$85,Труба!$C$40:$C$85,Таблица1[[#This Row],[длина трубы\nмм]],Труба!$D$40:$D$85,\"=500\",Труба!$E$40:$E$85,Таблица1[[#This Row],[толщина\nмм ]],Труба!$F$40:$F$85,Таблица1[[#This Row],[название в \nАСТРА]])","v":0},{"$f":"SUMIFS(Труба!$P$40:$P$85,Труба!$C$40:$C$85,Таблица1[[#This Row],[не равно\n(для расчета)]],Труба!$D$40:$D$85,\"=500\",Труба!$E$40:$E$85,Таблица1[[#This Row],[толщина\nмм ]],Труба!$F$40:$F$85,Таблица1[[#This Row],[название в \nАСТРА]])","v":0},{"$f":"Таблица1[[#This Row],[Дел. ост.  Целых]]+Таблица1[[#This Row],[Дел. ост. Деловых]]","v":0},{"$f":"SUMIFS(Труба!$Z$40:$Z$85,Труба!$C$40:$C$85,Таблица1[[#This Row],[длина трубы\nмм]],Труба!$D$40:$D$85,\"=500\",Труба!$E$40:$E$85,Таблица1[[#This Row],[толщина\nмм ]],Труба!$F$40:$F$85,Таблица1[[#This Row],[название в \nАСТРА]])","v":0},{"$f":"SUMIFS(Труба!$Z$40:$Z$85,Труба!$C$40:$C$85,Таблица1[[#This Row],[не равно\n(для расчета)]],Труба!$D$40:$D$85,\"=500\",Труба!$E$40:$E$85,Таблица1[[#This Row],[толщина\nмм ]],Труба!$F$40:$F$85,Таблица1[[#This Row],[название в \nАСТРА]])","v":0},{"$f":"Таблица1[[#This Row],[Расход целых]]+Таблица1[[#This Row],[Расход деловых]]","v":0},{"$f":"Таблица1[[#This Row],[Чистый лом целых]]+Таблица1[[#This Row],[Чистый лом деловых]]-Таблица1[[#This Row],[Отход на порезку]]","v":0},{"$f":"Таблица1[[#This Row],[кол-во\n на план\n этого профиля]]*Таблица1[[#This Row],[толщина реза\nмм]]/1000/2*Таблица1[[#This Row],[масса 2м\n(коэф)]]","v":0},{"$f":"SUMIFS(Труба!$AA$40:$AA$85,Труба!$C$40:$C$85,Таблица1[[#This Row],[длина трубы\nмм]],Труба!$D$40:$D$85,\"=500\",Труба!$E$40:$E$85,Таблица1[[#This Row],[толщина\nмм ]],Труба!$F$40:$F$85,Таблица1[[#This Row],[название в \nАСТРА]])","v":0},{"$f":"SUMIFS(Труба!$AA$40:$AA$85,Труба!$C$40:$C$85,Таблица1[[#This Row],[не равно\n(для расчета)]],Труба!$D$40:$D$85,\"=500\",Труба!$E$40:$E$85,Таблица1[[#This Row],[толщина\nмм ]],Труба!$F$40:$F$85,Таблица1[[#This Row],[название в \nАСТРА]])","v":0}]
[null,null,null,{"$f":"SUMIFS(Труба!$I$9:$I$36,Труба!$F$9:$F$36,Таблица1[[#This Row],[название в \nАСТРА]])","v":0},"Прямоугольная","Труба","50х30х2","Труба 30х50 чм, 2.0 мм",2,4.8899999999999997,6000,"<>6000",5,{"$f":"SUMIFS(Труба!$G$40:$G$85,Труба!$C$40:$C$85,Таблица1[[#This Row],[длина трубы\nмм]],Труба!$D$40:$D$85,\"=500\",Труба!$E$40:$E$85,Таблица1[[#This Row],[толщина\nмм ]],Труба!$F$40:$F$85,Таблица1[[#This Row],[название в \nАСТРА]])","v":0},{"$f":"SUMIFS(Труба!$V$40:$V$85,Труба!$C$40:$C$85,Таблица1[[#This Row],[длина трубы\nмм]],Труба!$D$40:$D$85,\"=500\",Труба!$E$40:$E$85,Таблица1[[#This Row],[толщина\nмм ]],Труба!$F$40:$F$85,Таблица1[[#This Row],[название в \nАСТРА]])","v":0},{"$f":"SUMIFS(Труба!$V$40:$V$85,Труба!$C$40:$C$85,Таблица1[[#This Row],[не равно\n(для расчета)]],Труба!$D$40:$D$85,\"=500\",Труба!$E$40:$E$85,Таблица1[[#This Row],[толщина\nмм ]],Труба!$F$40:$F$85,Таблица1[[#This Row],[название в \nАСТРА]])","v":0},{"$f":"Таблица1[[#This Row],[Масса дет. целых]]+Таблица1[[#This Row],[Масса дет. Деловых]]","v":0},{"$f":"SUMIFS(Труба!$M$40:$M$85,Труба!$C$40:$C$85,Таблица1[[#This Row],[длина трубы\nмм]],Труба!$D$40:$D$85,\"=500\",Труба!$E$40:$E$85,Таблица1[[#This Row],[толщина\nмм ]],Труба!$F$40:$F$85,Таблица1[[#This Row],[название в \nАСТРА]])","v":0},{"$f":"SUMIFS(Труба!$M$40:$M$85,Труба!$C$40:$C$85,Таблица1[[#This Row],[не равно\n(для расчета)]],Труба!$D$40:$D$85,\"=500\",Труба!$E$40:$E$85,Таблица1[[#This Row],[толщина\nмм ]],Труба!$F$40:$F$85,Таблица1[[#This Row],[название в \nАСТРА]])","v":0},{"$f":"Таблица1[[#This Row],[Масса целых]]+Таблица1[[#This Row],[Масса деловых]]","v":0},{"$f":"SUMIFS(Труба!$P$40:$P$85,Труба!$C$40:$C$85,Таблица1[[#This Row],[длина трубы\nмм]],Труба!$D$40:$D$85,\"=500\",Труба!$E$40:$E$85,Таблица1[[#This Row],[толщина\nмм ]],Труба!$F$40:$F$85,Таблица1[[#This Row],[название в \nАСТРА]])","v":0},{"$f":"SUMIFS(Труба!$P$40:$P$85,Труба!$C$40:$C$85,Таблица1[[#This Row],[не равно\n(для расчета)]],Труба!$D$40:$D$85,\"=500\",Труба!$E$40:$E$85,Таблица1[[#This Row],[толщина\nмм ]],Труба!$F$40:$F$85,Таблица1[[#This Row],[название в \nАСТРА]])","v":0},{"$f":"Таблица1[[#This Row],[Дел. ост.  Целых]]+Таблица1[[#This Row],[Дел. ост. Деловых]]","v":0},{"$f":"SUMIFS(Труба!$Z$40:$Z$85,Труба!$C$40:$C$85,Таблица1[[#This Row],[длина трубы\nмм]],Труба!$D$40:$D$85,\"=500\",Труба!$E$40:$E$85,Таблица1[[#This Row],[толщина\nмм ]],Труба!$F$40:$F$85,Таблица1[[#This Row],[название в \nАСТРА]])","v":0},{"$f":"SUMIFS(Труба!$Z$40:$Z$85,Труба!$C$40:$C$85,Таблица1[[#This Row],[не равно\n(для расчета)]],Труба!$D$40:$D$85,\"=500\",Труба!$E$40:$E$85,Таблица1[[#This Row],[толщина\nмм ]],Труба!$F$40:$F$85,Таблица1[[#This Row],[название в \nАСТРА]])","v":0},{"$f":"Таблица1[[#This Row],[Расход целых]]+Таблица1[[#This Row],[Расход деловых]]","v":0},{"$f":"Таблица1[[#This Row],[Чистый лом целых]]+Таблица1[[#This Row],[Чистый лом деловых]]-Таблица1[[#This Row],[Отход на порезку]]","v":0},{"$f":"Таблица1[[#This Row],[кол-во\n на план\n этого профиля]]*Таблица1[[#This Row],[толщина реза\nмм]]/1000/2*Таблица1[[#This Row],[масса 2м\n(коэф)]]","v":0},{"$f":"SUMIFS(Труба!$AA$40:$AA$85,Труба!$C$40:$C$85,Таблица1[[#This Row],[длина трубы\nмм]],Труба!$D$40:$D$85,\"=500\",Труба!$E$40:$E$85,Таблица1[[#This Row],[толщина\nмм ]],Труба!$F$40:$F$85,Таблица1[[#This Row],[название в \nАСТРА]])","v":0},{"$f":"SUMIFS(Труба!$AA$40:$AA$85,Труба!$C$40:$C$85,Таблица1[[#This Row],[не равно\n(для расчета)]],Труба!$D$40:$D$85,\"=500\",Труба!$E$40:$E$85,Таблица1[[#This Row],[толщина\nмм ]],Труба!$F$40:$F$85,Таблица1[[#This Row],[название в \nАСТРА]])","v":0}]
[null,null,null,{"$f":"SUMIFS(Труба!$I$9:$I$36,Труба!$F$9:$F$36,Таблица1[[#This Row],[название в \nАСТРА]])","v":0},"Прямоугольная","Труба","40х20х1","Труба 40х20 чм, 1.0 мм",1,1.8839999999999999,6000,"<>6000",5,{"$f":"SUMIFS(Труба!$G$40:$G$85,Труба!$C$40:$C$85,Таблица1[[#This Row],[длина трубы\nмм]],Труба!$D$40:$D$85,\"=500\",Труба!$E$40:$E$85,Таблица1[[#This Row],[толщина\nмм ]],Труба!$F$40:$F$85,Таблица1[[#This Row],[название в \nАСТРА]])","v":0},{"$f":"SUMIFS(Труба!$V$40:$V$85,Труба!$C$40:$C$85,Таблица1[[#This Row],[длина трубы\nмм]],Труба!$D$40:$D$85,\"=500\",Труба!$E$40:$E$85,Таблица1[[#This Row],[толщина\nмм ]],Труба!$F$40:$F$85,Таблица1[[#This Row],[название в \nАСТРА]])","v":0},{"$f":"SUMIFS(Труба!$V$40:$V$85,Труба!$C$40:$C$85,Таблица1[[#This Row],[не равно\n(для расчета)]],Труба!$D$40:$D$85,\"=500\",Труба!$E$40:$E$85,Таблица1[[#This Row],[толщина\nмм ]],Труба!$F$40:$F$85,Таблица1[[#This Row],[название в \nАСТРА]])","v":0},{"$f":"Таблица1[[#This Row],[Масса дет. целых]]+Таблица1[[#This Row],[Масса дет. Деловых]]","v":0},{"$f":"SUMIFS(Труба!$M$40:$M$85,Труба!$C$40:$C$85,Таблица1[[#This Row],[длина трубы\nмм]],Труба!$D$40:$D$85,\"=500\",Труба!$E$40:$E$85,Таблица1[[#This Row],[толщина\nмм ]],Труба!$F$40:$F$85,Таблица1[[#This Row],[название в \nАСТРА]])","v":0},{"$f":"SUMIFS(Труба!$M$40:$M$85,Труба!$C$40:$C$85,Таблица1[[#This Row],[не равно\n(для расчета)]],Труба!$D$40:$D$85,\"=500\",Труба!$E$40:$E$85,Таблица1[[#This Row],[толщина\nмм ]],Труба!$F$40:$F$85,Таблица1[[#This Row],[название в \nАСТРА]])","v":0},{"$f":"Таблица1[[#This Row],[Масса целых]]+Таблица1[[#This Row],[Масса деловых]]","v":0},{"$f":"SUMIFS(Труба!$P$40:$P$85,Труба!$C$40:$C$85,Таблица1[[#This Row],[длина трубы\nмм]],Труба!$D$40:$D$85,\"=500\",Труба!$E$40:$E$85,Таблица1[[#This Row],[толщина\nмм ]],Труба!$F$40:$F$85,Таблица1[[#This Row],[название в \nАСТРА]])","v":0},{"$f":"SUMIFS(Труба!$P$40:$P$85,Труба!$C$40:$C$85,Таблица1[[#This Row],[не равно\n(для расчета)]],Труба!$D$40:$D$85,\"=500\",Труба!$E$40:$E$85,Таблица1[[#This Row],[толщина\nмм ]],Труба!$F$40:$F$85,Таблица1[[#This Row],[название в \nАСТРА]])","v":0},{"$f":"Таблица1[[#This Row],[Дел. ост.  Целых]]+Таблица1[[#This Row],[Дел. ост. Деловых]]","v":0},{"$f":"SUMIFS(Труба!$Z$40:$Z$85,Труба!$C$40:$C$85,Таблица1[[#This Row],[длина трубы\nмм]],Труба!$D$40:$D$85,\"=500\",Труба!$E$40:$E$85,Таблица1[[#This Row],[толщина\nмм ]],Труба!$F$40:$F$85,Таблица1[[#This Row],[название в \nАСТРА]])","v":0},{"$f":"SUMIFS(Труба!$Z$40:$Z$85,Труба!$C$40:$C$85,Таблица1[[#This Row],[не равно\n(для расчета)]],Труба!$D$40:$D$85,\"=500\",Труба!$E$40:$E$85,Таблица1[[#This Row],[толщина\nмм ]],Труба!$F$40:$F$85,Таблица1[[#This Row],[название в \nАСТРА]])","v":0},{"$f":"Таблица1[[#This Row],[Расход целых]]+Таблица1[[#This Row],[Расход деловых]]","v":0},{"$f":"Таблица1[[#This Row],[Чистый лом целых]]+Таблица1[[#This Row],[Чистый лом деловых]]-Таблица1[[#This Row],[Отход на порезку]]","v":0},{"$f":"Таблица1[[#This Row],[кол-во\n на план\n этого профиля]]*Таблица1[[#This Row],[толщина реза\nмм]]/1000/2*Таблица1[[#This Row],[масса 2м\n(коэф)]]","v":0},{"$f":"SUMIFS(Труба!$AA$40:$AA$85,Труба!$C$40:$C$85,Таблица1[[#This Row],[длина трубы\nмм]],Труба!$D$40:$D$85,\"=500\",Труба!$E$40:$E$85,Таблица1[[#This Row],[толщина\nмм ]],Труба!$F$40:$F$85,Таблица1[[#This Row],[название в \nАСТРА]])","v":0},{"$f":"SUMIFS(Труба!$AA$40:$AA$85,Труба!$C$40:$C$85,Таблица1[[#This Row],[не равно\n(для расчета)]],Труба!$D$40:$D$85,\"=500\",Труба!$E$40:$E$85,Таблица1[[#This Row],[толщина\nмм ]],Труба!$F$40:$F$85,Таблица1[[#This Row],[название в \nАСТРА]])","v":0}]
[null,null,null,{"$f":"SUMIFS(Труба!$I$9:$I$36,Труба!$F$9:$F$36,Таблица1[[#This Row],[название в \nАСТРА]])","v":0},"Прямоугольная","Труба","40х20х1,5","Труба 40х20 чм, 1.5 мм",1.5,2.88,6000,"<>6000",5,{"$f":"SUMIFS(Труба!$G$40:$G$85,Труба!$C$40:$C$85,Таблица1[[#This Row],[длина трубы\nмм]],Труба!$D$40:$D$85,\"=500\",Труба!$E$40:$E$85,Таблица1[[#This Row],[толщина\nмм ]],Труба!$F$40:$F$85,Таблица1[[#This Row],[название в \nАСТРА]])","v":0},{"$f":"SUMIFS(Труба!$V$40:$V$85,Труба!$C$40:$C$85,Таблица1[[#This Row],[длина трубы\nмм]],Труба!$D$40:$D$85,\"=500\",Труба!$E$40:$E$85,Таблица1[[#This Row],[толщина\nмм ]],Труба!$F$40:$F$85,Таблица1[[#This Row],[название в \nАСТРА]])","v":0},{"$f":"SUMIFS(Труба!$V$40:$V$85,Труба!$C$40:$C$85,Таблица1[[#This Row],[не равно\n(для расчета)]],Труба!$D$40:$D$85,\"=500\",Труба!$E$40:$E$85,Таблица1[[#This Row],[толщина\nмм ]],Труба!$F$40:$F$85,Таблица1[[#This Row],[название в \nАСТРА]])","v":0},{"$f":"Таблица1[[#This Row],[Масса дет. целых]]+Таблица1[[#This Row],[Масса дет. Деловых]]","v":0},{"$f":"SUMIFS(Труба!$M$40:$M$85,Труба!$C$40:$C$85,Таблица1[[#This Row],[длина трубы\nмм]],Труба!$D$40:$D$85,\"=500\",Труба!$E$40:$E$85,Таблица1[[#This Row],[толщина\nмм ]],Труба!$F$40:$F$85,Таблица1[[#This Row],[название в \nАСТРА]])","v":0},{"$f":"SUMIFS(Труба!$M$40:$M$85,Труба!$C$40:$C$85,Таблица1[[#This Row],[не равно\n(для расчета)]],Труба!$D$40:$D$85,\"=500\",Труба!$E$40:$E$85,Таблица1[[#This Row],[толщина\nмм ]],Труба!$F$40:$F$85,Таблица1[[#This Row],[название в \nАСТРА]])","v":0},{"$f":"Таблица1[[#This Row],[Масса целых]]+Таблица1[[#This Row],[Масса деловых]]","v":0},{"$f":"SUMIFS(Труба!$P$40:$P$85,Труба!$C$40:$C$85,Таблица1[[#This Row],[длина трубы\nмм]],Труба!$D$40:$D$85,\"=500\",Труба!$E$40:$E$85,Таблица1[[#This Row],[толщина\nмм ]],Труба!$F$40:$F$85,Таблица1[[#This Row],[название в \nАСТРА]])","v":0},{"$f":"SUMIFS(Труба!$P$40:$P$85,Труба!$C$40:$C$85,Таблица1[[#This Row],[не равно\n(для расчета)]],Труба!$D$40:$D$85,\"=500\",Труба!$E$40:$E$85,Таблица1[[#This Row],[толщина\nмм ]],Труба!$F$40:$F$85,Таблица1[[#This Row],[название в \nАСТРА]])","v":0},{"$f":"Таблица1[[#This Row],[Дел. ост.  Целых]]+Таблица1[[#This Row],[Дел. ост. Деловых]]","v":0},{"$f":"SUMIFS(Труба!$Z$40:$Z$85,Труба!$C$40:$C$85,Таблица1[[#This Row],[длина трубы\nмм]],Труба!$D$40:$D$85,\"=500\",Труба!$E$40:$E$85,Таблица1[[#This Row],[толщина\nмм ]],Труба!$F$40:$F$85,Таблица1[[#This Row],[название в \nАСТРА]])","v":0},{"$f":"SUMIFS(Труба!$Z$40:$Z$85,Труба!$C$40:$C$85,Таблица1[[#This Row],[не равно\n(для расчета)]],Труба!$D$40:$D$85,\"=500\",Труба!$E$40:$E$85,Таблица1[[#This Row],[толщина\nмм ]],Труба!$F$40:$F$85,Таблица1[[#This Row],[название в \nАСТРА]])","v":0},{"$f":"Таблица1[[#This Row],[Расход целых]]+Таблица1[[#This Row],[Расход деловых]]","v":0},{"$f":"Таблица1[[#This Row],[Чистый лом целых]]+Таблица1[[#This Row],[Чистый лом деловых]]-Таблица1[[#This Row],[Отход на порезку]]","v":0},{"$f":"Таблица1[[#This Row],[кол-во\n на план\n этого профиля]]*Таблица1[[#This Row],[толщина реза\nмм]]/1000/2*Таблица1[[#This Row],[масса 2м\n(коэф)]]","v":0},{"$f":"SUMIFS(Труба!$AA$40:$AA$85,Труба!$C$40:$C$85,Таблица1[[#This Row],[длина трубы\nмм]],Труба!$D$40:$D$85,\"=500\",Труба!$E$40:$E$85,Таблица1[[#This Row],[толщина\nмм ]],Труба!$F$40:$F$85,Таблица1[[#This Row],[название в \nАСТРА]])","v":0},{"$f":"SUMIFS(Труба!$AA$40:$AA$85,Труба!$C$40:$C$85,Таблица1[[#This Row],[не равно\n(для расчета)]],Труба!$D$40:$D$85,\"=500\",Труба!$E$40:$E$85,Таблица1[[#This Row],[толщина\nмм ]],Труба!$F$40:$F$85,Таблица1[[#This Row],[название в \nАСТРА]])","v":0}]
[null,null,null,{"$f":"SUMIFS(Труба!$I$9:$I$36,Труба!$F$9:$F$36,Таблица1[[#This Row],[название в \nАСТРА]])","v":0},"Прямоугольная","Труба","40х20х2","Труба 40х20 чм, 2.0 мм",2,3.4,6000,"<>6000",5,{"$f":"SUMIFS(Труба!$G$40:$G$85,Труба!$C$40:$C$85,Таблица1[[#This Row],[длина трубы\nмм]],Труба!$D$40:$D$85,\"=500\",Труба!$E$40:$E$85,Таблица1[[#This Row],[толщина\nмм ]],Труба!$F$40:$F$85,Таблица1[[#This Row],[название в \nАСТРА]])","v":0},{"$f":"SUMIFS(Труба!$V$40:$V$85,Труба!$C$40:$C$85,Таблица1[[#This Row],[длина трубы\nмм]],Труба!$D$40:$D$85,\"=500\",Труба!$E$40:$E$85,Таблица1[[#This Row],[толщина\nмм ]],Труба!$F$40:$F$85,Таблица1[[#This Row],[название в \nАСТРА]])","v":0},{"$f":"SUMIFS(Труба!$V$40:$V$85,Труба!$C$40:$C$85,Таблица1[[#This Row],[не равно\n(для расчета)]],Труба!$D$40:$D$85,\"=500\",Труба!$E$40:$E$85,Таблица1[[#This Row],[толщина\nмм ]],Труба!$F$40:$F$85,Таблица1[[#This Row],[название в \nАСТРА]])","v":0},{"$f":"Таблица1[[#This Row],[Масса дет. целых]]+Таблица1[[#This Row],[Масса дет. Деловых]]","v":0},{"$f":"SUMIFS(Труба!$M$40:$M$85,Труба!$C$40:$C$85,Таблица1[[#This Row],[длина трубы\nмм]],Труба!$D$40:$D$85,\"=500\",Труба!$E$40:$E$85,Таблица1[[#This Row],[толщина\nмм ]],Труба!$F$40:$F$85,Таблица1[[#This Row],[название в \nАСТРА]])","v":0},{"$f":"SUMIFS(Труба!$M$40:$M$85,Труба!$C$40:$C$85,Таблица1[[#This Row],[не равно\n(для расчета)]],Труба!$D$40:$D$85,\"=500\",Труба!$E$40:$E$85,Таблица1[[#This Row],[толщина\nмм ]],Труба!$F$40:$F$85,Таблица1[[#This Row],[название в \nАСТРА]])","v":0},{"$f":"Таблица1[[#This Row],[Масса целых]]+Таблица1[[#This Row],[Масса деловых]]","v":0},{"$f":"SUMIFS(Труба!$P$40:$P$85,Труба!$C$40:$C$85,Таблица1[[#This Row],[длина трубы\nмм]],Труба!$D$40:$D$85,\"=500\",Труба!$E$40:$E$85,Таблица1[[#This Row],[толщина\nмм ]],Труба!$F$40:$F$85,Таблица1[[#This Row],[название в \nАСТРА]])","v":0},{"$f":"SUMIFS(Труба!$P$40:$P$85,Труба!$C$40:$C$85,Таблица1[[#This Row],[не равно\n(для расчета)]],Труба!$D$40:$D$85,\"=500\",Труба!$E$40:$E$85,Таблица1[[#This Row],[толщина\nмм ]],Труба!$F$40:$F$85,Таблица1[[#This Row],[название в \nАСТРА]])","v":0},{"$f":"Таблица1[[#This Row],[Дел. ост.  Целых]]+Таблица1[[#This Row],[Дел. ост. Деловых]]","v":0},{"$f":"SUMIFS(Труба!$Z$40:$Z$85,Труба!$C$40:$C$85,Таблица1[[#This Row],[длина трубы\nмм]],Труба!$D$40:$D$85,\"=500\",Труба!$E$40:$E$85,Таблица1[[#This Row],[толщина\nмм ]],Труба!$F$40:$F$85,Таблица1[[#This Row],[название в \nАСТРА]])","v":0},{"$f":"SUMIFS(Труба!$Z$40:$Z$85,Труба!$C$40:$C$85,Таблица1[[#This Row],[не равно\n(для расчета)]],Труба!$D$40:$D$85,\"=500\",Труба!$E$40:$E$85,Таблица1[[#This Row],[толщина\nмм ]],Труба!$F$40:$F$85,Таблица1[[#This Row],[название в \nАСТРА]])","v":0},{"$f":"Таблица1[[#This Row],[Расход целых]]+Таблица1[[#This Row],[Расход деловых]]","v":0},{"$f":"Таблица1[[#This Row],[Чистый лом целых]]+Таблица1[[#This Row],[Чистый лом деловых]]-Таблица1[[#This Row],[Отход на порезку]]","v":0},{"$f":"Таблица1[[#This Row],[кол-во\n на план\n этого профиля]]*Таблица1[[#This Row],[толщина реза\nмм]]/1000/2*Таблица1[[#This Row],[масса 2м\n(коэф)]]","v":0},{"$f":"SUMIFS(Труба!$AA$40:$AA$85,Труба!$C$40:$C$85,Таблица1[[#This Row],[длина трубы\nмм]],Труба!$D$40:$D$85,\"=500\",Труба!$E$40:$E$85,Таблица1[[#This Row],[толщина\nмм ]],Труба!$F$40:$F$85,Таблица1[[#This Row],[название в \nАСТРА]])","v":0},{"$f":"SUMIFS(Труба!$AA$40:$AA$85,Труба!$C$40:$C$85,Таблица1[[#This Row],[не равно\n(для расчета)]],Труба!$D$40:$D$85,\"=500\",Труба!$E$40:$E$85,Таблица1[[#This Row],[толщина\nмм ]],Труба!$F$40:$F$85,Таблица1[[#This Row],[название в \nАСТРА]])","v":0}]
[null,null,null,{"$f":"SUMIFS(Труба!$I$9:$I$36,Труба!$F$9:$F$36,Таблица1[[#This Row],[название в \nАСТРА]])","v":0},"Прямоугольная","Труба","40х25х2","Труба 40х25 чм, 2.0 мм",2,4.08,6000,"<>6000",5,{"$f":"SUMIFS(Труба!$G$40:$G$85,Труба!$C$40:$C$85,Таблица1[[#This Row],[длина трубы\nмм]],Труба!$D$40:$D$85,\"=500\",Труба!$E$40:$E$85,Таблица1[[#This Row],[толщина\nмм ]],Труба!$F$40:$F$85,Таблица1[[#This Row],[название в \nАСТРА]])","v":0},{"$f":"SUMIFS(Труба!$V$40:$V$85,Труба!$C$40:$C$85,Таблица1[[#This Row],[длина трубы\nмм]],Труба!$D$40:$D$85,\"=500\",Труба!$E$40:$E$85,Таблица1[[#This Row],[толщина\nмм ]],Труба!$F$40:$F$85,Таблица1[[#This Row],[название в \nАСТРА]])","v":0},{"$f":"SUMIFS(Труба!$V$40:$V$85,Труба!$C$40:$C$85,Таблица1[[#This Row],[не равно\n(для расчета)]],Труба!$D$40:$D$85,\"=500\",Труба!$E$40:$E$85,Таблица1[[#This Row],[толщина\nмм ]],Труба!$F$40:$F$85,Таблица1[[#This Row],[название в \nАСТРА]])","v":0},{"$f":"Таблица1[[#This Row],[Масса дет. целых]]+Таблица1[[#This Row],[Масса дет. Деловых]]","v":0},{"$f":"SUMIFS(Труба!$M$40:$M$85,Труба!$C$40:$C$85,Таблица1[[#This Row],[длина трубы\nмм]],Труба!$D$40:$D$85,\"=500\",Труба!$E$40:$E$85,Таблица1[[#This Row],[толщина\nмм ]],Труба!$F$40:$F$85,Таблица1[[#This Row],[название в \nАСТРА]])","v":0},{"$f":"SUMIFS(Труба!$M$40:$M$85,Труба!$C$40:$C$85,Таблица1[[#This Row],[не равно\n(для расчета)]],Труба!$D$40:$D$85,\"=500\",Труба!$E$40:$E$85,Таблица1[[#This Row],[толщина\nмм ]],Труба!$F$40:$F$85,Таблица1[[#This Row],[название в \nАСТРА]])","v":0},{"$f":"Таблица1[[#This Row],[Масса целых]]+Таблица1[[#This Row],[Масса деловых]]","v":0},{"$f":"SUMIFS(Труба!$P$40:$P$85,Труба!$C$40:$C$85,Таблица1[[#This Row],[длина трубы\nмм]],Труба!$D$40:$D$85,\"=500\",Труба!$E$40:$E$85,Таблица1[[#This Row],[толщина\nмм ]],Труба!$F$40:$F$85,Таблица1[[#This Row],[название в \nАСТРА]])","v":0},{"$f":"SUMIFS(Труба!$P$40:$P$85,Труба!$C$40:$C$85,Таблица1[[#This Row],[не равно\n(для расчета)]],Труба!$D$40:$D$85,\"=500\",Труба!$E$40:$E$85,Таблица1[[#This Row],[толщина\nмм ]],Труба!$F$40:$F$85,Таблица1[[#This Row],[название в \nАСТРА]])","v":0},{"$f":"Таблица1[[#This Row],[Дел. ост.  Целых]]+Таблица1[[#This Row],[Дел. ост. Деловых]]","v":0},{"$f":"SUMIFS(Труба!$Z$40:$Z$85,Труба!$C$40:$C$85,Таблица1[[#This Row],[длина трубы\nмм]],Труба!$D$40:$D$85,\"=500\",Труба!$E$40:$E$85,Таблица1[[#This Row],[толщина\nмм ]],Труба!$F$40:$F$85,Таблица1[[#This Row],[название в \nАСТРА]])","v":0},{"$f":"SUMIFS(Труба!$Z$40:$Z$85,Труба!$C$40:$C$85,Таблица1[[#This Row],[не равно\n(для расчета)]],Труба!$D$40:$D$85,\"=500\",Труба!$E$40:$E$85,Таблица1[[#This Row],[толщина\nмм ]],Труба!$F$40:$F$85,Таблица1[[#This Row],[название в \nАСТРА]])","v":0},{"$f":"Таблица1[[#This Row],[Расход целых]]+Таблица1[[#This Row],[Расход деловых]]","v":0},{"$f":"Таблица1[[#This Row],[Чистый лом целых]]+Таблица1[[#This Row],[Чистый лом деловых]]-Таблица1[[#This Row],[Отход на порезку]]","v":0},{"$f":"Таблица1[[#This Row],[кол-во\n на план\n этого профиля]]*Таблица1[[#This Row],[толщина реза\nмм]]/1000/2*Таблица1[[#This Row],[масса 2м\n(коэф)]]","v":0},{"$f":"SUMIFS(Труба!$AA$40:$AA$85,Труба!$C$40:$C$85,Таблица1[[#This Row],[длина трубы\nмм]],Труба!$D$40:$D$85,\"=500\",Труба!$E$40:$E$85,Таблица1[[#This Row],[толщина\nмм ]],Труба!$F$40:$F$85,Таблица1[[#This Row],[название в \nАСТРА]])","v":0},{"$f":"SUMIFS(Труба!$AA$40:$AA$85,Труба!$C$40:$C$85,Таблица1[[#This Row],[не равно\n(для расчета)]],Труба!$D$40:$D$85,\"=500\",Труба!$E$40:$E$85,Таблица1[[#This Row],[толщина\nмм ]],Труба!$F$40:$F$85,Таблица1[[#This Row],[название в \nАСТРА]])","v":0}]